{"text_format":"1","workbook":"xlsx","n_sheets":2,"sheets":["OPS ","PLANTA DE PERSONAL"],"not_rendered":{"charts":0,"images":0,"macros":1,"external_links":1,"defined_names":4,"comments":1,"pivot_tables":0},"unopened":[],"bounds":{"document_bytes":16777216,"sheet_cells":100000,"rows_first":2000,"rows_last":500,"rows_between":2000,"halvings":0,"cell_chars":16384,"cell_head_chars":4096},"cells_cut":0,"cells_raw":0,"read":"whole","date_system":"1900"}

{"sheet":"OPS ","index":0,"n_rows":506,"n_cols":18,"rows_kept":506,"cut":false,"hidden":false,"merged":[]}
["No","CEDULA","NOMBRES APELLIDOS CONTRATISTA","PAIS DE NACIMIENTO","DEPARTAMENTO DE NACIMIENTO","CIUDAD DE NACIMIENTO ","FORMACION ACADEMICA ","OBJETO DEL CONTRATO","FECHA INICIO","FECHA TERMINACION ","VALOR MENSUAL","VALOR TOTAL ","DEPENDENCIA DONDE PRESTA LOS SERVICIOS EN LA ENTIDAD ","SERVICIO","TIPO DE CONTRATO ","CORREO ","TELEFONO ","AÑOS DE EXPERIENCIA"]
[1,55309225,"ADRIANA BALLESTAS MARTINEZ","Colombia","Atlántico","BARRANQUILLA","MEDICINA","MEDICO DE URGENCIAS","03 de Noviembre de 2020 ","30 de Noviembre de 2020 ",3072000,3072000,"CENTRO DE SALUD 13 DE JUNIO","Asistencial","PRESTACION DE SERVICIO","adriana_ballestas@hotmail.com","3042592",3]
[{"$f":"+A2+1","v":2},1103109488,"ADRIANA MARCELA CASTAÑO RODELO ","Colombia","Atlántico","MAJAGUAL","MEDICINA","MEDICO PROGRAMA CARDIOVASCULAR","03 de Noviembre de 2020 ","30 de Noviembre de 2020 ",2300000,2300000,"CENTRO DE SALUD  SALAMANCA","Asistencial","PRESTACION DE SERVICIO","adria0319@hotmail.com","3023238162",2]
[{"$f":"+A3+1","v":3},22465848,"ADRIANA OROZCO CANTILLO","Colombia","Atlántico","BARRANQUILLA","BACHILLER ACADEMICO ","PERSONAL  LIMPIEZA Y ASEO","03 de Noviembre de 2020 ","30 de Noviembre de 2020 ",1215000,1215000,"CENTRO DE SALUD  MACLOVIA","Administrativo","PRESTACION DE SERVICIO","adesorozcocantillo@hotmail.com","3005063640",5]
[4,1140895535,"ADRIANA PAOLA GONZALEZ ROMERO ","Colombia","Atlántico","BARRANQUILLA","ENFERMERIA","ENFERMERA JEFE CONSULTA EXTERNA ","03 de Noviembre de 2020 ","30 de Noviembre de 2020 ",2120000,2120000,"CENTRO DE SALUD LA ESPERANZA","Asistencial","PRESTACION DE SERVICIO","adriana_gonzalez97@outlook.es","3017466458",2]
[5,55236945,"ADRIANA PATRICIA MARQUEZ CANTILLO","Colombia","Atlántico","VALLEDUPAR","TECNICA PROFESIONAL EN AUXILIAR DE ENFERMERIA","VACUNADOR(A)","03 de Noviembre de 2020 ","30 de Noviembre de 2020 ",1400000,1400000,"CENTRO VACUNACION  MANUELA BELTRAN","Asistencial","PRESTACION DE SERVICIO","adrianav0927@hotmail.com","3727379",3]
[6,1042451687,"ADRIANA SOFIA PEREZ CERVANTES","Colombia","Atlántico","SOLEDAD","TECNICA PROFESIONAL EN ARCHIVISTICA","AGENTE CALL CENTER","03 de Noviembre de 2020 ","30 de Noviembre de 2020 ",1378000,1378000,"CALL CENTER -CIUDADELA ","Administrativo","PRESTACION DE SERVICIO","adrisofi1231@gmail.com","3135288336",3]
[7,39059528,"ALBA CEVEDDA SERNA MEJIA ","Colombia","Magdalena","CIÉNAGA","TECNICA PROFESIONAL EN AUXILIAR DE ENFERMERIA","AUXILIAR DE ENFERMERIA URGENCIAS","03 de Noviembre de 2020 ","30 de Noviembre de 2020 ",1653600,1653600,"CENTRO DE  SALUD CIUDADELA METROPOLITANA","Asistencial","PRESTACION DE SERVICIO","albithaserna21@hotmail.com","3003412712",5]
[8,1143437950,"ALBA KARINA  ARIAS  ESCOBAR ","Colombia","Atlántico","BARRANQUILLA","MEDICINA","MEDICO CONSULTA EXTERNA","03 de Noviembre de 2020 ","30 de Noviembre de 2020 ",2120000,2120000,"CENTRO DE SALUD MANUELA BELTRAN ","Asistencial","PRESTACION DE SERVICIO","karina-arias2012@hotmail.com","3727622",4]
[9,1045166274,"ALBA MARINA RODRIGUEZ YANCE","Colombia","Atlántico","BARRANQUILLA","ODONTOLOGIA","ASESORA SALUD PUBLICA EN LA SUBGERENCIA CIENTIFICA - COVID19","03 de Noviembre de 2020 ","30 de Noviembre de 2020 ",5800000,5800000,"OFICINA ADMINISTRATIVA SUBGERENCIA CIENTIFICA -  COSTA HERMOSA","Administrativo","PRESTACION DE SERVICIO","ayance4@hotmail.com",{"$f":"VLOOKUP(C10:C504,[1]OPS!$A$3:$C$492,3,0)","v":3002620238},5]
[10,1140874429,"ALBERTO DE LA OSSA DE AVILA","Colombia","Atlántico","SOLEDAD","ECONOMIA","PROFESIONAL  PRESUPUESTO ","03 de Noviembre de 2020 ","30 de Noviembre de 2020 ",3500000,3500000,"FINANCIERA -ADMON  COSTA HERMOSA","Administrativo","PRESTACION DE SERVICIO","amdelaossa94@gmail.com","3815185",3]
[11,8505956,"ALBERTO NAVARRO MORALES","Colombia","Atlántico","BARRANQUILLA","CONTADURIA PUBLICA","AUXILIAR FACTURACION URGENCIAS","03 de Noviembre de 2020 ","30 de Noviembre de 2020 ",1680000,1680000,"CENTRO DE  SALUD CIUDADELA METROPOLITANA","Administrativo","PRESTACION DE SERVICIO","alberton-728@hotmail.com","3326004",3]
[12,64543985,"ALCIRA GOMEZ ARRIETA ","Colombia","Sucre","COROZAL","ENFERMERIA"," COORDINADORA PAI ","03 de Noviembre de 2020 ","30 de Noviembre de 2020 ",4000000,4000000,"CENTRO VACUNACION  MANUELA BELTRAN","Administrativo","PRESTACION DE SERVICIO","alciragomezarrieta@hotmail.com","3007901179",12]
[13,8566775,"ALEJANDRO LIBARDO ALEMAN MARQUEZ","Colombia","Atlántico","SOLEDAD","TECNICO","AUXILIAR DE ARCHIVO ","03 de Noviembre de 2020 ","30 de Noviembre de 2020 ",1500000,1500000,"ARCHIVO CENTRAL","Administrativo","PRESTACION DE SERVICIO","alejandroalemanm@hotmail.com","3005620188 ",6]
[14,1042428171,"ALEX ENRIQUE VILLARREAL IBAÑEZ","Colombia","Atlántico","BARRANQUILLA","ODONTOLOGIA","ODONTOLOGO","03 de Noviembre de 2020 ","30 de Noviembre de 2020 ",1900000,1900000,"CENTRO DE SALUD 13 DE JUNIO","Asistencial","PRESTACION DE SERVICIO","dr.alex.villarreal.i@gmail.com","3926281",6]
[15,22523223,"ALEXANDRA ESTHER MOLINA PEREZ","Colombia","Atlántico","BARRANQUILLA","BACHILLER ACADEMICO ","PERSONAL  LIMPIEZA Y ASEO URGENCIA","03 de Noviembre de 2020 ","30 de Noviembre de 2020 ",1653600,1653600,"CENTRO DE SALUD 13 DE JUNIO","Administrativo","PRESTACION DE SERVICIO","alexandramolina592@gmail.com","3128199503",8]
[16,72000601,"ALEXIS JAVIER SUAREZ CABALLERO","Colombia","Atlántico","BARRANQUILLA","BACHILLER ACADEMICO ","AUXILIAR FACTURACION URGENCIAS","03 de Noviembre de 2020 ","30 de Noviembre de 2020 ",1680000,1680000,"CENTRO DE SALUD 13 DE JUNIO","Administrativo","PRESTACION DE SERVICIO","alesuca77@hotmail.com","3003479650",10]
[17,15666678,"ALFREDO ANTONIO RAMIREZ PEREIRA","Colombia","Atlántico","SOLEDAD","TECNICO","LIDER ARCHIVO  CENTRAL","03 de Noviembre de 2020 ","30 de Noviembre de 2020 ",3000000,3000000,"ARCHIVO CENTRAL","Administrativo","PRESTACION DE SERVICIO","planetero1103@hotmail.com",{"$f":"VLOOKUP(C18:C505,[1]OPS!$A$3:$C$492,3,0)","v":3003885293},12]
[18,72212724,"ALFREDO DE JESUS SIERRA BARRIOS","Colombia","Atlántico","BARRANQUILLA","INGENIERIA INDUSTRIAL","AUXILIAR FACTURACION","03 de Noviembre de 2020 ","30 de Noviembre de 2020 ",1400000,1400000,"CENTRO DE SALUD  EL PARQUE","Administrativo","PRESTACION DE SERVICIO","alfredsierra@hotmail.com","3844532",3]
[19,8721508,"ALONSO JOSÉ RIQUETT DE LA HOZ","Colombia","Atlántico","BARRANQUILLA","MEDICINA","MEDICO DE PROMOCIÓN Y MANTENIMIENTO DE LA SALUD","03 de Noviembre de 2020 ","30 de Noviembre de 2020 ",2120000,2120000,"CENTRO DE SALUD  COSTA HERMOSA","Asistencial","PRESTACION DE SERVICIO","alonsoriquett@hotmail.com","3575393",11]
[20,1139614174,"ALONSO MATEO LLANES ARIZA","Colombia","Atlántico","SANTO TOMAS","MEDICINA","MEDICO CONSULTA EXTERNA ","03 de Noviembre de 2020 ","30 de Noviembre de 2020 ",2120000,2120000,"CENTRO DE SALUD LA ESPERANZA","Asistencial","PRESTACION DE SERVICIO","mateollanes_2431@hotmail.com",{"$f":"VLOOKUP(C21:C508,[1]OPS!$A$3:$C$492,3,0)","v":3002552869},8]
[21,8697543,"ALVARO ARENAS GONZALEZ","Colombia","Atlántico","BARRANQUILLA","MEDICINA","MEDICO DE RUTA INTEGRAL MATERNO PERINATAL ","03 de Noviembre de 2020 ","30 de Noviembre de 2020 ",5088000,5088000,"CENTRO DE SALUD 13 DE JUNIO","Asistencial","PRESTACION DE SERVICIO","a_arenasg@hotmail.com","3012113981",11]
[22,8680252,"ALVARO SAMUEL PULGAR LEMUS","Colombia","Atlántico","BARRANQUILLA","BACHILLER ACADEMICO ","ORIENTADOR","03 de Noviembre de 2020 ","30 de Noviembre de 2020 ",1270000,1270000,"ADMIISTRATIVA-  COSTA HERMOSA","Administrativo","PRESTACION DE SERVICIO","piedadpulgar@live.com","3002905490",6]
[23,1047338042,"AMINTA PARDO GUZMAN","Colombia","Atlántico","SOLEDAD","TECNICA PROFESIONAL EN AUXILIAR DE ENFERMERIA","AUXILIAR DE ENFERMERIA CONSULTA EXTERNA  ","03 de Noviembre de 2020 ","30 de Noviembre de 2020 ",1166000,1166000,"CENTRO DE SALUD  SALAMANCA","Asistencial","PRESTACION DE SERVICIO","amypardoguzman@gmail.com","3042916335",2]
[24,1045688469,"AMY MOVILLA COMAS","Colombia","Atlántico","BARRANQUILLA","ENFERMERIA","ENFERMERA JEFE CONSULTA EXTERNA  Y PROGRAMA DE  RIESGO CARDIOVASCULAR","03 de Noviembre de 2020 ","30 de Noviembre de 2020 ",2300000,2300000,"CENTRO DE SALUD  SALAMANCA","Asistencial","PRESTACION DE SERVICIO","banda251224@hotmail.com","3004080237",5]
[25,32813366,"ANA GONZALEZ ZAMBRANO","Colombia","Atlántico","SOLEDAD","TECNICO","AUXILIAR DE ARCHIVO ","03 de Noviembre de 2020 ","30 de Noviembre de 2020 ",2000000,2000000,"ARCHIVO CENTRAL","Administrativo","PRESTACION DE SERVICIO","cegon1825@hotmail.com","3104741637",12]
[26,1043671104,"ANA MILENA  GAMARRA HERRERA","Colombia","Atlántico","BARRANQUILLA","TECNICO","AUXILIAR SERVICIOS  FARMACEUTICOS ","03 de Noviembre de 2020 ","30 de Noviembre de 2020 ",1524000,1524000,"FARMACIA CENTRAL  COSTA HERMOSA","Asistencial","PRESTACION DE SERVICIO","milenagamarra0418@gmail.com","3015202619",4]
[27,1045704276,"ANA MILENA HERRERA ALVIS ","Colombia","Atlántico","BARRANQUILLA","ENFERMERIA","ENFERMERA JEFE DE PROMOCIÓN Y MANTENIMIENTO DE LA SALUD- EMERGENCIA COVID19","03 de Noviembre de 2020 ","30 de Noviembre de 2020 ",3810000,3810000,"CENTRO DE SALUD  COSTA HERMOSA","Asistencial","PRESTACION DE SERVICIO","anymile90@hotmail.com","3017397849",7]
[28,32825462,"ANAIS DE JESUS RODRIGUEZ DE  LAS AGUAS","Colombia","Atlántico","SOLEDAD","BASICA PRIMARIA ","PERSONAL  LIMPIEZA Y ASEO","03 de Noviembre de 2020 ","30 de Noviembre de 2020 ",1215000,1215000,"CENTRO DE SALUD  COSTA HERMOSA","Administrativo","PRESTACION DE SERVICIO","anaisdejesusrodriguez274@gmail.com","3022293663",4]
[29,1001893516,"ANDREA ALEJANDRA CERVANTES CORNIN","Colombia","Atlántico","SOLEDAD","TECNICO","AUXILIAR DE ARCHIVO ","03 de Noviembre de 2020 ","30 de Noviembre de 2020 ",1900000,1900000,"ARCHIVO CENTRAL","Administrativo","PRESTACION DE SERVICIO","corninmia@gmail.com",{"$f":"VLOOKUP(C30:C517,[1]OPS!$A$3:$C$492,3,0)","v":3106300547},2]
[30,1045706259,"ANDREA CAROLINA HERRERA ORTEGA","Colombia","Atlántico","BARRANQUILLA","MEDICINA","MEDICO CONSULTA EXTERNA ","03 de Noviembre de 2020 ","30 de Noviembre de 2020 ",2120000,2120000,"CENTRO DE SALUD VILLA ESTADIO","Asistencial","PRESTACION DE SERVICIO","andre_herrera@hotmail.com",{"$f":"VLOOKUP(C31:C518,[1]OPS!$A$3:$C$492,3,0)","v":3007438123},9]
[31,72303740,"ANDRES JOSE NAVARRO CARBONELL","Colombia","Bogotá D.C","BOGOTÁ","ADMINISTRACION DE EMPRESAS","AUXILIAR  ADMINISTRATIVO  DE FARMACIA ","03 de Noviembre de 2020 ","30 de Noviembre de 2020 ",3000000,3000000,"FARMACIA CENTRAL  COSTA HERMOSA","Asistencial","PRESTACION DE SERVICIO","andresnavarro79@hotmail.com","3007604623",5]
[32,32771752,"ANETHS CECILIA ARGOTE TORRES","Colombia","Atlántico","SOLEDAD","TECNICA PROFESIONAL EN SECRETARIADO","AGENTE CALL CENTER","03 de Noviembre de 2020 ","30 de Noviembre de 2020 ",1378000,1378000,"CALL CENTER -CIUDADELA ","Administrativo","PRESTACION DE SERVICIO","ane_argot@hotmail.com","301 5144330",5]
[33,1001821798,"ANGELA JUDITH BARRIOS MEJIA","Colombia","Atlántico","BARRANQUILLA","ENFERMERIA","AUXILIAR DE ENFERMERIA URGENCIAS","03 de Noviembre de 2020 ","30 de Noviembre de 2020 ",1653600,1653600,"CENTRO DE  SALUD CIUDADELA METROPOLITANA","Asistencial","PRESTACION DE SERVICIO",{"$f":"VLOOKUP(C34:C500,[1]OPS!$A$3:$B$493,2,0)","v":"angelajbarriosm@gmail.com"},{"$f":"VLOOKUP(C34:C504,[1]OPS!$A$3:$C$502,3,0)","v":3116422164},3]
[34,1006745656,"ANGIE FERNANDA BELEÑO RIVERO","Colombia","Atlántico","MAICAO","MEDICINA","MEDICO DE URGENCIAS","03 de Noviembre de 2020 ","30 de Noviembre de 2020 ",3072000,3072000,"CENTRO DE  SALUD CIUDADELA METROPOLITANA","Asistencial","PRESTACION DE SERVICIO","a_giefer@hotmail.com","3013438575",2]
[35,22736159,"ARACELLY HERNANDEZ GARCIA ","Colombia","Atlántico","BARRANQUILLA","TECNICO EN GESTION AMBIENTAL EMPRESARIAL","AUXILIAR ADMINISTRATIVO TIC  Y SISTEMA DE INFORMACION","03 de Noviembre de 2020 ","30 de Noviembre de 2020 ",2500000,2500000,"OFICINA  TIC- ADMON  COSTA HERMOSA","Administrativo","PRESTACION DE SERVICIO","araisahernandez@hotmail.com",{"$f":"VLOOKUP(C36:C523,[1]OPS!$A$3:$C$492,3,0)","v":3045538302},4]
[36,32869290,"ARGENEDITH YEPEZ ESCALANTE ","Colombia","Atlántico","BARRANQUILLA","BACHILLER ACADEMICO ","MEDICO DE PROMOCIÓN Y MANTENIMIENTO DE LA SALUD","03 de Noviembre de 2020 ","30 de Noviembre de 2020 ",2120000,2120000,"CENTRO DE SALUD MANUELA BELTRAN ","Asistencial","PRESTACION DE SERVICIO","ladoct79@hotmail.com","3005078179",9]
[37,22741244,"ARLETH PATRICIA CARRILLO GARVIN","Colombia","Atlántico","BARRANQUILLA","TECNICO","ENFERMERA JEFE CNSULTA EXTERNA ","03 de Noviembre de 2020 ","30 de Noviembre de 2020 ",2300000,2300000,"CENTRO DE SALUD 13 DE JUNIO","Asistencial","PRESTACION DE SERVICIO","arleth_patri@hotmail.com","3007524877",1]
[38,1001881009,"ARMANDO JOSE JINETE BARRIOS","Colombia","Atlántico","SOLEDAD","TECNICO","AUXILIAR DE ARCHIVO ","03 de Noviembre de 2020 ","30 de Noviembre de 2020 ",1500000,1500000,"ARCHIVO CENTRAL","Administrativo","PRESTACION DE SERVICIO","armando.jinete@unisimon.edu.co","3004069002",5]
[39,8501206,"AUGUSTO RAFAEL VALENCIA OCAMPO","Colombia","Atlántico","MANATI","TECNICO","AUXILIAR FACTURACION URGENCIAS","03 de Noviembre de 2020 ","30 de Noviembre de 2020 ",1680000,1680000,"CENTRO DE SALUD 13 DE JUNIO","Administrativo","PRESTACION DE SERVICIO",{"$f":"VLOOKUP(C40:C504,[1]OPS!$A$3:$B$493,2,0)","v":"josimar.guette23@gmail.com"},{"$f":"VLOOKUP(C40:C504,[1]OPS!$A$3:$C$502,3,0)","v":3505099302},12]
[40,32855721,"AYDA  LUZ LUQUEZ MERCADO ","Colombia","Atlántico","SABANALARGA","BACHILLER ACADEMICO ","AUXILIAR FACTURACION","03 de Noviembre de 2020 ","30 de Noviembre de 2020 ",1800000,1800000,"CENTRO DE SALUD VILLA ESTADIO","Administrativo","PRESTACION DE SERVICIO","aidaluquez1981@hotmail.com","3176510594",2]
[41,32826839,"BEATRIZ ISABEL SANMARTIN ESCORCIA","Colombia","Atlántico","SOLEDAD","Diploma de Bachiller comercial","VACUNADORA  PAI WEB","03 de Noviembre de 2020 ","30 de Noviembre de 2020 ",1400000,1400000,"OFICNA PAI WEB -ARCHIVO CENTRAL","Asistencial","PRESTACION DE SERVICIO","beatrizsanmartin1@hotmail.com","3008975246",11]
[42,32780077,"BELKIS  BOSSIO ESCORCIA","Colombia","Atlántico","BARRANQUILLA","MEDICINA","MEDICO DE URGENCIAS","03 de Noviembre de 2020 ","30 de Noviembre de 2020 ",3072000,3072000,"CENTRO DE  SALUD CIUDADELA METROPOLITANA","Asistencial","PRESTACION DE SERVICIO","belkisbossio@hotmail.com","3008077199",9]
[43,22738911,"BERTILDA ISABEL SIERRA DE ANGEL","Colombia","Atlántico","BARRANQUILLA","TECNICO","ASISTENTE ADMINISTRATIVO -APOYO PROCESOS SIAU","03 de Noviembre de 2020 ","30 de Noviembre de 2020 ",2000000,2000000,"OFICINA ADMINISTRATIVA SUBGERENCIA CIENTIFICA -  COSTA HERMOSA","Administrativo","PRESTACION DE SERVICIO","bertilda.1@hotmail.com",300568262,3]
[44,32736237,"BETTY ROMERO RODRIGUEZ ","Colombia","Atlántico","BARRANQUILLA","Diploma de Bachiller comercial","PERSONAL  LIMPIEZA Y ASEO URGENCIA","03 de Noviembre de 2020 ","30 de Noviembre de 2020 ",1653600,1653600,"CENTRO DE  SALUD CIUDADELA METROPOLITANA","Administrativo","PRESTACION DE SERVICIO","bettyromeror@outlook.com","3233693051",4]
[45,72228319,"BLADIMIR ALEXANDER  SARMIENTO QUIÑONES","Colombia","Atlántico","BARRANQUILLA","TECNICO PROFESIONAL EN ELECTRONICA","TECNICO EN SISTEMAS Y ELECTRONICO ","03 de Noviembre de 2020 ","30 de Noviembre de 2020 ",1900000,1900000,"OFICINA  TIC- ADMON  COSTA HERMOSA","Administrativo","PRESTACION DE SERVICIO","sarmientobladimir@gmail.com",{"$f":"VLOOKUP(C46:C533,[1]OPS!$A$3:$C$492,3,0)","v":3175855443},4]
[46,1042451224,"BRAYAN ALBERTO QUERALES  RAMBAO ","Colombia","Atlántico","SOLEDAD","TECNICA PROFESIONAL EN ANALISIS Y PROGRAMACION DE COMPUTADORES","ASISTENTE ADMINISTRATIVO -CONTRATACION BIENES Y SERVICIOS ","03 de Noviembre de 2020 ","30 de Noviembre de 2020 ",1800000,1800000,"JURIDICA -ADMON  COSTA HERMOSA","Administrativo","PRESTACION DE SERVICIO","brayanquerales@gmail.com","3046586360",1]
[47,7938572,"BRAYNERD ALVAREZ JIMENEZ ","Colombia","Atlántico","ARJONA","MEDICINA","MEDICO CONSULTA EXTERNA  Y CARDIOVASCULAR","03 de Noviembre de 2020 ","30 de Noviembre de 2020 ",4600000,4600000,"CENTRO DE SALUD VILLA ESTADIO","Asistencial","PRESTACION DE SERVICIO","braywal@hotmail.com","3505185592",9]
[48,1042446319,"BRUNYS DEL CARMEN RAMIREZ MUÑOZ","Colombia","Atlántico","SOLEDAD","Diploma de Bachiller técnico","AUXILIAR  PROMOTORA EN SALUD","03 de Noviembre de 2020 ","30 de Noviembre de 2020 ",1458000,1458000,"CENTRO DE  SALUD CIUDADELA METROPOLITANA","Asistencial","PRESTACION DE SERVICIO","bruramirez5@gmail.com",{"$f":"VLOOKUP(C49:C536,[1]OPS!$A$3:$C$492,3,0)","v":3116738275},4]
[49,5055447,"CARLOS ALBERTO CARBONELL ALVAREZ","Colombia","Atlántico","CANDELARIA CERRO DE SAN ANTONIO","MEDICINA","AUDITOR DE CUENTAS MEDICAS ","03 de Noviembre de 2020 ","30 de Noviembre de 2020 ",5500000,5500000,"OFICINA ADMINISTRATIVA SUBGERENCIA CIENTIFICA -  COSTA HERMOSA","Administrativo","PRESTACION DE SERVICIO",{"$f":"VLOOKUP(C50:C508,[1]OPS!$A$3:$B$493,2,0)","v":"carloscarbonella@yahoo.com"},{"$f":"VLOOKUP(C50:C513,[1]OPS!$A$3:$C$502,3,0)","v":3126667238},6]
[50,1048212084,"CARLOS ANDRES LLANOS SILVERA","Colombia","Atlántico","BARANOA","TECNICA PROFESIONAL EN AUXILIAR DE ENFERMERIA","AUXILIAR DE ENFERMERIA  CONSULTA EXTERNA","03 de Noviembre de 2020 ","30 de Noviembre de 2020 ",1166000,1166000,"CENTRO DE SALUD VILLA ESTADIO","Asistencial","PRESTACION DE SERVICIO","carllansil@gmail.com","3132747006",5]
[51,72430814,"CARLOS ANDRES MARTINEZ IBAÑEZ","Colombia","Atlántico","SOLEDAD","TECNOLOGIA EN ANALISIS Y PROGRAMACION DE COMPUTADORES","AUXILIAR FACTURACION URGENCIAS","03 de Noviembre de 2020 ","30 de Noviembre de 2020 ",1680000,1680000,"CENTRO DE  SALUD CIUDADELA METROPOLITANA","Administrativo","PRESTACION DE SERVICIO","carlos_andres.22@hotmail.com","3005023881",6]
[52,72003406,"CARLOS ANDRES PEREZ  SERGE","Colombia","Atlántico","BARRANQUILLA","DERECHO","ABOGADO EXTERNO","03 de Noviembre de 2020 ","30 de Noviembre de 2020 ",4500000,4500000,"JURIDICA -ADMON  COSTA HERMOSA","Administrativo","PRESTACION DE SERVICIO","dr.carlosmas@hotmail.com","3006133639",7]
[53,72238499,"CARLOS ANTONIO MATTOS MIRANDA","Colombia","Atlántico","BARRANQUILLA","BACHILLER ACADEMICO ","REFERENCIA Y CONTRAREFERENCIA","03 de Noviembre de 2020 ","30 de Noviembre de 2020 ",1776000,1776000,"CENTRO DE  SALUD CIUDADELA METROPOLITANA","Asistencial","PRESTACION DE SERVICIO","miranmattos@hotmail.com","3017258085",7]
[54,1046873154,"CARLOS AUGUSTO ANGULO BANDERA","Colombia","Atlántico","USIACURI","BACHILLER ACADEMICO ","ORIENTADOR","03 de Noviembre de 2020 ","30 de Noviembre de 2020 ",1700000,1700000,"CENTRO DE SALUD VILLA ESTADIO","Administrativo","PRESTACION DE SERVICIO","carlosangulobandera@gmail.com",{"$f":"VLOOKUP(C55:C542,[1]OPS!$A$3:$C$492,3,0)","v":3136084919},8]
[55,1001934574,"CARLOS MARIO HERAS CORCHO","Colombia","Atlántico","SUAN","MEDICINA","MEDICO CONSULTA EXTERNA- EMERGENCIA COVID19","03 de Noviembre de 2020 ","30 de Noviembre de 2020 ",5600000,5600000,"CENTRO DE SALUD  COSTA HERMOSA","Asistencial","PRESTACION DE SERVICIO","heras_27@hotmail.com","3046588039",4]
[56,22549719,"CARMEN MELINA BOLAÑO COTES ","Colombia","Atlántico","BARRANQUILLA","TECNICO","AUXILIAR ADMINISTRATIVO  ESTADISTICA","03 de Noviembre de 2020 ","30 de Noviembre de 2020 ",2500000,2500000,"ESTADISTICA -ADMON  COSTA HERMOSA","Administrativo","PRESTACION DE SERVICIO",{"$f":"VLOOKUP(C57:C515,[1]OPS!$A$3:$B$493,2,0)","v":"nenabolcot2@gmail.com"},{"$f":"VLOOKUP(C57:C520,[1]OPS!$A$3:$C$502,3,0)","v":3008157338},1]
[57,44158949,"CARMEN PACHECO VARELA","Colombia","Atlántico","SOLEDAD","Cinco (5) años de educación básica Secundaria","PERSONAL  LIMPIEZA Y ASEO URGENCIA","03 de Noviembre de 2020 ","30 de Noviembre de 2020 ",1653600,1653600,"CENTRO DE SALUD 13 DE JUNIO","Administrativo","PRESTACION DE SERVICIO","pachecocarmen1306@gmail.com","3017254373",5]
[58,32618430,"CARMEN ROBLES DE LASCARRO","Colombia","Atlántico","BARRANQUILLA","Cuatro (4) años de educación básica Secundaria","PERSONAL  LIMPIEZA Y ASEO URGENCIA","03 de Noviembre de 2020 ","30 de Noviembre de 2020 ",1653600,1653600,"CENTRO DE  SALUD CIUDADELA METROPOLITANA","Administrativo","PRESTACION DE SERVICIO","carmenlascarro05@hotmail.com","3184307528",11]
[59,1140889995,"CAROLAY JHOANA LUNA GOMEZ","Colombia","Atlántico","BARRANQUILLA","TECNICO","ASISTENTE ADMINISTRATIVO COORDINACION  MEDICA ","03 de Noviembre de 2020 ","30 de Noviembre de 2020 ",1900000,1900000,"CENTRO DE SALUD 13 DE JUNIO","Administrativo","PRESTACION DE SERVICIO","carolaylunagomez@hotmail.com","3015589640",3]
[60,32712485,"CASILDA LARA SOLANO ","Colombia","Atlántico","BARRANQUILLA","MEDICINA","MEDICO DE PROMOCIÓN Y MANTENIMIENTO DE LA SALUD","03 de Noviembre de 2020 ","30 de Noviembre de 2020 ",2120000,2120000,"CENTRO DE SALUD 13 DE JUNIO","Asistencial","PRESTACION DE SERVICIO","casilarasolano@hotmail.com","3072060",8]
[61,8762035,"CESAR AUGUSTO MERIÑO ESCORCIA ","Colombia","Magdalena","CERRO SAN ANTONIO","TECNICO","ORIENTADOR","03 de Noviembre de 2020 ","30 de Noviembre de 2020 ",1270000,1270000,"ADMIISTRATIVA-  COSTA HERMOSA","Administrativo","PRESTACION DE SERVICIO","cesaraugustomerinoescorcia@gmil.com","3006469728",10]
[62,8639410,"CESAR OCTAVIO VARGAS DURAN ","Colombia","Atlántico","SABANALARGA","TECNICA PROFESIONAL EN GESTION DE RECURSOS NATURALES","TECNICO AMBIENTAL ","03 de Noviembre de 2020 ","30 de Noviembre de 2020 ",2500000,2500000,"AMBIENTAL - COSTA HERMOSA","Administrativo","PRESTACION DE SERVICIO","cvduran72@hotmail.com","3014946534",6]
[63,1001798325,"CINDY MILENA SARMIENTO MERIÑO","Colombia","Atlántico","PONEDERA","RELACIONES INTERNACIONALES","ESPECIALISTA TALENTO HUMANO ","03 de Noviembre de 2020 ","30 de Noviembre de 2020 ",5000000,5000000,"OFICINA TALENTO HUMANO -ADMON  COSTA HERMOSA","Administrativo","PRESTACION DE SERVICIO","cindymil0606@hotmail.com","3006787970",2]
[64,1001875491,"CINDY MILENA VARELA ARIAS ","Colombia","Atlántico","SOLEDAD","TECNOLOGIA EN SECRETARIADO EJECUTIVO CON ENFASIS EN SISTEMAS","PERSONAL  LIMPIEZA Y ASEO","03 de Noviembre de 2020 ","30 de Noviembre de 2020 ",1215000,1215000,"CENTRO DE SALUD MANUELA BELTRAN ","Administrativo","PRESTACION DE SERVICIO","cindymilenavarela@hotmail.com",{"$f":"VLOOKUP(C65:C552,[1]OPS!$A$3:$C$492,3,0)","v":3180695955},4]
[65,1042997169,"CINDY PAOLA CERA MENDOZA ","Colombia","Atlántico","SABANALARGA","ECONOMIA","PROFESIONAL PRESUPUESTO","03 de Noviembre de 2020 ","30 de Noviembre de 2020 ",3000000,3000000,"FINANCIERA -ADMON  COSTA HERMOSA","Administrativo","PRESTACION DE SERVICIO","dypaola0425@gmail.com","3215629467",7]
[66,32769708,"CLAUDIA ARENAS ALVAREZ","Colombia","Atlántico","BARRANQUILLA","ADMINISTRACION DE EMPRESAS","PROFESIONAL DE APOYO  A   LA  OFICINA  DE  CONTROL INTERNO ","03 de Noviembre de 2020 ","30 de Noviembre de 2020 ",3500000,3500000,"CONTROL  INTERNO -ADMON  COSTA HERMOSA","Administrativo","PRESTACION DE SERVICIO","cmarenas73@gmail.com","3506942329",8]
[{"$f":"+A67+1","v":67},1042418998,"CLAUDIA AREVALO CERVANTES","Colombia","Atlántico","BARRANQUILLA","ENFERMERIA","ENFERMERA JEFE DE PROMOCIÓN Y MANTENIMIENTO DE LA SALUD","03 de Noviembre de 2020 ","30 de Noviembre de 2020 ",2300000,2300000,"CENTRO DE  SALUD CIUDADELA METROPOLITANA","Asistencial","PRESTACION DE SERVICIO","cally_54@hotmail.com","3232398",4]
[68,32866058,"CLAUDIA CABARCAS ARROYO","Colombia","Atlántico","SOLEDAD","TRABAJO SOCIAL","TRABAJADORA SOCIAL","03 de Noviembre de 2020 ","30 de Noviembre de 2020 ",2200000,2200000,"CENTRO DE SALUD  SALAMANCA","Asistencial","PRESTACION DE SERVICIO","cpatri_29@hotmail.com","3176991111",12]
[69,22665320,"CLAUDIA DE LA CRUZ LEYVA","Colombia","Atlántico","CAMPO DE LA CRUZ","ESPECIALIZACION EN GERENCIA DE SERVICIOS DE SALUD","AUDITOR DE CALIDAD Y SERVICIOS DE SALUD","03 de Noviembre de 2020 ","30 de Noviembre de 2020 ",5800000,5800000,"ADMON COSTA HERMOSA","Administrativo","PRESTACION DE SERVICIO","clau_juli2804@hotmail.com","3002057831",2]
[70,32749353,"CLAUDIA VALENCIA AGUDELO ","Colombia","Atlántico","BARRANQUILLA","TECNICA PROFESIONAL EN AUXILIAR DE ENFERMERIA","AUXILIAR DE ENFERMERIA DE RUTA INTEGRAL MATERNO PERINATAL","03 de Noviembre de 2020 ","30 de Noviembre de 2020 ",1399200,1399200,"CENTRO DE  SALUD CIUDADELA METROPOLITANA","Asistencial","PRESTACION DE SERVICIO","preciosa-clau72@hotmail.com","3351075",8]
[71,32818534,"CONSUELO MENDOZA CASTRO ","Colombia","Atlántico","SOLEDAD","TECNICA PROFESIONAL EN AUXILIAR DE ENFERMERIA","AUXILIAR DE ENFERMERIA DE RUTA INTEGRAL MATERNO PERINATAL","03 de Noviembre de 2020 ","30 de Noviembre de 2020 ",1166000,1166000,"CENTRO DE  SALUD CIUDADELA METROPOLITANA","Asistencial","PRESTACION DE SERVICIO","jovifo2001@hotmail.com","3014554703",12]
[72,50959927,"CONSUELO YAZMIN LOBO RAMIREZ","Colombia","Atlántico","CHINU","TECNICA PROFESIONAL EN AUXILIAR DE ENFERMERIA","AUXILAIR DE ENFERMERIA CONSULTA EXTERNA","03 de Noviembre de 2020 ","30 de Noviembre de 2020 ",1166000,1166000,"CENTRO DE  SALUD CIUDADELA METROPOLITANA","Asistencial","PRESTACION DE SERVICIO","consuelolobo66@gmail.com","3004764112",7]
[73,72193875,"CRISTIAN DE JESUS BARRAZA VILLALBA","Colombia","Atlántico","BARRANQUILLA","TECNICA PROFESIONAL EN ATENCION A USUARIOS DE SALUD","CONDUCTOR DE AMBULANCIA","03 de Noviembre de 2020 ","30 de Noviembre de 2020 ",2160000,2160000,"CENTRO DE  SALUD CIUDADELA METROPOLITANA","Asistencial","PRESTACION DE SERVICIO","cristian_fabian_jesus@hotmail.com","3113833",4]
[74,1043611198,"CRISTIAN JESUS RODRIGUEZ QUIROZ","Colombia","Atlántico","SUAN","CONTADURIA PUBLICA","PROFESIONAL DE APOYO  A   LA  OFICINA  DE  CONTROL INTERNO ","03 de Noviembre de 2020 ","30 de Noviembre de 2020 ",3000000,3000000,"CONTROL  INTERNO -ADMON  COSTA HERMOSA","Administrativo","PRESTACION DE SERVICIO","crisroqui1995@hotmail.es",{"$f":"VLOOKUP(C75:C562,[1]OPS!$A$3:$C$492,3,0)","v":3217555439},2]
[75,32896364,"DAILYS CAROLINA PEREZ GUETTE","Colombia","Atlántico","BARRANQUILLA","ODONTOLOGIA","ODONTOLOGO","03 de Noviembre de 2020 ","30 de Noviembre de 2020 ",1900000,1900000,"CENTRO DE SALUD MANUELA BELTRAN ","Asistencial","PRESTACION DE SERVICIO","daicar9@gmail.com","3225614934",5]
[76,72436677,"DANILO ENRIQUE GRAVINI DE LA HOZ","Colombia","Atlántico","SOLEDAD","TECNICA PROFESIONAL EN AUXILIAR DE ENFERMERIA","AUXILIAR DE ENFERMERIA URGENCIAS","03 de Noviembre de 2020 ","30 de Noviembre de 2020 ",1653600,1653600,"CENTRO DE  SALUD CIUDADELA METROPOLITANA","Asistencial","PRESTACION DE SERVICIO","danilogravini1985@hotmail.com","3005572252",7]
[77,1042442558,"DANISA PAOLA BARRIOS DE ALBA","Colombia","Atlántico","SOLEDAD","NUTRICION Y DIETETICA","NUTRICIONISTA","03 de Noviembre de 2020 ","30 de Noviembre de 2020 ",2760000,2760000,"CENTRO DE SALUD 13 DE JUNIO","Asistencial","PRESTACION DE SERVICIO","danytauro2321@hotmail.com","3006642516",3]
[78,1042424953,"DARWIN HERNAN RACEDO PAREDES","Colombia","Atlántico","SOLEDAD","ENFERMERIA","PROFESIONAL DE APOYO A COORDINACION URGENCIAS ","03 de Noviembre de 2020 ","30 de Noviembre de 2020 ",3000000,3000000,"CENTRO DE SALUD  COSTA HERMOSA","Administrativo","PRESTACION DE SERVICIO","rpdarwin_17@hotmail.com","3887759",4]
[79,1129529382,"DAVID ALEJANDRO MIRANDA TORO","Colombia","Atlántico","MEDELLIN","MEDICINA","MEDICO DE URGENCIAS","03 de Noviembre de 2020 ","30 de Noviembre de 2020 ",3072000,3072000,"CENTRO DE  SALUD CIUDADELA METROPOLITANA","Asistencial","PRESTACION DE SERVICIO",{"$f":"VLOOKUP(C80:C538,[1]OPS!$A$3:$B$493,2,0)","v":"davidtor_07@outlook.es"},{"$f":"VLOOKUP(C80:C543,[1]OPS!$A$3:$C$502,3,0)","v":3043862376},3]
[80,1042436934,"DAYANA PAOLA TORRES SOLANO","Colombia","Atlántico","BARRANQUILLA","MEDICINA","MEDICO DE URGENCIAS","03 de Noviembre de 2020 ","30 de Noviembre de 2020 ",{"$f":"3072000+2120000","v":5192000},5192000,"CENTRO DE  SALUD CIUDADELA METROPOLITANA","Asistencial","PRESTACION DE SERVICIO","dayanpol216@gmail.com","3017260419",3]
[81,8770908,"DEMETRIO JOSE ALBINO CASTRO","Colombia","La Guajira","MAICAO","TECNICO PROFESIONAL EN SISTEMAS E INFORMATICA","AUXILIAR FACTURACION URGENCIAS","03 de Noviembre de 2020 ","30 de Noviembre de 2020 ",1680000,1680000,"CENTRO DE  SALUD CIUDADELA METROPOLITANA","Administrativo","PRESTACION DE SERVICIO","albinodemetrio@yahoo.com","3059048384",8]
[82,1042436213,"DESIRET PAOLA PINTO NARVAEZ","Colombia","Atlántico","BARRANQUILLA","ENFERMERIA","ENFERMERA JEFE URGENCIAS ","03 de Noviembre de 2020 ","30 de Noviembre de 2020 ",2280000,2280000,"CENTRO DE  SALUD CIUDADELA METROPOLITANA","Asistencial","PRESTACION DE SERVICIO","desy0103@hotmail.com","3979707",3]
[83,1082405551,"DESIRETH ESTRADA FERNANDEZ","Colombia","Atlántico","PUEBLOVIEJO","ENFERMERIA","ENFERMERA JEFE DE PROMOCIÓN Y MANTENIMIENTO DE LA SALUD","03 de Noviembre de 2020 ","30 de Noviembre de 2020 ",2300000,2300000,"CENTRO DE SALUD 13 DE JUNIO","Asistencial","PRESTACION DE SERVICIO","chiqui_lay@hotmail.com","3007265725",8]
[84,22585192,"DIANA LUZ ACOSTA DEMARES","Colombia","Atlántico","BARRANQUILLA","TECNOLOGIA EN GESTION DEL TALENTO HUMANO","AUXILIAR ADMINISTRATIVO COORDINACION MEDICA","03 de Noviembre de 2020 ","30 de Noviembre de 2020 ",1900000,1900000,"CENTRO DE SALUD MANUELA BELTRAN ","Administrativo","PRESTACION DE SERVICIO","dianaluz1027@hotmail.com","3014050706",4]
[85,22641416,"DIANA PATRICIA SIMANCA RODRIGUEZ","Colombia","Atlántico","SOLEDAD","DERECHO","AUXILIAR FACTURACION","03 de Noviembre de 2020 ","30 de Noviembre de 2020 ",2000000,2000000,"CENTRO DE SALUD  SALAMANCA","Administrativo","PRESTACION DE SERVICIO","dianasimancar2012@hotmail.com","3004097955",1]
[86,22524112,"DIANA SANDOVAL MANGA","Colombia","Atlántico","SOLEDAD","Diploma de Bachiller comercial","ENFERMERA JEFE PROGRAMAS ESPECIALES","03 de Noviembre de 2020 ","30 de Noviembre de 2020 ",2300000,2300000,"CENTRO DE SALUD  MACLOVIA","Asistencial","PRESTACION DE SERVICIO","danissandoval@hotmail.com","3013088545",8]
[87,8568512,"DIDIER ALFREDO DE LA HOZ ACOSTA ","Colombia","Atlántico","BARRANQUILLA","MEDICINA","MEDICO DE URGENCIAS","03 de Noviembre de 2020 ","30 de Noviembre de 2020 ",3072000,3072000,"CENTRO DE  SALUD CIUDADELA METROPOLITANA","Asistencial","PRESTACION DE SERVICIO","didierdelahoz@hotmail.com","3197281272",8]
[88,1052949649,"DILIANA GARCIA JIMENEZ","Colombia","Atlántico","MAGANGUE","ENFERMERIA","ENFERMERA JEFE URGENCIAS ","03 de Noviembre de 2020 ","30 de Noviembre de 2020 ",2280000,2280000,"CENTRO DE  SALUD CIUDADELA METROPOLITANA","Asistencial","PRESTACION DE SERVICIO","delipegui_1992@hotmail.com",{"$f":"VLOOKUP(C89:C576,[1]OPS!$A$3:$C$492,3,0)","v":3145317778},4]
[89,1007608266,"DILUVINA LUZ VALENCIA LLANOS","Colombia","Atlántico","BARRANQUILLA","TECNICO","AUXILIAR DE ENFERMERIA URGENCIAS","03 de Noviembre de 2020 ","30 de Noviembre de 2020 ",1653600,1653600,"CENTRO DE SALUD 13 DE JUNIO","Asistencial","PRESTACION DE SERVICIO","diluvalencia07@gmail.com",302569845,5]
[90,1042420928,"DINA DEL CARMEN  CUELLO DONADO","Colombia","Atlántico","SOLEDAD","TECNICA PROFESIONAL EN CONTABILIDAD Y FINANZAS","AUXILIAR FACTURACION URGENCIAS","03 de Noviembre de 2020 ","30 de Noviembre de 2020 ",1680000,1680000,"CENTRO DE  SALUD CIUDADELA METROPOLITANA","Administrativo","PRESTACION DE SERVICIO","dicudo@hotmail.com","3004129624",5]
[91,32854523,"DINA MARGARITA GOMEZ MORALES","Colombia","Atlántico","SABANALARGA","FISIOTERAPIA","FISIOTERAPEUTA","03 de Noviembre de 2020 ","30 de Noviembre de 2020 ",3000000,3000000,"ADMON COSTA HERMOSA","Administrativo","PRESTACION DE SERVICIO","dinamg_2803@hotmail.com","3016901589",8]
[92,32818082,"DIVINA LUZ NIETO ZAMBRANO","Colombia","Atlántico","SOLEDAD","BASICA PRIMARIA ","PERSONAL  LIMPIEZA Y ASEO URGENCIA","03 de Noviembre de 2020 ","30 de Noviembre de 2020 ",1653600,1653600,"CENTRO DE SALUD 13 DE JUNIO","Administrativo","PRESTACION DE SERVICIO","divinaluz64@hotmail.com","3022202400",12]
[93,32819600,"DOLIS PEDROZO TORRES","Colombia","Bolívar","MARGARITA","Dos (2) años de educación básica Secundaria","PERSONAL  LIMPIEZA Y ASEO","03 de Noviembre de 2020 ","30 de Noviembre de 2020 ",1215000,1215000,"CENTRO DE SALUD MANUELA BELTRAN ","Administrativo","PRESTACION DE SERVICIO","pedrozodolis@gmail.com","3268674",11]
[94,32769312,"DORIS PADILLA MOLINA ","Colombia","Atlántico","BARRANQUILLA","TECNOLOGIA EN ATENCION PREHOSPITALARIA","AUXILIAR DE ODONTOLOGIA","03 de Noviembre de 2020 ","30 de Noviembre de 2020 ",1166000,1166000,"CENTRO DE SALUD  COSTA HERMOSA","Asistencial","PRESTACION DE SERVICIO","dorisilla5@hotmail.com","3012941643",4]
[95,1001962873,"DULCE MARIA GOMEZ MENDOZA","Colombia","Atlántico","CAMPO DE LA CRUZ","BACHILLER ACADEMICO ","AUXILIAR DE ENFERMERIA CONSUKTA EXTERNA","03 de Noviembre de 2020 ","30 de Noviembre de 2020 ",1166000,1166000,"CENTRO DE SALUD 13 DE JUNIO","Asistencial","PRESTACION DE SERVICIO","dulcemariagamez16@gmail.com","3045522117",6]
[96,22647051,"EDELMIRA DUQUE LAMADRID","Colombia","Atlántico","SOLEDAD","FISIOTERAPIA","FISIOTERAPEUTA","03 de Noviembre de 2020 ","30 de Noviembre de 2020 ",1900000,1900000,"CENTRO DE SALUD  COSTA HERMOSA","Asistencial","PRESTACION DE SERVICIO","ededuque02@hotmail.com","3923868",7]
[97,72432974,"EDER JOSE CASTRO PINTO","Colombia","Atlántico","SOLEDAD","BACHILLER ACADEMICO ","ORIENTADOR","03 de Noviembre de 2020 ","30 de Noviembre de 2020 ",1524000,1524000,"CENTRO DE SALUD 13 DE JUNIO","Administrativo","PRESTACION DE SERVICIO",{"$f":"VLOOKUP(C98:C556,[1]OPS!$A$3:$B$493,2,0)","v":"milena_405@hotmail.com"},{"$f":"VLOOKUP(C98:C561,[1]OPS!$A$3:$C$502,3,0)","v":3016928784},5]
[98,8735248,"EDGAR CERVANTES MELGAREJO","Colombia","Atlántico","BARRANQUILLA","MEDICINA","MEDICO DE PROMOCIÓN Y MANTENIMIENTO DE LA SALUD","03 de Noviembre de 2020 ","30 de Noviembre de 2020 ",2120000,2120000,"CENTRO DE  SALUD CIUDADELA METROPOLITANA","Asistencial","PRESTACION DE SERVICIO","EDGARCERVANTES1963@HOTMAIL.COM","3006070713",13]
[99,72181563,"EDGARDO THORNE GLENN","Colombia","Atlántico","BARRANQUILLA","ESPECIALIZACION EN ORTOPEDIA MAXILAR","ODONTOLOGO","03 de Noviembre de 2020 ","30 de Noviembre de 2020 ",1900000,1900000,"CENTRO DE  SALUD CIUDADELA METROPOLITANA","Asistencial","PRESTACION DE SERVICIO","thornedre@hotmail.com",{"$f":"VLOOKUP(C100:C587,[1]OPS!$A$3:$C$492,3,0)","v":3005322037},6]
[100,78302933,"EDIE JAIR GIL","Colombia","Atlántico","MONTELIBANO","TECNOLOGIA EN RADIOLOGIA E IMAGENES DIAGNOSTICAS","TECNOLOGO EN RADIOLOGIA","03 de Noviembre de 2020 ","30 de Noviembre de 2020 ",1800000,1800000,"CENTRO DE  SALUD CIUDADELA METROPOLITANA","Asistencial","PRESTACION DE SERVICIO","ediejairgil@hotmail.com","3126728884",12]
[101,8601031,"EDILBERTO SANJUAN ZAMORA","Colombia","Atlántico","BARRANQUILLA","TECNOLOGIA EN REGENCIA DE FARMACIA","REGENTE DE FARMACIA ","03 de Noviembre de 2020 ","30 de Noviembre de 2020 ",2280000,2280000,"CENTRO DE SALUD 13 DE JUNIO","Asistencial","PRESTACION DE SERVICIO","edilbertosanjuanzamora18@hotmail.com","3046757709",2]
[102,1045700355,"EDUARDO LUIS PAUTH HERNANDEZ","Colombia","Atlántico","BARRANQUILLA","MEDICINA","MEDICO CONSULTA EXTERNA -EMERGENCIA COVID19","03 de Noviembre de 2020 ","30 de Noviembre de 2020 ",4540000,4540000,"CENTRO DE SALUD  COSTA HERMOSA","Asistencial","PRESTACION DE SERVICIO","mdpauth001@live.com","3166049186",6]
[103,72236961,"EDWARD ENRIQUE SANCHEZ URZOLA ","Colombia","Atlántico","SOLEDAD","BACHILLER ACADEMICO ","MENSAJERO ","03 de Noviembre de 2020 ","30 de Noviembre de 2020 ",1700000,1700000,"ADMIISTRATIVA-  COSTA HERMOSA","Administrativo","PRESTACION DE SERVICIO","edward2578@hotmail.com","3002016078",4]
[104,8734956,"EFRAIN CANTILLO GUERRERO","Colombia","Atlántico","BARRANQUILLA","BACHILLER ACADEMICO ","CONDUCTOR DE AMBULANCIA","03 de Noviembre de 2020 ","30 de Noviembre de 2020 ",2160000,2160000,"CENTRO DE SALUD 13 DE JUNIO","Asistencial","PRESTACION DE SERVICIO","yeisoncant18@hotmail.com","3107091892",8]
[105,8750161,"EFRAIN DE LA HOZ ROCHEL","Colombia","Atlántico","BOGOTÁ","MEDICINA","MEDICO CONSULTA EXTERNA","03 de Noviembre de 2020 ","30 de Noviembre de 2020 ",2120000,2120000,"CENTRO DE SALUD 13 DE JUNIO","Asistencial","PRESTACION DE SERVICIO","efraindelahozr@gmail.com","3012577248",11]
[106,22704983,"EGUIS ODILA ROLONG LAGUNA","Colombia","Atlántico","BARRANQUILLA","ESPECIALIZACION EN DERECHO LABORAL","ABOGADO  TALENTO HUMANO","03 de Noviembre de 2020 ","30 de Noviembre de 2020 ",5000000,5000000,"OFICINA TALENTO HUMANO -ADMON  COSTA HERMOSA","Administrativo","PRESTACION DE SERVICIO","erola.2806@yahoo.com","3003041067",3]
[107,1045675420,"EIBANIA MOLINA VENERA","Colombia","Atlántico","CHIVOLO","TECNICA PROFESIONAL EN AUXILIAR DE ENFERMERIA","AUXILIAR DE ENFERMERIA URGENCIAS","03 de Noviembre de 2020 ","30 de Noviembre de 2020 ",1653600,1653600,"CENTRO DE  SALUD CIUDADELA METROPOLITANA","Asistencial","PRESTACION DE SERVICIO","marijofe2110@hotmail.com",{"$f":"VLOOKUP(C108:C595,[1]OPS!$A$3:$C$492,3,0)","v":301548599},7]
[108,22570149,"ELENA BAENA PEÑA","Colombia","Atlántico","POLONUEVO","Diploma de Bachiller","AUXILIAR FACTURACION URGENCIAS","03 de Noviembre de 2020 ","30 de Noviembre de 2020 ",1680000,1680000,"CENTRO DE SALUD 13 DE JUNIO","Administrativo","PRESTACION DE SERVICIO","elebaena06@hotmail.com",{"$f":"VLOOKUP(C109:C596,[1]OPS!$A$3:$C$492,3,0)","v":3185760601},5]
[109,1047350428,"ELENA PATRICIA RIVAS VERONA ","Colombia","Atlántico","SANTO TOMÁS","Diploma de Bachiller técnico","DIGITADOR PAI WEB ","03 de Noviembre de 2020 ","30 de Noviembre de 2020 ",1458000,1458000,"OFICNA PAI WEB -ARCHIVO CENTRAL","Administrativo","PRESTACION DE SERVICIO","rivaselena835@gmail.com","3016989528",4]
[110,1010083517,"ELIANA MARIA  MIIRANDA RODRIGUEZ ","Colombia","Atlántico","BARRANQUILLA","TECNICA PROFESIONAL EN ARCHIVO","AUXILIAR FACTURACION","03 de Noviembre de 2020 ","30 de Noviembre de 2020 ",1400000,1400000,"CENTRO DE SALUD MANUELA BELTRAN ","Administrativo","PRESTACION DE SERVICIO","elimianda8@gmail.com","3006065370",5]
[111,8762665,"ELIECER DE JESUS CALLE QUINTERO","Colombia","Atlántico","BARRANQUILLA","BACHILLER ACADEMICO ","TECNICO DE  ALMACEN","03 de Noviembre de 2020 ","30 de Noviembre de 2020 ",1900000,1900000,"ALMACEN -ARCHIVO CENTRAL","Administrativo","PRESTACION DE SERVICIO","eliecercalleq@gmail.com","3126341051",4]
[112,8633055,"ELIECER POLO CASTRO ","Colombia","Atlántico","SABANALARGA","ESPECIALIZACION EN GERENCIA PUBLICA","ABOGADO EXTERNO","04  de Mayo de 2020 ","31 de diciembre de 2020 ",5800000,46400000,"ADMIISTRATIVA-  COSTA HERMOSA","Administrativo","PRESTACION DE SERVICIO","eliecerpolo@hotmail.com","3004904477",8]
[113,1007045398,"ELIEZER VEGA ARAGON","Colombia","Atlántico","SOLEDAD","INGENIERIA INDUSTRIAL","AUXILIAR DE ARCHIVO ","03 de Noviembre de 2020 ","30 de Noviembre de 2020 ",1500000,1500000,"ARCHIVO CENTRAL","Administrativo","PRESTACION DE SERVICIO","elvear11@gmail.com","3004970096",9]
[114,32583401,"ELSY LIZETH CHARRIS CONTRERAS","Colombia","Magdalena","PIVIJAY","MEDICINA","MEDICO CONSULTA EXTERNA ","03 de Noviembre de 2020 ","30 de Noviembre de 2020 ",2120000,2120000,"CENTRO DE SALUD  EL PARQUE","Asistencial","PRESTACION DE SERVICIO","elsyliseth@hotmail.com","3017854533",6]
[115,1042436156,"EMELY ESCORCIA MARTINEZ","Colombia","Atlántico","SOLEDAD","ENFERMERIA","ENFERMERA JEFE URGENCIAS ","03 de Noviembre de 2020 ","30 de Noviembre de 2020 ",2280000,2280000,"CENTRO DE SALUD 13 DE JUNIO","Asistencial","PRESTACION DE SERVICIO","emely-1113@hotmail.com","3007109691",8]
[116,22693401,"EMILIA ANTONIA BARCELO DE PARRA","Colombia","Atlántico","SOLEDAD","BASICA PRIMARIA ","PERSONAL  LIMPIEZA Y ASEO URGENCIA","03 de Noviembre de 2020 ","30 de Noviembre de 2020 ",1653600,1653600,"CENTRO DE SALUD 13 DE JUNIO","Administrativo","PRESTACION DE SERVICIO","albaluz-sagitario27@hotmail.com","3114215583",3]
[117,8718276,"ENRIQUE PACHECO PACHECO ","Colombia","Atlántico","BARRANQUILLA","MEDICINA","MEDICO DE URGENCIAS","03 de Noviembre de 2020 ","30 de Noviembre de 2020 ",3072000,3072000,"CENTRO DE SALUD 13 DE JUNIO","Asistencial","PRESTACION DE SERVICIO","enriquejapacheco@hotmail.com","3005430021",11]
[118,32866006,"ERIKA MARIA  ASCENCIO MARQUEZ","Colombia","Atlántico","BARRANQUILLA","ADMINISTRACION DE EMPRESAS","PROFESIONAL CONTRATACION   Y  SISTEMAS DE INFORMACION TALENTO HUMANO","03 de Noviembre de 2020 ","30 de Noviembre de 2020 ",4000000,4000000,"OFICINA TALENTO HUMANO -ADMON  COSTA HERMOSA","Administrativo","PRESTACION DE SERVICIO","erikamariaascenciomarquez@hotmail.com","3015662582",3]
[119,8571868,"ERINSON RAFAEL GUZMAN DE  LA HOZ","Colombia","Atlántico","PONEDERA","SOCIOLOGIA","PROFESIONAL DE APOYO  CONTRATACION TALENTO HUMANO","03 de Noviembre de 2020 ","30 de Noviembre de 2020 ",3000000,3000000,"OFICINA TALENTO HUMANO -ADMON  COSTA HERMOSA","Administrativo","PRESTACION DE SERVICIO","guzmandelahoz@hotmail.com","3126152281",6]
[120,1143147791,"ERNESTO JUNIOR ROJANO MEZA","Colombia","Atlántico","BARRANQUILLA","TECNOLOGIA EN RADIOLOGIA E IMAGENES DIAGNOSTICAS","TECNOLOGO EN RADIOLOGIA","03 de Noviembre de 2020 ","30 de Noviembre de 2020 ",1800000,1800000,"CENTRO DE  SALUD CIUDADELA METROPOLITANA","Asistencial","PRESTACION DE SERVICIO","erjurome-1995@hotmail.com","3104545765",7]
[121,22467133,"ESMERALDA COTE BORNACELY ","Colombia","Atlántico","BARRANQUILLA","TECNICA PROFESIONAL EN AUXILIAR DE ENFERMERIA","VACUNADOR(A)","03 de Noviembre de 2020 ","30 de Noviembre de 2020 ",1400000,1400000,"CENTRO VACUNACION  MANUELA BELTRAN","Asistencial","PRESTACION DE SERVICIO","escobor1978@hotmail.es","3747607",9]
[122,22732766,"ESMIRIS MARIA JIMENEZ GOMEZ","Colombia","Atlántico","BARRANQUILLA","BACHILLER ACADEMICO ","PERSONAL  LIMPIEZA Y ASEO","03 de Noviembre de 2020 ","30 de Noviembre de 2020 ",1215000,1215000,"CENTRO DE SALUD VILLA ESTADIO","Administrativo","PRESTACION DE SERVICIO","esmiris@hotmail.com","3145108209",4]
[123,32821813,"ESPERANZA SOFIA OROZCO MORENO ","Colombia","Atlántico","SOLEDAD","TECNICA PROFESIONAL EN AUXILIAR DE ENFERMERIA","AUXILIAR  ENFERMERIA URGENCIA ","03 de Noviembre de 2020 ","30 de Noviembre de 2020 ",1653600,1653600,"CENTRO DE SALUD 13 DE JUNIO","Asistencial","PRESTACION DE SERVICIO","esperanzaorozcomoreno@hotmail.com","3113891531",12]
[124,1002028047,"ESTEBAN MEDINA QUIROZ","Colombia","Atlántico","BARRANQUILLA","TECNICO","AUXILIAR RECURSOS FISICOS","03 de Noviembre de 2020 ","30 de Noviembre de 2020 ",1900000,1900000,"ADMIISTRATIVA-  COSTA HERMOSA","Administrativo","PRESTACION DE SERVICIO","estebandrumeo@gmail.com","3103727433",2]
[125,44157204,"ESTHER CECILIA SOLANO BARROS","Colombia","Atlántico","SOLEDAD","MEDICINA","MEDICO DE URGENCIAS","03 de Noviembre de 2020 ","30 de Noviembre de 2020 ",3072000,3072000,"CENTRO DE  SALUD CIUDADELA METROPOLITANA","Asistencial","PRESTACION DE SERVICIO","esthersolanob@hotmail.com","3248358",7]
[126,60311278,"EVA FLOREZ PARRA ","Colombia","Norte de Santander","CÚCUTA","MEDICINA","MEDICO CONSULTA EXTERNA ","03 de Noviembre de 2020 ","30 de Noviembre de 2020 ",2500000,2500000,"CENTRO DE SALUD LA ESPERANZA","Asistencial","PRESTACION DE SERVICIO","evaruth@hotmail.com","3004116168",9]
[127,72098736,"EVARISTO RAFAEL BARRIOS DE LA ROSA","Colombia","Atlántico","SABANAGRANDE","CONTADURIA PUBLICA","TECNICO DE  ALMACEN","03 de Noviembre de 2020 ","30 de Noviembre de 2020 ",3000000,3000000,"ALMACEN -ARCHIVO CENTRAL","Administrativo","PRESTACION DE SERVICIO","erafael09@hotmail.com","3017079789",4]
[128,1074712390,"EVELIN CRISTINA ZULETA SANCHEZ ","Colombia","Atlántico","RIOSUCIO","ENFERMERIA","ENFERMERA JEFE DE PROMOCIÓN Y MANTENIMIENTO DE LA SALUD","03 de Noviembre de 2020 ","30 de Noviembre de 2020 ",2300000,2300000,"CENTRO DE SALUD MANUELA BELTRAN ","Asistencial","PRESTACION DE SERVICIO","lagomela3@hotmail.com","300416111",9]
[129,55237062,"EVELINDA  URIBE NEIRA","Colombia","Atlántico","BARRANQUILLA","ESPECIALIZACION EN SEGURIDAD SOCIAL","ABOGADO EXTERNO","03 de Noviembre de 2020 ","30 de Noviembre de 2020 ",4000000,4000000,"JURIDICA -ADMON  COSTA HERMOSA","Administrativo","PRESTACION DE SERVICIO","evelinda84@hotmail.com",3025896235,2]
[130,72170268,"FABIAN FERNANDO MERCADO","Colombia","Atlántico","BARRANQUILLA","Cinco (5) años de educación básica Secundaria","DIGITADOR PAI WEB ","03 de Noviembre de 2020 ","30 de Noviembre de 2020 ",1458000,1458000,"OFICNA PAI WEB -ARCHIVO CENTRAL","Administrativo","PRESTACION DE SERVICIO","fabianmercado09@gmail.com","3006464564",1]
[{"$f":"+A131+1","v":131},1045731190,"FELIX  ALFONSO ORTIZ GARCIA ","Colombia","Atlántico","BARRANQUILLA","INGENIERIA INDUSTRIAL","ORIENTADOR","03 de Noviembre de 2020 ","30 de Noviembre de 2020 ",1524000,1524000,"CENTRO DE  SALUD CIUDADELA METROPOLITANA","Administrativo","PRESTACION DE SERVICIO","felixortiz9611@outlook.es","0353803498",6]
[132,8705578,"FERMIN NAVARRO STEFANELL","Colombia","Atlántico","BARRANQUILLA","MEDICINA","MEDICO GINECOLOGO DE RUTA INTEGRAL MATERNO PERINATAL","03 de Noviembre de 2020 ","30 de Noviembre de 2020 ",7500000,7500000,"CENTRO DE SALUD 13 DE JUNIO","Asistencial","PRESTACION DE SERVICIO","glendaordoez38@hotmail.com","3114656811",8]
[133,1045170023,"FERNEY ALBERTO OROZCO QUIROZ ","Colombia","Atlántico","PONEDERA","Diploma de Bachiller técnico","AUXILIAR FACTURACION","03 de Noviembre de 2020 ","30 de Noviembre de 2020 ",1600000,1600000,"CENTRO DE SALUD MANUELA BELTRAN ","Administrativo","PRESTACION DE SERVICIO","yen_ref28@hotmail.com",{"$f":"VLOOKUP(C134:C621,[1]OPS!$A$3:$C$492,3,0)","v":3014900531},4]
[134,22504159,"FLOR MILENA GOICOCHEA OROZCO ","Colombia","Atlántico","BARRANQUILLA","INGENIERIA DE MERCADOS","AUXILIAR  FACTURACION CENTRAL","03 de Noviembre de 2020 ","30 de Noviembre de 2020 ",2000000,2000000,"FACTURACION CENTRAL-COSTA HERMOSA","Administrativo","PRESTACION DE SERVICIO","fmilenag@hotmail.com","3929030",4]
[135,44159527,"FLORINDA DE LA HOZ PACHECO ","Colombia","Atlántico","SOLEDAD","ENFERMERIA","ENFERMERA JEFE DE PROMOCIÓN Y MANTENIMIENTO DE LA SALUD","03 de Noviembre de 2020 ","30 de Noviembre de 2020 ",2300000,2300000,"CENTRO DE SALUD VILLA ESTADIO","Asistencial","PRESTACION DE SERVICIO","alfpey@hotmail.com","3008082736",8]
[136,8788794,"FRAICER JOHANNES CHARRIS RUA ","Colombia","Atlántico","SOLEDAD","BACHILLER ACADEMICO ","AUXILIAR FACTURACION URGENCIAS","03 de Noviembre de 2020 ","30 de Noviembre de 2020 ",1680000,1680000,"CENTRO DE SALUD 13 DE JUNIO","Administrativo","PRESTACION DE SERVICIO","fraicersf@hotmail.com","3003307151",4]
[137,72328953,"FRANCISCO ALCIDES CARRANZA MENDOZA","Colombia","Atlántico","BARRANQUILLA","TECNOLOGIA EN ELECTRONICA","AUXILIAR RECURSOS FISICOS","03 de Noviembre de 2020 ","30 de Noviembre de 2020 ",2500000,2500000,"ADMIISTRATIVA-  COSTA HERMOSA","Administrativo","PRESTACION DE SERVICIO","francarranza1984@gmail.com","3007157674",5]
[138,8507198,"FRANCISCO PEÑALOZA PEREZ","Colombia","Atlántico","SOLEDAD","MEDICINA","MEDICO CONSULTA EXTERNA ","03 de Noviembre de 2020 ","30 de Noviembre de 2020 ",2120000,2120000,"CENTRO DE SALUD MANUELA BELTRAN ","Asistencial","PRESTACION DE SERVICIO","franco0180@hotmail.com","3931230",7]
[139,9132998,"GABRIEL ARIAS RAMIREZ","Colombia","Bolívar","MAGANGUÉ","QUIMICA Y FARMACIA","QUIMICO FARMACEUTICO","03 de Noviembre de 2020 ","30 de Noviembre de 2020 ",3600000,3600000,"FARMACIA CENTRAL  COSTA HERMOSA","Asistencial","PRESTACION DE SERVICIO","gar1803@hotmail.com","3235769",4]
[140,1042416953,"GABRIEL JOSE MONTIEL CERVANTES","Colombia","Atlántico","SOLEDAD","INGENIERIA DE SISTEMAS","INGENIERO DE REDES Y HARDWARE ","03 de Noviembre de 2020 ","30 de Noviembre de 2020 ",3000000,3000000,"OFICINA  TIC- ADMON  COSTA HERMOSA","Administrativo","PRESTACION DE SERVICIO","gabrielmc_375@hotmail.com","3024506",5]
[141,55305321,"GELMIS SARAY MARTINEZ DIPPE","Colombia","Atlántico","BARRANQUILLA","ESPECIALIZACION EN GERENCIA Y GESTION EN DERECHOS HUMANOS","AGENTE CALL CENTER","03 de Noviembre de 2020 ","30 de Noviembre de 2020 ",1378000,1378000,"CALL CENTER -CIUDADELA ","Administrativo","PRESTACION DE SERVICIO","gelmismartinez@yahoo.com.co","3016863801",7]
[142,19585247,"GENITO VILLAMIL CONTRERAS","Colombia","Magdalena","CIÉNAGA","BACHILLER ACADEMICO ","CONDUCTOR DE AMBULANCIA","03 de Noviembre de 2020 ","30 de Noviembre de 2020 ",2160000,2160000,"CENTRO DE SALUD 13 DE JUNIO","Asistencial","PRESTACION DE SERVICIO","genito-240963@hotmail.com","3057901098",6]
[143,32756610,"GENNY GUZMAN NAVARRO","Colombia","Sucre","BUENAVISTA","MEDICINA","MEDICO DE URGENCIAS","03 de Noviembre de 2020 ","30 de Noviembre de 2020 ",3072000,3072000,"CENTRO DE  SALUD CIUDADELA METROPOLITANA","Asistencial","PRESTACION DE SERVICIO","gennysofia@yahoo.es","3014333708",12]
[144,22446125,"GENOVEVA MARIA LLANES JEREZ","Colombia","Sucre","SUCRE","BACHILLER ACADEMICO ","VACUNADORA PAI WEB ","03 de Noviembre de 2020 ","30 de Noviembre de 2020 ",1400000,1400000,"OFICNA PAI WEB -ARCHIVO CENTRAL","Asistencial","PRESTACION DE SERVICIO","gjerezllanes@hotmail.com",{"$f":"VLOOKUP(C145:C632,[1]OPS!$A$3:$C$492,3,0)","v":3749007},12]
[145,1042448309,"GERALDINE ALEXANDRA MEDRANO IGLESIAS","Colombia","Atlántico","SOLEDAD","Diploma de Bachiller técnico comercial","AUXILIAR DE ARCHIVO ","03 de Noviembre de 2020 ","30 de Noviembre de 2020 ",1900000,1900000,"ARCHIVO CENTRAL","Administrativo","PRESTACION DE SERVICIO","geraldinemedrano18@gmail.com","3006033846",3]
[146,1042448518,"GIANINA ANDREA GRAVINI DE LA HOZ","Colombia","Atlántico","SOLEDAD","MEDICINA","MEDICO DE URGENCIAS","03 de Noviembre de 2020 ","30 de Noviembre de 2020 ",3072000,3072000,"CENTRO DE SALUD 13 DE JUNIO","Asistencial","PRESTACION DE SERVICIO","gianina0704@hotmail.com","3012313501",4]
[147,57105067,"GIINA  LETICIA  MARCOS FERNANDEZ ","Colombia","Atlántico","ARACATACA","PROFESIONAL ","PROFESIONAL ESTADISTICA","03 de Noviembre de 2020 ","30 de Noviembre de 2020 ",5000000,5000000,"ESTADISTICA -ADMON  COSTA HERMOSA","Administrativo","PRESTACION DE SERVICIO",{"$f":"VLOOKUP(C148:C606,[1]OPS!$A$3:$B$493,2,0)","v":"gina_marcos@hotmail.com"},{"$f":"VLOOKUP(C148:C611,[1]OPS!$A$3:$C$502,3,0)","v":3046715353},5]
[148,8634413,"GIL ANTONIO BERDUGO NOVA","Colombia","Atlántico","SABANALARGA","TECNICO","AUXILIAR DE ENFERMERIA URGENCIAS","03 de Noviembre de 2020 ","30 de Noviembre de 2020 ",1653600,1653600,"CENTRO DE SALUD 13 DE JUNIO","Asistencial","PRESTACION DE SERVICIO","gilberdugo3@gmail.com",{"$f":"VLOOKUP(C149:C636,[1]OPS!$A$3:$C$492,3,0)","v":3002198896},4]
[149,32825276,"GIOVANNA  ESTHER AFRICANO NAVARRO","Colombia","Atlántico","SOLEDAD","NUTRICION Y DIETETICA","NUTRICIONISTA","03 de Noviembre de 2020 ","30 de Noviembre de 2020 ",2760000,2760000,"CENTRO DE  SALUD CIUDADELA METROPOLITANA","Asistencial","PRESTACION DE SERVICIO",null,3046813226,2]
[150,22551160,"GISELL MILENA HERRERA ZUÑIGA","Colombia","Atlántico","BARRANQUILLA","MEDICINA","MEDICO CONSULTA EXTERNA ","03 de Noviembre de 2020 ","30 de Noviembre de 2020 ",2120000,2120000,"CENTRO DE SALUD  EL PARQUE","Asistencial","PRESTACION DE SERVICIO","gisellherrera96@gmail.com","3016503549",3]
[151,1042448135,"GISELLA CAMILA ACOSTA SEGURA","Colombia","Atlántico","SOLEDAD","Diploma de Bachiller","PROMOTORA EN SALUD- TECNICO EN SALUD PUBLICA","03 de Noviembre de 2020 ","30 de Noviembre de 2020 ",1500000,1500000,"CENTRO DE SALUD MANUELA BELTRAN ","Asistencial","PRESTACION DE SERVICIO","gissella-acosta-segura@hotmail.com","3012597710",1]
[152,44156926,"GLADYS CECILIA ESCALANTE FERRER","Colombia","Atlántico","SOLEDAD","ESPECIALIZACION EN AUDITORIA DE SERVICIOS DE SALUD","AUDITOR DE CALIDAD Y SERVICIOS DE SALUD","03 de Noviembre de 2020 ","30 de Noviembre de 2020 ",4000000,4000000,"OFICINA ADMINISTRATIVA SUBGERENCIA CIENTIFICA -  COSTA HERMOSA","Administrativo","PRESTACION DE SERVICIO","gefexitosa1a@hotmail.com","3424254",12]
[153,49555306,"GLADYS DIAZ MARIN","Colombia","Cesar","CURUMANÍ","TECNICA EN MERCADEO Y VENTAS","AUXILIAR FACTURACION URGENCIAS","03 de Noviembre de 2020 ","30 de Noviembre de 2020 ",1680000,1680000,"CENTRO DE SALUD 13 DE JUNIO","Administrativo","PRESTACION DE SERVICIO","gladysdiazmarin13@hotmail.com","3002337087",12]
[154,22644596,"GRACIELA BUSTOS RIVEROS","Colombia","Atlántico","SOLEDAD","INGENIERIA DE SISTEMAS Y COMPUTACION","AUXILIAR ADMINISTRATIVO  FACTURACIÒN","03 de Noviembre de 2020 ","30 de Noviembre de 2020 ",2000000,2000000,"FACTURACION CENTRAL-COSTA HERMOSA","Administrativo","PRESTACION DE SERVICIO","gbustos17@hotmail.com","3215391806",5]
[155,85468633,"GREGORIO  RUIZ  PACHECO","Colombia","Magdalena","SANTA MARTA","DERECHO","ABOGADO  EXTERNO  TALENTO  HUMANO ","03 de Noviembre de 2020 ","30 de Noviembre de 2020 ",4000000,4000000,"OFICINA TALENTO HUMANO -ADMON  COSTA HERMOSA","Administrativo","PRESTACION DE SERVICIO","gruizp@dane.gov.co","3008177517",4]
[156,72203756,"GUILLERMO DE JESUS MEDINA VASQUEZ ","Colombia","Atlántico","BARRANQUILLA","TECNOLOGIA EN GESTION ADMINISTRATIVA","AUXILIAR ADMINISTRATIVO - CALL CENTER","03 de Noviembre de 2020 ","30 de Noviembre de 2020 ",2100000,2100000,"CENTRO DE  SALUD CIUDADELA METROPOLITANA","Administrativo","PRESTACION DE SERVICIO","guillomedinavasquez74@gmail.com","3426586",3]
[157,1064976268,"GUSTAVO  ADOLFO ARAUJO GALVAN ","Colombia","Córdoba","CERETÉ","MEDICINA","MEDICO DE URGENCIAS","03 de Noviembre de 2020 ","30 de Noviembre de 2020 ",6144000,6144000,"CENTRO DE SALUD 13 DE JUNIO","Asistencial","PRESTACION DE SERVICIO","garaujo380@gmail.com","3012790567",5]
[158,19619279,"GUSTAVO SEGUNDO FLORIDO HATUN ","Colombia","Atlántico","ARACATACA","ODONTOLOGIA","AUDITOR DE CALIDAD Y SERVICIOS DE SALUD","03 de Noviembre de 2020 ","30 de Noviembre de 2020 ",5000000,5000000,"OFICINA ADMINISTRATIVA SUBGERENCIA CIENTIFICA -  COSTA HERMOSA","Administrativo","PRESTACION DE SERVICIO","gustavofloridoone@hotmail.com",{"$f":"VLOOKUP(C159:C646,[1]OPS!$A$3:$C$492,3,0)","v":3216876136},7]
[159,30568187,"HAIDE MEJIA PRADO","Colombia","Córdoba","SAHAGÚN","BACHILLER ACADEMICO ","PERSONAL  LIMPIEZA Y ASEO URGENCIA","03 de Noviembre de 2020 ","30 de Noviembre de 2020 ",1653600,1653600,"CENTRO DE  SALUD CIUDADELA METROPOLITANA","Administrativo","PRESTACION DE SERVICIO","melissam0312@hotmail.com","3185922199",10]
[160,8767993,"HAROLD MANUEL CABARCAS GONZALEZ","Colombia","Atlántico","SOLEDAD","TECNICA PROFESIONAL EN AUXILIAR DE ENFERMERIA","VACUNADOR(A)","03 de Noviembre de 2020 ","30 de Noviembre de 2020 ",1400000,1400000,"CENTRO VACUNACION  MANUELA BELTRAN","Asistencial","PRESTACION DE SERVICIO","haroldmcg@hotmail.com","3173530704",12]
[161,22617736,"HEIDI GRAVINI DE LA CRUZ","Colombia","Atlántico","SOLEDAD","TECNICA PROFESIONAL EN ADMINISTRACION DE RECURSOS HUMANOS","AGENTE CALL CENTER","03 de Noviembre de 2020 ","30 de Noviembre de 2020 ",1378000,1378000,"CALL CENTER -CIUDADELA ","Administrativo","PRESTACION DE SERVICIO","heidygravini01@gmail.com","3012649898",1]
[162,1143449271,"HELEN YIRE MALDONADO MIRANDA","Colombia","Atlántico","CARACAS","TECNOLOGIA EN CONTABILIDAD Y FINANZAS","AUXILIAR DE ODONTOLOGIA","03 de Noviembre de 2020 ","30 de Noviembre de 2020 ",1166000,1166000,"CENTRO DE SALUD  EL PARQUE","Asistencial","PRESTACION DE SERVICIO","helenmiranda0405@gmail.com","3024326442",1]
[163,8636166,"HERNANDO RAFAEL  SOLANO OLIVERO ","Colombia","Atlántico","SABANALARGA","BACHILLER ACADEMICO ","AUXILIAR DE ARCHIVO ","03 de Noviembre de 2020 ","30 de Noviembre de 2020 ",1900000,1900000,"ARCHIVO CENTRAL","Administrativo","PRESTACION DE SERVICIO","hersololi55@gmail.com","3146172686",1]
[164,1045670289,"HOLMAN ALEXANDER AVILA FERNANDEZ","Colombia","Atlántico","BARRANQUILLA","INGENIERIA INDUSTRIAL","AUXILIAR FACTURACION","03 de Noviembre de 2020 ","30 de Noviembre de 2020 ",3000000,3000000,"CENTRO DE SALUD LA ESPERANZA","Administrativo","PRESTACION DE SERVICIO","havilafernandez@gmail.com","3104951931",1]
[165,64578458,"ILDA DEL PILAR PACHECO AGUIRRE","Colombia","Atlántico","TOLUVIEJO","TECNICA PROFESIONAL EN INSTRUMENTACION QUIRURGICA","VACUNADOR(A)","03 de Noviembre de 2020 ","30 de Noviembre de 2020 ",1400000,1400000,"CENTRO VACUNACION  MANUELA BELTRAN","Asistencial","PRESTACION DE SERVICIO","pilaraguirre23@hotmail.com","3004701301",3]
[166,1042445376,"INDIRA DAYANA CERVANTES MENDIVILL","Colombia","Atlántico","SOLEDAD","PSICOLOGIA","PSICOLOGA","03 de Noviembre de 2020 ","30 de Noviembre de 2020 ",3000000,3000000,"CENTRO DE SALUD VILLA ESTADIO","Asistencial","PRESTACION DE SERVICIO","indicervantes_14@hotmail.com","3206387716",3]
[167,32861543,"INGRID NAVARRO CARRILLO","Colombia","Atlántico","SOLEDAD","ESPECIALIZACION EN SALUD OCUPACIONAL","FISIOTERAPEUTA ","03 de Noviembre de 2020 ","30 de Noviembre de 2020 ",5800000,5800000,"CENTRO DE SALUD 13 DE JUNIO","Asistencial","PRESTACION DE SERVICIO","fisioterapeuta98@hotmail.com","3024121915",12]
[168,32822389,"ISABEL AMÉRICA DE ALBA RODRIGUEZ","Colombia","Atlántico","SOLEDAD","BACHILLER ACADEMICO ","AUXILIAR FACTURACION","03 de Noviembre de 2020 ","30 de Noviembre de 2020 ",1400000,1400000,"CENTRO DE SALUD LA ESPERANZA","Administrativo","PRESTACION DE SERVICIO","chabedealba@hotmail.com","3014737053",12]
[169,32619158,"ISABEL HERRERA PACHECO ","Colombia","Atlántico","SOLEDAD","BACHILLER ACADEMICO ","VACUNADORA PAI WEB ","03 de Noviembre de 2020 ","30 de Noviembre de 2020 ",1400000,1400000,"OFICNA PAI WEB -ARCHIVO CENTRAL","Asistencial","PRESTACION DE SERVICIO","isabelherrera58@hotmail.com","3017378332",12]
[170,32816898,"ISABEL OSORIO BARRIOS","Colombia","Atlántico","SOLEDAD","TECNOLOGIA EN SALUD COMUNITARIA","VACUNADORA PAI WEB ","03 de Noviembre de 2020 ","30 de Noviembre de 2020 ",1400000,1400000,"OFICNA PAI WEB -ARCHIVO CENTRAL","Asistencial","PRESTACION DE SERVICIO","isabelosorio2110@hotmail.com","3004836394",12]
[171,72428579,"IVAN ANDRES DOMINGUEZ SAGBINI","Colombia","Atlántico","SOLEDAD","MEDICINA","MEDICO GINECOLOGO DE RUTA INTEGRAL MATERNO PERINATAL","03 de Noviembre de 2020 ","30 de Noviembre de 2020 ",7500000,7500000,"CENTRO DE SALUD 13 DE JUNIO","Asistencial","PRESTACION DE SERVICIO","sagbiniivan@hotmail.com","3178302",7]
[172,1010123461,"IVAN RAMIRO MORENO MENDOZA","Colombia","Atlántico","BARRANQUILLA","Diploma de Bachiller comercial","DIGITADOR PAI WEB ","03 de Noviembre de 2020 ","30 de Noviembre de 2020 ",1458000,1458000,"OFICNA PAI WEB -ARCHIVO CENTRAL","Administrativo","PRESTACION DE SERVICIO","mivan7588@gmail.com","3023730661",2]
[173,32818371,"IVETTE CECILIA SARMIENTO DONADO ","Colombia","Atlántico","SABANALARGA","TECNICO","AUXILIAR DE ARCHIVO ","03 de Noviembre de 2020 ","30 de Noviembre de 2020 ",1500000,1500000,"ARCHIVO CENTRAL","Administrativo","PRESTACION DE SERVICIO","ivettesarmiento29@hotmail.com",{"$f":"VLOOKUP(C174:C661,[1]OPS!$A$3:$C$492,3,0)","v":3012506598},12]
[174,1042447104,"IVOR ANDRES SANJUAN PEREZ","Colombia","Atlántico","BARRANQUILLA","TECNICO PROFESIONAL EN PROCESOS INDUSTRIALES","ORIENTADOR","03 de Noviembre de 2020 ","30 de Noviembre de 2020 ",1600000,1600000,"CENTRO DE SALUD VILLA ESTADIO","Administrativo","PRESTACION DE SERVICIO","ivorsanjuan2016@gmail.com","3005063407",4]
[175,1043000746,"JAHNSON  YESITH  CUELLO  ALVAREZ","Colombia","Atlántico","SABANALARGA","TECNICO  EN MANTENIMIENTO DE EQUIPOS DE CÓMPUTO","AUXILIAR FACTURACION URGENCIAS","03 de Noviembre de 2020 ","30 de Noviembre de 2020 ",1800000,1800000,"CENTRO DE SALUD 13 DE JUNIO","Administrativo","PRESTACION DE SERVICIO","jacksoncu.alvarez@gmail.com","3207672655",1]
[176,1043023724,"JAILINE  SOLANO MERCADO ","Colombia","Atlántico","SABANALARGA","ESPECIALIZACION EN GERENCIA FINANCIERA","ASESOR FINANCIERO ","03 de Noviembre de 2020 ","30 de Noviembre de 2020 ",5800000,5800000,"GERENCIA -ADMON  COSTA HERMOSA","Administrativo","PRESTACION DE SERVICIO","jailenesolanomercado@gmail.com","3008908576",5]
[177,8495176,"JAIME ALBERTO ALVAREZ NORIEGA","Colombia","Atlántico","PALMAR DE VARELA","MAESTRIA EN INGENIERIA INDUSTRIAL","INGENIERO AMBIENTAL","03 de Noviembre de 2020 ","30 de Noviembre de 2020 ",3500000,3500000,"AMBIENTAL - COSTA HERMOSA","Administrativo","PRESTACION DE SERVICIO","jaimealvarez1902@hotmail.com","3108339710",1]
[178,1043002864,"JAIRO ISACC BARRIOS AVILA","Colombia","Atlántico","SABANALARGA","TECNICA PROFESIONAL EN SOPORTE DE SISTEMAS DE INFORMACION","AUXILIAR DE ARCHIVO ","03 de Noviembre de 2020 ","30 de Noviembre de 2020 ",1900000,1900000,"ARCHIVO CENTRAL","Administrativo","PRESTACION DE SERVICIO","jairobarrios2011@hotmail.com","3006835970",1]
[179,32703101,"JANETH DEL CARMEN GUZMAN CANTILLO","Colombia","Atlántico","BARRANQUILLA","TECNICA PROFESIONAL EN AUXILIAR DE ENFERMERIA","LIDER DE  FACTURACION  EN CENTROS DE SALUD","03 de Noviembre de 2020 ","30 de Noviembre de 2020 ",1600000,1600000,"CENTRO DE SALUD  EL PARQUE","Administrativo","PRESTACION DE SERVICIO","jguzmanfi0705@hotmail.com","3829384",12]
[180,26900583,"JANETH JIMENEZ PEÑA","Colombia","Magdalena","SANTA ANA","TRABAJO SOCIAL","TRABAJADORA SOCIAL ","03 de Noviembre de 2020 ","30 de Noviembre de 2020 ",2500000,2500000,"CENTRO DE SALUD  COSTA HERMOSA","Asistencial","PRESTACION DE SERVICIO","janethdelcristojimenez@yahoo.com","3107215666",8]
[181,72072808,"JARID BERDUGO COBO ","Colombia","Atlántico","LURUACO","BACHILLER ACADEMICO ","REFERENCIA Y CONTRAREFERENCIA","03 de Noviembre de 2020 ","30 de Noviembre de 2020 ",1776000,1776000,"CENTRO DE  SALUD CIUDADELA METROPOLITANA","Asistencial","PRESTACION DE SERVICIO","jaridberdugocobo@outlook.com","3927153",4]
[182,72098690,"JAVIER ENRIQUE BARANDICA","Colombia","Atlántico","SABANAGRANDE","INGENIERIA DE MERCADOS","TECNICO DE  ALMACEN","03 de Noviembre de 2020 ","30 de Noviembre de 2020 ",3000000,3000000,"ALMACEN -ARCHIVO CENTRAL","Administrativo","PRESTACION DE SERVICIO","javierbarandica@hotmail.com","3154950863",4]
[183,1007124107,"JEAN CARLOS PEÑA CERVANTES","Colombia","Atlántico","SABANALARGA","TECNICO","AUXILIAR DE ARCHIVO ","03 de Noviembre de 2020 ","30 de Noviembre de 2020 ",1900000,1900000,"ARCHIVO CENTRAL","Administrativo","PRESTACION DE SERVICIO",{"$f":"VLOOKUP(C184:C642,[1]OPS!$A$3:$B$493,2,0)","v":"jeancarlossena1998@gmail.com"},{"$f":"VLOOKUP(C184:C647,[1]OPS!$A$3:$C$502,3,0)","v":3043577812},4]
[184,1143453456,"JEAN DAVID MONTALVO ZULETA","Colombia","Atlántico","BARRANQUILLA","TECNICA PROFESIONAL EN CONTABILIDAD Y FINANZAS","AGENTE CALL CENTER","03 de Noviembre de 2020 ","30 de Noviembre de 2020 ",1378000,1378000,"CALL CENTER -CIUDADELA ","Administrativo","PRESTACION DE SERVICIO","juacojeandavid@hotmail.com","3014286669",4]
[185,1045716621,"JEANNINE GUZMAN OQUENDO","Colombia","Atlántico","BARRANQUILLA","TECNICO PROFESIONAL EN SALUD ORAL","HIGIENISTA ORAL SERVICIOS AMIGABLES","03 de Noviembre de 2020 ","30 de Noviembre de 2020 ",1166000,1166000,"CENTRO DE  SALUD CIUDADELA METROPOLITANA","Asistencial","PRESTACION DE SERVICIO","jeango_93@hotmail.com","3013856164",2]
[186,32869709,"JENECIS BARRERA MIRANDA","Colombia","Atlántico","SANTO TOMÁS","ENFERMERIA","ENFERMERA JEFE DE RUTA INTEGRAL MATERNO PERINATAL","03 de Noviembre de 2020 ","30 de Noviembre de 2020 ",2760000,2760000,"CENTRO DE SALUD 13 DE JUNIO","Asistencial","PRESTACION DE SERVICIO","genebarrera0224@outlook.com","3005422114",13]
[187,1041901335,"JENNIFER LABARRERA RUA","Colombia","Atlántico","PONEDERA","Diploma de Bachiller comercial","DIGITADOR PAI WEB ","03 de Noviembre de 2020 ","30 de Noviembre de 2020 ",1458000,1458000,"OFICNA PAI WEB -ARCHIVO CENTRAL","Administrativo","PRESTACION DE SERVICIO","jlabarrera161@gmail.com","3045505532",4]
[188,1047358567,"JENNIFER PAULA FRUTO MALDONADO ","Colombia","Atlántico","SANTO TOMÁS","MEDICINA","MEDICO CONSULTA EXTERNA ","03 de Noviembre de 2020 ","30 de Noviembre de 2020 ",2120000,2120000,"CENTRO DE SALUD  SALAMANCA","Asistencial","PRESTACION DE SERVICIO","jeni_0217@hotmail.com","3155809270",4]
[189,1140871897,"JESICA FERNANDA DE CASTRO MANTILLA","Colombia","Atlántico","BARRANQUILLA","INGENIERIA","INGENIERA QUIMICA ","03 de Noviembre de 2020 ","30 de Noviembre de 2020 ",4000000,4000000,"OFICINA ADMINISTRATIVA SUBGERENCIA CIENTIFICA -  COSTA HERMOSA","Administrativo","PRESTACION DE SERVICIO","jesicadecastro1@gmail.com",{"$f":"VLOOKUP(C190:C677,[1]OPS!$A$3:$C$492,3,0)","v":3012032393},4]
[190,8675558,"JESUS ALFREDO MALDONADO MEJIA ","Colombia","Atlántico","BARRANQUILLA","BACHILLER ACADEMICO ","ORIENTADOR","03 de Noviembre de 2020 ","30 de Noviembre de 2020 ",1270000,1270000,"CENTRO DE SALUD MANUELA BELTRAN ","Administrativo","PRESTACION DE SERVICIO","jesusmaldonadomejia@gmail.com","3175722537",10]
[191,1042444925,"JESUS MORENO DE ALBA","Colombia","Atlántico","SOLEDAD","BACHILLER ACADEMICO ","AUXILIAR FACTURACION URGENCIAS","03 de Noviembre de 2020 ","30 de Noviembre de 2020 ",1680000,1680000,"CENTRO DE SALUD 13 DE JUNIO","Administrativo","PRESTACION DE SERVICIO","jesda_bmx@hotmail.com","3013360455",5]
[192,8740611,"JESUS RECUERO LAMADRID","Colombia","Atlántico","BARRANQUILLA","Diploma de Bachiller comercial","ORIENTADOR","03 de Noviembre de 2020 ","30 de Noviembre de 2020 ",1524000,1524000,"CENTRO DE SALUD MANUELA BELTRAN ","Administrativo","PRESTACION DE SERVICIO","recuerolamadrid@gmail.com","3106377550",3]
[193,44161544,"JHOANA CATALINA SANDOVAL ESCORCIA","Colombia","Atlántico","SOLEDAD","ENFERMERIA","ENFERMERA JEFE URGENCIAS ","03 de Noviembre de 2020 ","30 de Noviembre de 2020 ",2280000,2280000,"CENTRO DE SALUD 13 DE JUNIO","Asistencial","PRESTACION DE SERVICIO","jonathan-2888@hotmail.com","3015857023",6]
[194,72292086,"JHON JEREMY PERCYBROOKS BOLIVAR","Colombia","Atlántico","BARRANQUILLA","ESPECIALIZACION EN INGENIERIA DEL SOFTWARE","APOYO PROCESOS DE INFORMACION EN PYP","03 de Noviembre de 2020 ","30 de Noviembre de 2020 ",3000000,3000000,"OFICINA ADMINISTRATIVA SUBGERENCIA CIENTIFICA -  COSTA HERMOSA","Administrativo","PRESTACION DE SERVICIO","jpercybrooks@gmail.com","3044964696",2]
[{"$f":"+A195+1","v":195},1042444832,"JHONNATAN ALFONSO DE LA HOZ BARRIOS","Colombia","Atlántico","SOLEDAD","MEDICINA","MEDICO CONSULTA EXTERNA ","03 de Noviembre de 2020 ","30 de Noviembre de 2020 ",4240000,4240000,"CENTRO DE SALUD  EL PARQUE","Asistencial","PRESTACION DE SERVICIO","jdelafoz1925@gmail.com","3925474",2]
[196,1045676054,"JHONNY ALVAREZ TORRENCILLA","Colombia","Atlántico","BARRANQUILLA","INGENIERIA DE SISTEMAS","INGENIERO  DE SISTEMAS - PROCESOS DE  SISTEMA DE INFORMACION EN  FACTURACION CENTRAL ","03 de Noviembre de 2020 ","30 de Noviembre de 2020 ",4000000,4000000,"FACTURACION CENTRAL-COSTA HERMOSA","Administrativo","PRESTACION DE SERVICIO","jhonni0827@gmail.com","3122837490",4]
[197,1001877015,"JHORGI MISAEL MENESES BERRIO","Colombia","Atlántico","SOLEDAD","MEDICINA","MEDICO DE URGENCIAS","03 de Noviembre de 2020 ","30 de Noviembre de 2020 ",3072000,3072000,"CENTRO DE SALUD 13 DE JUNIO","Asistencial","PRESTACION DE SERVICIO","jhor-meneses@hotmail.com","3016217105",4]
[198,1041890825,"JHOSIMAR GUETTE CANTILLO","Colombia","Atlántico","CAMPO DE LA CRUZ","TECNICO","GESTION  DOCUMENTAL TALENTO HUMANO ","03 de Noviembre de 2020 ","30 de Noviembre de 2020 ",1700000,1700000,"ARCHIVO CENTRAL","Administrativo","PRESTACION DE SERVICIO","josimar.guette23@gmail.com","3016739715",4]
[199,1043001061,"JOCELIN PAOLA GOMEZ AGUIRRE ","Colombia","Atlántico","BARRANQUILLA","BACHILLER ACADEMICO ","AUXILIAR DE ENFERMERIA","03 de Noviembre de 2020 ","30 de Noviembre de 2020 ",1166000,1166000,"CENTRO DE SALUD  COSTA HERMOSA","Asistencial","PRESTACION DE SERVICIO","joselingomez1987@hotmail.com",{"$f":"VLOOKUP(C200:C687,[1]OPS!$A$3:$C$492,3,0)","v":3045372536},4]
[200,72430943,"JOHN HENRY REYES VERGARA ","Colombia","Atlántico","BARRANQUILLA","BACHILLER ACADEMICO ","ORIENTADOR","03 de Noviembre de 2020 ","30 de Noviembre de 2020 ",1524000,1524000,"CENTRO DE SALUD 13 DE JUNIO","Administrativo","PRESTACION DE SERVICIO","jr02231604@gmail.com","3002822511",4]
[201,8754502,"JORGE DE LA HOZ DE LA HOZ","Colombia","Atlántico","SOLEDAD","BACHILLER ACADEMICO ","ORIENTADOR","03 de Noviembre de 2020 ","30 de Noviembre de 2020 ",1270000,1270000,"CENTRO DE SALUD  SALAMANCA","Administrativo","PRESTACION DE SERVICIO","jorgeantoniodelahoz2@gmail.com",{"$f":"VLOOKUP(C202:C689,[1]OPS!$A$3:$C$492,3,0)","v":3007553435},12]
[202,8635888,"JORGE EMILIO MUÑOZ AVILA","Colombia","Atlántico","SABANALARGA","BACHILLER ACADEMICO ","ORIENTADOR","03 de Noviembre de 2020 ","30 de Noviembre de 2020 ",1500000,1500000,"ADMIISTRATIVA-  COSTA HERMOSA","Administrativo","PRESTACION DE SERVICIO",null,3002905490,2]
[203,8776312,"JORGE RIVERA MEZA","Colombia","Cesar","CHIRIGUANÁ","BACHILLER ACADEMICO ","AUXILIAR RECURSOS FISICOS","03 de Noviembre de 2020 ","30 de Noviembre de 2020 ",1900000,1900000,"ADMIISTRATIVA-  COSTA HERMOSA","Administrativo","PRESTACION DE SERVICIO","jlriverameza@hotmail.com","3146700616",12]
[204,8704073,"JOSE ALFREDO JIMENEZ CASTRO","Colombia","Atlántico","BARRANQUILLA","BACHILLER ACADEMICO ","ORIENTADOR","03 de Noviembre de 2020 ","30 de Noviembre de 2020 ",1270000,1270000,"CENTRO DE SALUD  EL PARQUE","Administrativo","PRESTACION DE SERVICIO","josejimenezc0812@hotmail.com","3004802919",10]
[205,8532785,"JOSE ANTONIO GUERRERO ORTIZ","Colombia","Atlántico","BARRANQUILLA","BACHILLER ACADEMICO ","AUXILIAR FACTURACION URGENCIAS","03 de Noviembre de 2020 ","30 de Noviembre de 2020 ",1680000,1680000,"CENTRO DE  SALUD CIUDADELA METROPOLITANA","Administrativo","PRESTACION DE SERVICIO","andlin1006@hotmail.com","3012481828",12]
[206,1129570673,"JOSE ANTONIO ZAMORA CERA","Colombia","Atlántico","BARRANQUILLA","ADMINISTRACION DE EMPRESAS","MEDICO DE URGENCIAS","03 de Noviembre de 2020 ","30 de Noviembre de 2020 ",4608000,4608000,"CENTRO DE  SALUD CIUDADELA METROPOLITANA","Asistencial","PRESTACION DE SERVICIO","zamoracerajose@gmail.com","3760540",4]
[207,1042450884,"JOSE ELIAS ELJAIECK CHARRIS","Colombia","Atlántico","BARRANQUILLA","BACHILLER ACADEMICO ","ORIENTADOR","03 de Noviembre de 2020 ","30 de Noviembre de 2020 ",1270000,1270000,"LA CENTRAL","Administrativo","PRESTACION DE SERVICIO","eljaieck.28@gmail.com","3003596669",1]
[208,1045698343,"JOSE FRANCISCO INFANZON CASTRO ","Colombia","Atlántico","BARRANQUILLA","MAESTRIA EN GESTION PUBLICA","INGENERIO MECANICO- RECURSOS FISICOS","03 de Noviembre de 2020 ","30 de Noviembre de 2020 ",5800000,5800000,"ADMIISTRATIVA-  COSTA HERMOSA","Administrativo","PRESTACION DE SERVICIO","jose.infanzon1@gmail.com","3003367639",1]
[209,72271514,"JOSE LUIS FLOREZ DIAZ","Colombia","Sucre","CHALÁN","BACHILLER ACADEMICO ","AUXILIAR FACTURACION URGENCIAS","03 de Noviembre de 2020 ","30 de Noviembre de 2020 ",1680000,1680000,"CENTRO DE SALUD 13 DE JUNIO","Administrativo","PRESTACION DE SERVICIO","florezflorez0411@hotmail.com",{"$f":"VLOOKUP(C210:C697,[1]OPS!$A$3:$C$492,3,0)","v":3126012403},3]
[210,9143862,"JOSE LUIS LEAL CORREA","Colombia","Atlántico","MAGANGUE","TECNCIO","AUXILIAR DE FARMACIA ","03 de Noviembre de 2020 ","30 de Noviembre de 2020 ",1524000,1524000,"FARMACIA CENTRAL  COSTA HERMOSA","Asistencial","PRESTACION DE SERVICIO","j_l_leal@hotmail.com","3003440461",10]
[211,32810582,"JOSEFINA CARO VITOLA","Colombia","Atlántico","SOLEDAD","TECNICO","AUXILIAR DE ENFERMERIA URGENCIAS","03 de Noviembre de 2020 ","30 de Noviembre de 2020 ",1653600,1653600,"CENTRO DE SALUD 13 DE JUNIO","Asistencial","PRESTACION DE SERVICIO","fina.26@hotmail.com","3925799",12]
[212,1042442139,"JOSHIKY ESTHER AHUMADA PACHECO","Colombia","Atlántico","BARRANQUILLA","ENFERMERIA","ENFERMERA JEFE DE PROMOCIÓN Y MANTENIMIENTO DE LA SALUD","03 de Noviembre de 2020 ","30 de Noviembre de 2020 ",2300000,2300000,"CENTRO DE SALUD MANUELA BELTRAN ","Asistencial","PRESTACION DE SERVICIO","joshiky_0703@hotmail.com",{"$f":"VLOOKUP(C213:C700,[1]OPS!$A$3:$C$492,3,0)","v":3147070444},1]
[213,72095954,"JUAN  CARLOS  BARROS CARO ","Colombia","Atlántico","BARRANQUILLA","ADMINISTRACION DE EMPRESAS","ASESOR GERENCIA","03 de Noviembre de 2020 ","30 de Noviembre de 2020 ",4500000,4500000,"GERENCIA -ADMON  COSTA HERMOSA","Administrativo","PRESTACION DE SERVICIO","juanbarroscaro@gmail.com","3142506576",1]
[214,72242552,"JUAN CAMILO CASTILLO ARIZA","Colombia","Atlántico","SOGAMOSO","MEDICINA","MEDICO CONSULTA EXTERNA","03 de Noviembre de 2020 ","30 de Noviembre de 2020 ",4240000,4240000,"CENTRO DE SALUD  COSTA HERMOSA","Asistencial","PRESTACION DE SERVICIO","doctorjuancastillo@hotmail.com","3114294157",3]
[215,1041901067,"JUAN CAMILO ROMERO MERIÑO ","Colombia","Atlántico","PONEDERA","TECNICA PROFESIONAL EN BANCA E INSTITUCIONES FINANCIERAS","AUXILIAR  FACTURACIN URGENCIA ","03 de Noviembre de 2020 ","30 de Noviembre de 2020 ",1680000,1680000,"CENTRO DE SALUD 13 DE JUNIO","Administrativo","PRESTACION DE SERVICIO","juan.romero1997@hotmail.com","3212563728",2]
[216,8667553,"JUAN EMILIO SANDOVAL BOLIVAR ","Colombia","Atlántico","BARRANQUILLA","BACHILLER ACADEMICO ","ODONTOLOGO","03 de Noviembre de 2020 ","30 de Noviembre de 2020 ",1900000,1900000,"CENTRO DE SALUD MANUELA BELTRAN ","Asistencial","PRESTACION DE SERVICIO"," jdsandovalcoello@gmail.com","3106569461",9]
[217,32814077,"JUDITH TORRES CASTILLO","Colombia","Atlántico","BARRANQUILLA","TECNICA PROFESIONAL EN SECRETARIADO COMERCIAL","LIDER DE  FACTURACION  EN CENTROS DE SALUD","03 de Noviembre de 2020 ","30 de Noviembre de 2020 ",1600000,1600000,"CENTRO DE SALUD VILLA ESTADIO","Administrativo","PRESTACION DE SERVICIO","yudith-torres@hotmail.com","3005733570",12]
[218,1042443708,"JULIETH ANDREA CAMACHO CHACON","Colombia","Atlántico","BARRANQUILLA","Diploma de Bachiller","ENFERMERA JEFE- EMERGENCIA COVID19","03 de Noviembre de 2020 ","30 de Noviembre de 2020 ",3810000,3810000,"CENTRO DE SALUD  COSTA HERMOSA","Asistencial","PRESTACION DE SERVICIO","juliethcamacho@hotmail.com","3194074585",2]
[219,1042971531,"JULIETH PAOLA FIGUEROA ZAMBRANO","Colombia","Atlántico","SABANALARGA","TECNICA PROFESIONAL EN CONTABILIDAD Y FINANZAS","AUXILIAR ADMINISTRATIVO CONTABLE","03 de Noviembre de 2020 ","30 de Noviembre de 2020 ",2500000,2500000,"FINANCIERA -ADMON  COSTA HERMOSA","Administrativo","PRESTACION DE SERVICIO","julieth1fz@gmail.com","3014367459",4]
[220,1042462818,"JULIETH PAOLA SOTO DE LA CRUZ","Colombia","Atlántico","SOLEDAD","TECNICA PROFESIONAL EN ARCHIVISTICA","DIGITADOR PAI WEB ","03 de Noviembre de 2020 ","30 de Noviembre de 2020 ",1458000,1458000,"OFICNA PAI WEB -ARCHIVO CENTRAL","Administrativo","PRESTACION DE SERVICIO","julietsoto211@hotmail.com","3023032814",2]
[221,73140179,"JULIO CESAR LOPEZ ROMERO","Colombia","Córdoba","SAHAGÚN","BACHILLER ACADEMICO ","DIGITADOR PAI WEB ","03 de Noviembre de 2020 ","30 de Noviembre de 2020 ",1458000,1458000,"OFICNA PAI WEB -ARCHIVO CENTRAL","Administrativo","PRESTACION DE SERVICIO","rochizam@hotmail.com","3205541480",3]
[222,55245774,"KARELY SUGEY SANDOVAL HERRERA","Colombia","Atlántico","BARRANQUILLA","ESPECIALIZACION EN GERENCIA FINANCIERA DE SERVICIOS DE SALUD","ASESOR FINANCIERO -SANEAMIENTO ","01 de septiembre de 2020 ","30 de Noviembre de 2020 ",6000000,18000000,"ADMIISTRATIVA-  COSTA HERMOSA","Administrativo","PRESTACION DE SERVICIO","ksugey23@hotmail.com","3038194",8]
[223,1042471178,"KAREM OLIANNA MONTOYA GIL ","Colombia","Atlántico","BARRANQUILLA","TECNICO","AUXILIAR ADMINISTRATIVO ","03 de Noviembre de 2020 ","30 de Noviembre de 2020 ",1700000,1700000,"ADMIISTRATIVA-  COSTA HERMOSA","Administrativo","PRESTACION DE SERVICIO","oliannagil@gmail.com","3107221104",3]
[224,1043841968,"KAREN DAYANA FONSECA MUÑOZ","Colombia","Atlántico","CAMPO DE LA CRUZ","MEDICINA","MEDICO DE URGENCIAS","03 de Noviembre de 2020 ","30 de Noviembre de 2020 ",3072000,3072000,"CENTRO DE SALUD 13 DE JUNIO","Asistencial","PRESTACION DE SERVICIO","karenf2104@hotmail.com","3087453",6]
[225,1083434105,"KAREN DAYANA GUERRERO DE LA HOZ ","Colombia","Magdalena","CERRO SAN ANTONIO","BACHILLER ACADEMICO ","AUXILIAR DE ENFERMERIA URGENCIAS ","03 de Noviembre de 2020 ","30 de Noviembre de 2020 ",1653600,1653600,"CENTRO DE SALUD 13 DE JUNIO","Asistencial","PRESTACION DE SERVICIO","karendayana90@outlook.com","3760002",2]
[226,44157619,"KAREN MARIA  GOETTE MONTERO ","Colombia","Atlántico","BARRANQUILLA","BACHILLER ACADEMICO ","PERSONAL  LIMPIEZA Y ASEO URGENCIA","03 de Noviembre de 2020 ","30 de Noviembre de 2020 ",1653600,1653600,"CENTRO DE  SALUD CIUDADELA METROPOLITANA","Administrativo","PRESTACION DE SERVICIO","karengoette@gmail.com",301986254,4]
[227,55313269,"KAREN MARTINEZ BRANGO","Colombia","Atlántico","BARRANQUILLA","TECNICA PROFESIONAL EN AUXILIAR DE ENFERMERIA","AUXILIAR DE ENFERMERIA URGENCIAS","03 de Noviembre de 2020 ","30 de Noviembre de 2020 ",1653600,1653600,"CENTRO DE SALUD 13 DE JUNIO","Asistencial","PRESTACION DE SERVICIO","karenmartinezbrango@gmail.com","3004088200",9]
[228,22565455,"KARIN PAOLA VIZCAINO  SOLANO","Colombia","Atlántico","BARRANQUILLA","MEDICINA","MEDICO DE RUTA INTEGRAL MATERNO PERINATAL Y CONSULTA EXTERNA","03 de Noviembre de 2020 ","30 de Noviembre de 2020 ",3604000,3604000,"CENTRO DE SALUD 13 DE JUNIO","Asistencial","PRESTACION DE SERVICIO","karimvs20@gmail.com","3104745341",6]
[229,1129513283,"KARINE MILENA LEONES MARQUEZ","Colombia","Atlántico","BARRANQUILLA","TECNICA PROFESIONAL EN ATENCION A USUARIOS DE SALUD","AUXILIAR DE FARMACIA ","03 de Noviembre de 2020 ","30 de Noviembre de 2020 ",1524000,1524000,"CENTRO DE  SALUD CIUDADELA METROPOLITANA","Asistencial","PRESTACION DE SERVICIO","jrleo1920@gmail.com","3152332876",3]
[230,1083433669,"KARLA MARIA SUAREZ MUÑOZ","Colombia","Magdalena","CERRO SAN ANTONIO","TECNICA PROFESIONAL EN AUXILIAR DE ENFERMERIA","AUXILIAR DE ENFERMERIA URGENCIAS","03 de Noviembre de 2020 ","30 de Noviembre de 2020 ",1653600,1653600,"CENTRO DE  SALUD CIUDADELA METROPOLITANA","Asistencial","PRESTACION DE SERVICIO","karlasuarezm@hotmail.com","3017769484",4]
[231,1045729651,"KAROLAY PAOLA GARCIA OSPINO","Colombia","Atlántico","BARRANQUILLA","MEDICINA","MEDICO- EMERGENCIA COVID19","03 de Noviembre de 2020 ","30 de Noviembre de 2020 ",4240000,4240000,"CENTRO DE SALUD  COSTA HERMOSA","Asistencial","PRESTACION DE SERVICIO","karolay.garciaospino@gmail.com","3002381644",5]
[232,1010137665,"KAROLINE JUDITH MORENO VARELO","Colombia","Atlántico","SOLEDAD","TECNICA PROFESIONAL EN PROCESOS DE SALUD OCUPACIONAL","AUXILIAR   ADMINISTRATIVO COORDINACION PAI","03 de Noviembre de 2020 ","30 de Noviembre de 2020 ",2000000,2000000,"CENTRO VACUNACION  MANUELA BELTRAN","Administrativo","PRESTACION DE SERVICIO","karoline_mova@hotmail.com","3042433935",3]
[233,22804794,"KATHERINE GUERRERO SEPULVEDA","Colombia","Atlántico","CARTAGENA","DERECHO","ABOGADO EXTERNO","03 de Noviembre de 2020 ","30 de Noviembre de 2020 ",5800000,5800000,"JURIDICA -ADMON  COSTA HERMOSA","Administrativo","PRESTACION DE SERVICIO","kmar.juridica@hotmail.es","3125372572",1]
[234,1042452768,"KATHERYN PAOLA BLANCO VARGAS","Colombia","Atlántico","SOLEDAD","BACHILLER ACADEMICO ","ENFERMERIA JEFE  SERVICIOS AMIGABLES","03 de Noviembre de 2020 ","30 de Noviembre de 2020 ",2300000,2300000,"CENTRO DE SALUD MANUELA BELTRAN ","Asistencial","PRESTACION DE SERVICIO","katherynpbv23@hotmail.com","3008890298",3]
[235,32894662,"KATTY MACIAS PONTON ","Colombia","Atlántico","BARRANQUILLA","MEDICINA","MEDICO DE URGENCIAS","03 de Noviembre de 2020 ","30 de Noviembre de 2020 ",{"$f":"3072000*2","v":6144000},6144000,"CENTRO DE  SALUD CIUDADELA METROPOLITANA","Asistencial","PRESTACION DE SERVICIO","angelmatias25@hotmail.com","3226769561",3]
[236,1001799232,"KEINER  DANIEL MARTINEZ BLANCO","Colombia","Atlántico","PONEDERA","TECNICO","DIGITADOR PAI WEB ","03 de Noviembre de 2020 ","30 de Noviembre de 2020 ",1458000,1458000,"OFICNA PAI WEB -ARCHIVO CENTRAL","Administrativo","PRESTACION DE SERVICIO","keinermartinez842001@gmail.com","3215538232",3]
[237,22642874,"KELLYS JOHANA URUETA SUAREZ","Colombia","Atlántico","BARRANQUILLA","BACHILLER ACADEMICO ","PERSONAL  LIMPIEZA Y ASEO URGENCIA","03 de Noviembre de 2020 ","30 de Noviembre de 2020 ",1653600,1653600,"CENTRO DE  SALUD CIUDADELA METROPOLITANA","Administrativo","PRESTACION DE SERVICIO","kellyuruetasuarez@gmail.com","3751176",4]
[238,1129581013,"KERLY JHOVELIS PITRE MORENO","Colombia","La Guajira","RIOHACHA","ENFERMERIA","ENFERMERA JEFE DE PROMOCIÓN Y MANTENIMIENTO DE LA SALUD","03 de Noviembre de 2020 ","30 de Noviembre de 2020 ",2300000,2300000,"CENTRO DE  SALUD CIUDADELA METROPOLITANA","Asistencial","PRESTACION DE SERVICIO","kerjupimo20@hotmail.com","3120017",8]
[239,1042439853,"KERVY DIYAN JINETTE BARRIOS","Colombia","Atlántico","BARRANQUILLA","TECNICA PROFESIONAL EN MANTENIMIENTO DE SISTEMAS INFORMATICOS","AUXILIAR ADMINISTRATIVO  RESOLUCIÓN 2463","03 de Noviembre de 2020 ","30 de Noviembre de 2020 ",1900000,1900000,"OFICINA ADMINISTRATIVA SUBGERENCIA CIENTIFICA -  COSTA HERMOSA","Administrativo","PRESTACION DE SERVICIO","kervyjinete@gmail.com","3759400",4]
[240,55220183,"KETTY PILAR INSIGNARES MATOS ","Colombia","Atlántico","BARRANQUILLA","PSICOLOGIA","PSICOLOGA","03 de Noviembre de 2020 ","30 de Noviembre de 2020 ",2800000,2800000,"CENTRO DE SALUD  SALAMANCA","Asistencial","PRESTACION DE SERVICIO","kit-y-2000@hotmail.com","3245092",8]
[241,1045697885,"LAURA ALANDETE CASTRO","Colombia","Atlántico","SOLEDAD","MEDICINA","MEDICO DE URGENCIAS","03 de Noviembre de 2020 ","30 de Noviembre de 2020 ",3072000,3072000,"CENTRO DE SALUD 13 DE JUNIO","Asistencial","PRESTACION DE SERVICIO","lau910513@gmail.com","3216985187",5]
[242,22739758,"LAURA MELENDEZ SALAZAR","Colombia","Atlántico","BARRANQUILLA","BACHILLER ACADEMICO ","ODONTOLOGO","03 de Noviembre de 2020 ","30 de Noviembre de 2020 ",1900000,1900000,"CENTRO DE SALUD VILLA ESTADIO","Asistencial","PRESTACION DE SERVICIO","lauramelendez_04@hotmail.com","3186036044",12]
[243,1140845475,"LAURY DEL CARMEN PACHECO SANCHEZ","Colombia","Atlántico","BARRANQUILLA","ODONTOLOGIA","ODONTOLOGO","03 de Noviembre de 2020 ","30 de Noviembre de 2020 ",3800000,3800000,"CENTRO DE SALUD  COSTA HERMOSA","Asistencial","PRESTACION DE SERVICIO",{"$f":"VLOOKUP(C244:C702,[1]OPS!$A$3:$B$493,2,0)","v":"laury.p.sanchez1014@gmail.co"},{"$f":"VLOOKUP(C244:C707,[1]OPS!$A$3:$C$502,3,0)","v":3165832764},2]
[244,32865375,"LEDIA DEL CARMEN MARTINEZ DE MOYA","Colombia","Atlántico","SOLEDAD","TECNICA PROFESIONAL EN AUXILIAR DE ENFERMERIA","VACUNADOR(A)","03 de Noviembre de 2020 ","30 de Noviembre de 2020 ",1400000,1400000,"CENTRO VACUNACION  MANUELA BELTRAN","Asistencial","PRESTACION DE SERVICIO","lediamartinez2009@hotmail.com",{"$f":"VLOOKUP(C245:C732,[1]OPS!$A$3:$C$492,3,0)","v":3042066495},7]
[245,22694020,"LEDIS DEL SOCORRO BACA ORTIZ","Colombia","Atlántico","SABANALARGA","TECNICA PROFESIONAL EN AUXILIAR DE ENFERMERIA","AUXILIAR DE ENFERMERIA","03 de Noviembre de 2020 ","30 de Noviembre de 2020 ",1166000,1166000,"LA CENTRAL","Asistencial","PRESTACION DE SERVICIO","ledisbacaortiz1@gmail.com",{"$f":"VLOOKUP(C246:C733,[1]OPS!$A$3:$C$492,3,0)","v":3007814909},8]
[246,32848040,"LEDIS MARIA MOLINA OQUENDO ","Colombia","Atlántico","SABANALARGA","ESPECIALIZACION EN DERECHO PROCESAL CIVIL","ABOGADO  CONTRATACION ","03 de Noviembre de 2020 ","30 de Noviembre de 2020 ",5000000,5000000,"JURIDICA -ADMON  COSTA HERMOSA","Administrativo","PRESTACION DE SERVICIO","ledysmo0714@gmail.com","3008667675",3]
[247,1042451204,"LEIDIS ESTHER MIRANDA MARCHENA","Colombia","Atlántico","SOLEDAD","CONTADURIA PUBLICA","PROFESIONAL CONTADURIA","03 de Noviembre de 2020 ","30 de Noviembre de 2020 ",3000000,3000000,"FINANCIERA -ADMON  COSTA HERMOSA","Administrativo","PRESTACION DE SERVICIO","leidys514@hotmail.com","3007651734",7]
[248,1140847982,"LEIDY DANIELA WILSON PEZZOTI","Colombia","Atlántico","BARRANQUILLA","TECNICO"," AUXILIAR ADMINISTRATIVO VENTANILLA UNICA ","03 de Noviembre de 2020 ","30 de Noviembre de 2020 ",2200000,2200000,"ADMIISTRATIVA-  COSTA HERMOSA","Administrativo","PRESTACION DE SERVICIO","lwilsonpezzotti@hotmail.com",{"$f":"VLOOKUP(C249:C736,[1]OPS!$A$3:$C$492,3,0)","v":3165345807},6]
[249,1045747916,"LEIDY DIANA PAEZ OROZCO","Colombia","Atlántico","BARRANQUILLA","ENFERMERIA","ENFERMERA JEFE  CONSULTA EXTERNA ","03 de Noviembre de 2020 ","30 de Noviembre de 2020 ",2300000,2300000,"CENTRO DE SALUD  MACLOVIA","Asistencial","PRESTACION DE SERVICIO","leidydpaezorozco@hotmail.com","3147976317",6]
[250,1042455811,"LEIDY MARCELA GARCIA TORRES","Colombia","Atlántico","BARRANQUILLA","TECNOLOGIA EN GESTION LOGISTICA","AUXILIAR ADMINISTRATIVO-VENTANILLA UNICA ","03 de Noviembre de 2020 ","30 de Noviembre de 2020 ",2500000,2500000,"ADMIISTRATIVA-  COSTA HERMOSA","Administrativo","PRESTACION DE SERVICIO","leidygarciato@hotmail.com","3005469215",2]
[251,1140853943,"LEIDY VANESSA BUSTILLO FORMARIS","Colombia","Atlántico","SOLEDAD","ODONTOLOGIA","ODONTOLOGO","03 de Noviembre de 2020 ","30 de Noviembre de 2020 ",1900000,1900000,"CENTRO DE SALUD  SALAMANCA","Asistencial","PRESTACION DE SERVICIO","vannebustillo10@gmail.com","3135823006",2]
[252,72053529,"LEINER DARIO MEDINA HERRERA","Colombia","Atlántico","MALAMBO","ADMINISTRACION PUBLICA TERRITORIAL","PROFESIONAL  DE APOYO  A  LA OFICINA TALENTO HUMANO","03 de Noviembre de 2020 ","30 de Noviembre de 2020 ",3000000,3000000,"OFICINA TALENTO HUMANO -ADMON  COSTA HERMOSA","Administrativo","PRESTACION DE SERVICIO","leinermedina@gmail.com","3764107",6]
[253,32879736,"LEISYS MARIA CASTRO OLARTE","Colombia","Atlántico","BARRANQUILLA","Diploma de Bachiller comercial","AUXILIAR FACTURACION URGENCIAS","03 de Noviembre de 2020 ","30 de Noviembre de 2020 ",1680000,1680000,"CENTRO DE  SALUD CIUDADELA METROPOLITANA","Administrativo","PRESTACION DE SERVICIO","leisysco@gmail.com","3103776",3]
[254,1140846298,"LENIN ALVAREZ PINEDA","Colombia","Atlántico","SOLEDAD","INGENIERIA DE SISTEMAS","AUDITOR DE SISTEMAS Y RESOLUCION 4505","03 de Noviembre de 2020 ","30 de Noviembre de 2020 ",3000000,3000000,"OFICINA  TIC- ADMON  COSTA HERMOSA","Administrativo","PRESTACION DE SERVICIO","alvarez-1991@hotmail.com","3508547714",5]
[255,1002157167,"LEODALIZ SALGADO GUERRERO","Colombia","Atlántico","BARRANQUILLA","TECNICA PROFESIONAL EN ARCHIVISTICA","AGENTE CALL CENTER","03 de Noviembre de 2020 ","30 de Noviembre de 2020 ",1378000,1378000,"CALL CENTER -CIUDADELA ","Administrativo","PRESTACION DE SERVICIO","lizsalgado23@hotmail.com","3215828382",3]
[256,72314953,"LEONEL DANIEL SILVA TAPIAS","Colombia","Atlántico","SANTO TOMAS","PROFESIONAL ","REVISOR FISCAL","03 de Noviembre de 2020 ","30 de Noviembre de 2020 ",8255982,8255982,"GERENCIA -ADMON  COSTA HERMOSA","Administrativo","PRESTACION DE SERVICIO",{"$f":"VLOOKUP(C257:C715,[1]OPS!$A$3:$B$493,2,0)","v":"leonelcontadorpublico@hotmail.com"},{"$f":"VLOOKUP(C257:C720,[1]OPS!$A$3:$C$502,3,0)","v":3145789263},10]
[257,7469739,"LEOVALDO MENDOZA PAREJO","Colombia","Atlántico","BARRANQUILLA","BACHILLER ACADEMICO ","ORIENTADOR","03 de Noviembre de 2020 ","30 de Noviembre de 2020 ",1524000,1524000,"CENTRO DE  SALUD CIUDADELA METROPOLITANA","Administrativo","PRESTACION DE SERVICIO","lmendoza08@hotmail.es","3056602",11]
[258,1045712889,"LEYDILLY ROJANO GOMEZ","Colombia","Atlántico","BARRANQUILLA","ENFERMERIA","ENFERMERA JEFE URGENCIAS ","03 de Noviembre de 2020 ","30 de Noviembre de 2020 ",2280000,2280000,"CENTRO DE SALUD 13 DE JUNIO","Asistencial","PRESTACION DE SERVICIO","ladyrojano@hotmail.com","3046803073",4]
[{"$f":"+A259+1","v":259},1143159118,"LEYDY KAREN FUENTES MORALES","Colombia","Atlántico","BARRANQUILLA","TECNOLOGIA EN COMERCIO INTERNACIONAL","AGENTE CALL CENTER","03 de Noviembre de 2020 ","30 de Noviembre de 2020 ",1378000,1378000,"CALL CENTER -CIUDADELA ","Administrativo","PRESTACION DE SERVICIO","leydykfuentes@outlook.com",{"$f":"VLOOKUP(C260:C747,[1]OPS!$A$3:$C$492,3,0)","v":3008280884},3]
[260,32853526,"LEYLA DEL SOCORRO SOSA POLO","Colombia","Atlántico","ARIGUANI","TECNICA PROFESIONAL EN AUXILIAR DE ENFERMERIA","AUXILIAR DE ENFERMERIA  URGENCIAS ","03 de Noviembre de 2020 ","30 de Noviembre de 2020 ",1900000,1900000,"CENTRO DE  SALUD CIUDADELA METROPOLITANA","Asistencial","PRESTACION DE SERVICIO","leylasosa07@gmail.com",{"$f":"VLOOKUP(C261:C748,[1]OPS!$A$3:$C$492,3,0)","v":3003899402},3]
[261,40981378,"LIDYS CASTILLO TOVAR","Colombia","Atlántico","SOGAMOSO","ADMINISTRACION DE EMPRESAS","PROFESIONAL OFICINA PAGADURIA  ","03 de Noviembre de 2020 ","30 de Noviembre de 2020 ",4000000,4000000,"OFICINA TESORERIA-  COSTA HERMOSA","Administrativo","PRESTACION DE SERVICIO","lidys37@hotmail.com","3007064371",8]
[262,32646304,"LILIAN ESTHER ANTEQUERA MANTILLA","Colombia","Atlántico","BARRANQUILLA","TECNICO","AUXILIAR DE ENFERMERIA","03 de Noviembre de 2020 ","30 de Noviembre de 2020 ",1166000,1166000,"CENTRO DE SALUD MANUELA BELTRAN ","Asistencial","PRESTACION DE SERVICIO","liante01@hotmail.com","3016318603 ",8]
[263,22533893,"LILIANA MARIA VARGAS MONTERO ","Colombia","Atlántico","SOLEDAD","ENFERMERIA","ENFERMERA JEFE DE RUTA INTEGRAL MATERNO PERINATAL","03 de Noviembre de 2020 ","30 de Noviembre de 2020 ",2760000,2760000,"CENTRO DE SALUD 13 DE JUNIO","Asistencial","PRESTACION DE SERVICIO","lilivargas101@hotmail.com","3003704374",13]
[264,32891063,"LILIBETH PACHECO ACERO","Colombia","Atlántico","BARRANQUILLA","ODONTOLOGIA","ODONTOLOGO","03 de Noviembre de 2020 ","30 de Noviembre de 2020 ",1900000,1900000,"CENTRO DE  SALUD CIUDADELA METROPOLITANA","Asistencial","PRESTACION DE SERVICIO","lipaceodonto@hotmail.com","3015482213",2]
[265,22738424,"LINA MARGARITA TORO GARCIA","Colombia","Atlántico","BARRANQUILLA","MEDICINA","MEDICO PROGRAMA CARDIOVASCULAR","03 de Noviembre de 2020 ","30 de Noviembre de 2020 ",4600000,4600000,"CENTRO DE SALUD  SALAMANCA","Asistencial","PRESTACION DE SERVICIO","nali2324@hotmail.com","3008402271",10]
[266,1085110564,"LISBETH JOHANA VIVIC GARCIA","Colombia","Atlántico","ARACATACA","TECNICA PROFESIONAL EN HIGIENE Y SEGURIDAD INDUSTRIAL","AUXILIAR DE ODONTOLOGIA","03 de Noviembre de 2020 ","30 de Noviembre de 2020 ",1166000,1166000,"CENTRO DE  SALUD CIUDADELA METROPOLITANA","Asistencial","PRESTACION DE SERVICIO","lisbethvivic92@gmail.com",{"$f":"VLOOKUP(C267:C754,[1]OPS!$A$3:$C$492,3,0)","v":3014082113},3]
[267,39306390,"LIVIA EVERNIZ ARROYO CUESTA","Colombia","Atlántico","SAMPUES","TECNICA PROFESIONAL EN AUXILIAR DE ENFERMERIA","AUXILIAR DE ENFERMERIA URGENCIAS","03 de Noviembre de 2020 ","30 de Noviembre de 2020 ",1653600,1653600,"CENTRO DE  SALUD CIUDADELA METROPOLITANA","Asistencial","PRESTACION DE SERVICIO","liviarroyocuesta@gmail.com",3005632458,3]
[268,1042426533,"LIZ CATERINE ARROYO ROMERO","Colombia","Sucre","SAMPUÉS","BACHILLER ACADEMICO ","AUXILIAR DE FARMACIA ","03 de Noviembre de 2020 ","30 de Noviembre de 2020 ",1524000,1524000,"CENTRO DE SALUD 13 DE JUNIO","Asistencial","PRESTACION DE SERVICIO","lukami0324@hotmail.com","3008329548",3]
[269,1042436897,"LIZETH PATRICIA BLANQUICETT FERRER","Colombia","Atlántico","SOLEDAD","Diploma de Bachiller técnico","AGENTE CALL CENTER","03 de Noviembre de 2020 ","30 de Noviembre de 2020 ",1378000,1378000,"CALL CENTER -CIUDADELA ","Administrativo","PRESTACION DE SERVICIO","licethblanquicett@hotmail.com","3045617080",3]
[270,55307392,"LLILIANA   PATRICIA   PASTRANA  PARODI","Colombia","Atlántico","BARRANQUILLA","COMUNICACION SOCIAL- PERIODISMO","AUXILIAR FACTURACION URGENCIAS","03 de Noviembre de 2020 ","30 de Noviembre de 2020 ",2000000,2000000,"CENTRO DE  SALUD CIUDADELA METROPOLITANA","Administrativo","PRESTACION DE SERVICIO","liliana.pastrana985@hotmail.com","3126749126",3]
[271,32763358,"LOLA SABALZA MARTINEZ","Colombia","Atlántico","BARRANQUILLA","TECNICO","AUXILIAR DE ENFERMERIA URGENCIAS","03 de Noviembre de 2020 ","30 de Noviembre de 2020 ",1653600,1653600,"CENTRO DE SALUD 13 DE JUNIO","Asistencial","PRESTACION DE SERVICIO","lolasabalza32763358@gmail.com","3017075347",3]
[272,32761353,"LORENZA BARRIOS ESTRADA","Colombia","Atlántico","BARRANQUILLA","ENFERMERIA","AUXILIAR DE ENFERMERIA ","03 de Noviembre de 2020 ","30 de Noviembre de 2020 ",1653600,1653600,"CENTRO DE  SALUD CIUDADELA METROPOLITANA","Asistencial","PRESTACION DE SERVICIO",{"$f":"VLOOKUP(C273:C731,[1]OPS!$A$3:$B$493,2,0)","v":"lorenzabarriosestrada@gm,ail.com"},{"$f":"VLOOKUP(C273:C736,[1]OPS!$A$3:$C$502,3,0)","v":"3008433111"},9]
[273,44190767,"LUCIBELL ALVAREZ NAVARRO ","Colombia","Atlántico","BARRANQUILLA","ESPECIALIZACION EN AUDITORIA DE SERVICIOS DE SALUD","ASESORA SUBGERENCIA CIENTIFICA ","03 de Noviembre de 2020 ","30 de Noviembre de 2020 ",5800000,5800000,"OFICINA ADMINISTRATIVA SUBGERENCIA CIENTIFICA -  COSTA HERMOSA","Administrativo","PRESTACION DE SERVICIO","lucibellna@hotmail.com","3008578298",14]
[274,32869223,"LUCILA ISABEL FONTALVO HERRERA","Colombia","Atlántico","SANTO TOMAS","TECNICO","AUXILIAR  ADMINISTRATIVO  TALENTO HUMANO","03 de Noviembre de 2020 ","30 de Noviembre de 2020 ",2200000,2200000,"OFICINA TALENTO HUMANO -ADMON  COSTA HERMOSA","Administrativo","PRESTACION DE SERVICIO","lucylafontalvo02@hotmail.com","3232902477",14]
[275,32666054,"LUCY CHING ANAYA ","Colombia","Atlántico","BARRANQUILLA","MEDICINA","MEDICO CONSULTA EXTERNA ","03 de Noviembre de 2020 ","30 de Noviembre de 2020 ",2120000,2120000,"CENTRO DE SALUD  SALAMANCA","Asistencial","PRESTACION DE SERVICIO","medicos1423@hotmail.com","3471873",9]
[276,84453299,"LUIS  FERNANDO CUELLAR CANTILLO","Colombia","Santander","BUCARAMANGA","ESPECIALIZACION EN GERENCIA ESTRATEGICA DE MERCADEO","ASESOR FINANCIERO ","03 de Noviembre de 2020 ","30 de Noviembre de 2020 ",3000000,3000000,"FINANCIERA -ADMON  COSTA HERMOSA","Administrativo","PRESTACION DE SERVICIO","cuellar1304@hotmail.com","4229535",12]
[277,8647518,"LUIS CARLOS MERCADO MARTINEZ","Colombia","Atlántico","SABANALARGA","TECNICO","AUXILIAR DE ARCHIVO ","03 de Noviembre de 2020 ","30 de Noviembre de 2020 ",2000000,2000000,"ARCHIVO CENTRAL","Administrativo","PRESTACION DE SERVICIO","carlosmercado@hotmail.es"," 3013453265",3]
[278,8650103,"LUIS EDUARDO MERCADO ASMAR","Colombia","Atlántico","SABANALARGA","NEGOCIOS Y FINANZAS INTERNACIONALES","PROFESIONAL ESTADISTICA","03 de Noviembre de 2020 ","30 de Noviembre de 2020 ",3500000,3500000,"ESTADISTICA -ADMON  COSTA HERMOSA","Administrativo","PRESTACION DE SERVICIO","asmar2585@hotmail.com","3006456529",3]
[279,1143133250,"LUIS EDUARDO NIEBLES SARMIENTO ","Colombia","Atlántico","BARRANQUILLA","TECNICA PROFESIONAL EN ANALISIS Y PROGRAMACION DE COMPUTADORES","AUXILIAR FACTURACION URGENCIAS","03 de Noviembre de 2020 ","30 de Noviembre de 2020 ",1680000,1680000,"CENTRO DE  SALUD CIUDADELA METROPOLITANA","Administrativo","PRESTACION DE SERVICIO","lens_18@hotmail.com","3057205843",3]
[280,8745568,"LUIS ENRIQUE PEREA VASQUEZ ","Colombia","Magdalena","PLATO","MAESTRIA EN ADMINISTRACION DE EMPRESAS","AUDITOR DE CUENTAS MEDICAS","03 de Noviembre de 2020 ","30 de Noviembre de 2020 ",4500000,4500000,"OFICINA ADMINISTRATIVA SUBGERENCIA CIENTIFICA -  COSTA HERMOSA","Administrativo","PRESTACION DE SERVICIO","luis.perea@sena.edu.co","3623941",11]
[281,72304271,"LUIS FERNANDO ESCORCIA  MARQUEZ ","Colombia","Atlántico","USIACURÍ","CONTADURIA PUBLICA","PROFESIONAL DE APOYO  A   LA  OFICINA  DE  CONTROL INTERNO ","03 de Noviembre de 2020 ","30 de Noviembre de 2020 ",2500000,2500000,"CONTROL  INTERNO -ADMON  COSTA HERMOSA","Administrativo","PRESTACION DE SERVICIO","lfescorciam@gmail.com","3373730",6]
[282,1043010710,"LUIS FERNANDO ESTRADA GUERRERO ","Colombia","Atlántico","SABANALARGA","Diploma de Bachiller comercial","AUXILIAR DE ARCHIVO ","03 de Noviembre de 2020 ","30 de Noviembre de 2020 ",1900000,1900000,"OFICNA PAI WEB -ARCHIVO CENTRAL","Administrativo","PRESTACION DE SERVICIO","luisfer.e@misena.edu.co","3022690181",2]
[283,8733921,"LUIS LEONARDO ANTOLINEZ FERNANDEZ","Colombia","Atlántico","BARRANQUILLA","MAESTRIA EN DERECHO ADMINISTRATIVO","ABOGADO EXTERNO","03 de Noviembre de 2020 ","30 de Noviembre de 2020 ",5000000,5000000,"JURIDICA -ADMON  COSTA HERMOSA","Administrativo","PRESTACION DE SERVICIO","conasecar@gmail.com","3015980354",6]
[284,8672260,"LUIS MIGUEL REYES LANCE","Colombia","Atlántico","BARRANQUILLA","BACHILLER ACADEMICO ","ORIENTADOR","03 de Noviembre de 2020 ","30 de Noviembre de 2020 ",1524000,1524000,"CENTRO DE SALUD 13 DE JUNIO","Administrativo","PRESTACION DE SERVICIO","luisreyeslance1956@hotmail.com","3022089715",12]
[285,72346265,"LUIS VASQUEZ BALLESTAS","Colombia","Atlántico","BARRANQUILLA","TECNOLOGIA EN AUTOTRONICA","LIDER DE  FACTURACION  EN CENTROS DE SALUD","03 de Noviembre de 2020 ","30 de Noviembre de 2020 ",2160000,2160000,"CENTRO DE  SALUD CIUDADELA METROPOLITANA","Administrativo","PRESTACION DE SERVICIO","che_v1804@hotmail.com","3007209986",6]
[286,1124026102,"LUISA FERNANDA PANA CARABALLO","Colombia","Atlántico","BARRANQUILLA","TECNICO","LIDER PROCESOS FACTURACION CENTRAL","03 de Noviembre de 2020 ","30 de Noviembre de 2020 ",2500000,2500000,"FACTURACION CENTRAL-COSTA HERMOSA","Administrativo","PRESTACION DE SERVICIO",{"$f":"VLOOKUP(C287:C745,[1]OPS!$A$3:$B$493,2,0)","v":"luisa.pana.c@gmail.com"},{"$f":"VLOOKUP(C287:C750,[1]OPS!$A$3:$C$502,3,0)","v":3008176546},10]
[287,32886152,"LUZ DARI OLIVEROS CEPEDA","Colombia","Atlántico","BARRANQUILLA","BACHILLER ACADEMICO ","PERSONAL  LIMPIEZA Y ASEO","03 de Noviembre de 2020 ","30 de Noviembre de 2020 ",1215000,1215000,"LA CENTRAL","Administrativo","PRESTACION DE SERVICIO","kiaraosorio028@gmail.com","3003060131",1]
[288,32863895,"LUZ ELENA MARRIAGA MONTERO ","Colombia","Atlántico","SOLEDAD","ESPECIALIZACION EN GESTION DE LOS SERVICIOS PUBLICOS DOMICILIARIOS","PROFESIONAL PLANEACION ","03 de Noviembre de 2020 ","30 de Noviembre de 2020 ",4000000,4000000,"ADMIISTRATIVA-  COSTA HERMOSA","Administrativo","PRESTACION DE SERVICIO","luma2672@gmail.com","3004312298",1]
[289,22444561,"LUZ MARINA DONADO BARRIOS ","Colombia","Atlántico","BARRANQUILLA","TECNCO","LIDER DE  FACTURACION  EN CENTROS DE SALUD","03 de Noviembre de 2020 ","30 de Noviembre de 2020 ",1900000,1900000,"CENTRO DE SALUD  SALAMANCA","Administrativo","PRESTACION DE SERVICIO","ludoba97@hotmail.com","3003900969",12]
[290,32825666,"LUZ STELLA RUIZ SUAREZ","Colombia","Atlántico","SOLEDAD","TECNICO","AUXILIAR DE ENFERMERIA DE RUTA INTEGRAL MATERNO PERINATAL","03 de Noviembre de 2020 ","30 de Noviembre de 2020 ",1399200,1399200,"CENTRO DE SALUD 13 DE JUNIO","Asistencial","PRESTACION DE SERVICIO","luzruizsuarez16@gmail.com","3007231514",12]
[291,32623541,"MAGALYS ESPITIA RAMOS","Colombia","Córdoba","LORICA","BASICA PRIMARIA ","PERSONAL  LIMPIEZA Y ASEO URGENCIA","03 de Noviembre de 2020 ","30 de Noviembre de 2020 ",1653600,1653600,"CENTRO DE SALUD MANUELA BELTRAN ","Administrativo","PRESTACION DE SERVICIO","magaespi2017@gmail.com","3107485557",12]
[292,1140847587,"MAGANY JUDITH JARAMILLO MOLINA","Colombia","Atlántico","BARRANQUILLA","INGENIERIA DE SISTEMAS","INGENIERO DE SISTEMAS","03 de Noviembre de 2020 ","30 de Noviembre de 2020 ",3000000,3000000,"OFICINA  TIC- ADMON  COSTA HERMOSA","Administrativo","PRESTACION DE SERVICIO","magannyjudith@hotmail.com","3752801",7]
[293,1140849940,"MAICOL JOSE MOLINA SOTO","Colombia","Atlántico","BARRANQUILLA","MEDICINA","MEDICO DE URGENCIAS","03 de Noviembre de 2020 ","30 de Noviembre de 2020 ",3072000,3072000,"CENTRO DE SALUD 13 DE JUNIO","Asistencial","PRESTACION DE SERVICIO","michaelmolina92@hotmail.com","3007022650",3]
[294,1048279224,"MAICOL LAURENS FABREGAS","Colombia","Atlántico","BARRANQUILLA","Diploma de Bachiller","ORIENTADOR","03 de Noviembre de 2020 ","30 de Noviembre de 2020 ",2000000,2000000,"CENTRO DE SALUD 13 DE JUNIO","Administrativo","PRESTACION DE SERVICIO","laurensmaicol@gmail.com","3022854307",4]
[295,1001800248,"MAIRA ALEJANDRA CHARRIS BOLAÑO","Colombia","Atlántico","PONEDERA","BACHILLER ACADEMICO ","PERSONAL  LIMPIEZA Y ASEO","03 de Noviembre de 2020 ","30 de Noviembre de 2020 ",1500000,1500000,"CENTRO DE SALUD LA ESPERANZA","Administrativo","PRESTACION DE SERVICIO","maylen0212@hotmail.com","3162237119",2]
[296,8775091,"MANGLIO BOVEA OROZCO","Colombia","Atlántico","SOLEDAD","profesional ","COMUNICADOR SOCIAL -PERIODISMO ","03 de Noviembre de 2020 ","30 de Noviembre de 2020 ",3500000,3500000,"ADMIISTRATIVA-  COSTA HERMOSA","Administrativo","PRESTACION DE SERVICIO","mangliobovea29@gmail.com",3006234895,3]
[297,72286138,"MANUEL ALFONSO LOPEZ SANTANA","Colombia","Atlántico","SANTA LUCÍA","DERECHO","ABOGADO EXTERNO","03 de Noviembre de 2020 ","30 de Noviembre de 2020 ",4000000,4000000,"JURIDICA -ADMON  COSTA HERMOSA","Administrativo","PRESTACION DE SERVICIO","manuelalfonso_10@hotmail.com","3006715383",4]
[298,72142837,"MANUEL GUSTAVO PABA GUETE","Colombia","Atlántico","MAGANGUE","PSICOLOGIA","PSICOLOGO EN PROMOCION Y PREVENCION","03 de Noviembre de 2020 ","30 de Noviembre de 2020 ",3000000,3000000,"CENTRO DE SALUD MANUELA BELTRAN ","Asistencial","PRESTACION DE SERVICIO","manuelpaba@hotmail.com","3002328480",11]
[299,1043027730,"MANUEL JOSE URICOCHEA VASQUEZ","Colombia","Atlántico","SABANALARGA","TECNICA PROFESIONAL DE PROCESOS ADMINISTRATIVOS","GESTION  DOCUMENTAL TALENTO HUMANO ","03 de Noviembre de 2020 ","30 de Noviembre de 2020 ",1900000,1900000,"ARCHIVO CENTRAL","Administrativo","PRESTACION DE SERVICIO","majouriva@hotmail.com",{"$f":"VLOOKUP(C300:C787,[1]OPS!$A$3:$C$492,3,0)","v":3003001789},4]
[300,1042447096,"MARBELYS AHELL RANGEL MERCADO ","Colombia","Atlántico","SOLEDAD","TECNICA PROFESIONAL EN AUXILIAR DE ENFERMERIA","AGENTE CALL CENTER","03 de Noviembre de 2020 ","30 de Noviembre de 2020 ",1378000,1378000,"CALL CENTER -CIUDADELA ","Administrativo","PRESTACION DE SERVICIO","ahell.03sagi@gmail.com","3881504",4]
[301,22605801,"MARCELA PATRICIA TORRES CARROLL","Colombia","Atlántico","BARRANQUILLA","TECNICA PROFESIONAL EN ADMINISTRACION DE ENTIDADES DE SALUD","AUXILIAR FACTURACION URGENCIAS","03 de Noviembre de 2020 ","30 de Noviembre de 2020 ",1680000,1680000,"CENTRO DE  SALUD CIUDADELA METROPOLITANA","Administrativo","PRESTACION DE SERVICIO","mptsebas@hotmail.com","3012088369",1]
[302,72132608,"MARCO AURELIO CASTRO CAICEDO","Colombia","Norte de Santander","CÚCUTA","TECNICA PROFESIONAL EN REPARACION Y MANTENIMIENTO DE COMPUTADORES","AUXILIAR FACTURACION URGENCIAS","03 de Noviembre de 2020 ","30 de Noviembre de 2020 ",1680000,1680000,"CENTRO DE  SALUD CIUDADELA METROPOLITANA","Administrativo","PRESTACION DE SERVICIO","casmar.65@hotmail.com","3215016961",6]
[303,22644933,"MARGARITA PACHECO GUTIERREZ","Colombia","Atlántico","SOLEDAD","TECNICA PROFESIONAL EN LABORATORIO DE PROTESIS DENTAL","HIGIENISTA ORAL","03 de Noviembre de 2020 ","30 de Noviembre de 2020 ",2332000,2332000,"CENTRO DE SALUD 13 DE JUNIO","Asistencial","PRESTACION DE SERVICIO","margaritapg2006@hotmail.com","3004198754",6]
[304,32703976,"MARI ENITH PUELLO BELTRAN","Colombia","Bolívar","MAHATES","TECNICA PROFESIONAL EN ADMINISTRACION DE SERVICIOS DE SALUD","AUXILIAR DE ENFERMERIA CONSULTA EXTERNA ","03 de Noviembre de 2020 ","30 de Noviembre de 2020 ",1166000,1166000,"CENTRO DE SALUD VILLA ESTADIO","Asistencial","PRESTACION DE SERVICIO","marypuello1708@gmail.com","3046376475",12]
[305,1042450048,"MARIA ALEJANDRA DE LA HOZ TOSCANO","Colombia","Atlántico","SOLEDAD","MEDICINA","MEDICO CONSULTA EXTERNA","03 de Noviembre de 2020 ","30 de Noviembre de 2020 ",2120000,2120000,"CENTRO DE SALUD 13 DE JUNIO","Asistencial","PRESTACION DE SERVICIO","md.alejandra@hotmail.com",{"$f":"VLOOKUP(C306:C793,[1]OPS!$A$3:$C$492,3,0)","v":3004988334},4]
[306,1004093696,"MARIA ALTAMAR OROZCO","Colombia","Magdalena","ZAPAYÁN","TECNICO","AUXILIAR DE ENFERMERIA URGENCIAS","03 de Noviembre de 2020 ","30 de Noviembre de 2020 ",1653600,1653600,"CENTRO DE SALUD 13 DE JUNIO","Asistencial","PRESTACION DE SERVICIO","mariaisaaltamar@hotmail.com","3205401716",5]
[307,1045729080,"MARIA DE LOS  ANGELES CASTRO MAESTRE ","Colombia","Atlántico","BARRANQUILLA","FISIOTERAPIA","FISIOTERAPEUTA -EMERGENCIA COVID ","03 de Noviembre de 2020 ","30 de Noviembre de 2020 ",4000000,4000000,"CENTRO DE SALUD  COSTA HERMOSA","Asistencial","PRESTACION DE SERVICIO","mariaaa@gmail.com",311548625,1]
[308,32789239,"MARIA DEL CARMEN GUERRERO OJEDA","Colombia","Atlántico","SOLEDAD","Diploma de Bachiller técnico","ORIENTADOR","03 de Noviembre de 2020 ","30 de Noviembre de 2020 ",1524000,1524000,"CENTRO DE SALUD 13 DE JUNIO","Administrativo","PRESTACION DE SERVICIO","mary-197632@hotmail.com","3005317881",3]
[309,1042449171,"MARIA DEL CARMEN NIEBLES CANDANOZA","Colombia","Atlántico","SOLEDAD","BACHILLER ACADEMICO ","AUXILIAR DE ENFERMERIA ","03 de Noviembre de 2020 ","30 de Noviembre de 2020 ",1166000,1166000,"CENTRO DE SALUD LA ESPERANZA","Asistencial","PRESTACION DE SERVICIO","losangeli@hotmail.com","3022149273",3]
[310,1042440221,"MARIA DEL PILAR DE LA HOZ DE LA HOZ","Colombia","Atlántico","SOLEDAD","BACHILLER ACADEMICO ","AGENTE CALL CENTER","03 de Noviembre de 2020 ","30 de Noviembre de 2020 ",1378000,1378000,"CALL CENTER -CIUDADELA ","Administrativo","PRESTACION DE SERVICIO","delahozmaria16@hotmail.com","3008957524",4]
[311,1140883085,"MARIA FATIMA HERNANDEZ ORTIZ","Colombia","Atlántico","SAN PEDRO","TECNICA PROFESIONAL EN AUXILIAR DE ENFERMERIA","AUXILIAR SERVICIOS AMIGABLES ","03 de Noviembre de 2020 ","30 de Noviembre de 2020 ",1270000,1270000,"CENTRO DE SALUD MANUELA BELTRAN ","Asistencial","PRESTACION DE SERVICIO","maryf.6@hotmail.com","3002346265",4]
[312,1047228049,"MARIA FERNANDA DE LA HOZ DE MOYA","Colombia","Atlántico","GALAPA","ENFERMERIA","ENFERMERA JEFE CONSULTA EXTERNA ","03 de Noviembre de 2020 ","30 de Noviembre de 2020 ",2500000,2500000,"CENTRO DE SALUD  EL PARQUE","Asistencial","PRESTACION DE SERVICIO","juniorbarrios50@gmail.com","3086591",3]
[313,1047341586,"MARIA GUADALUPE MUÑOZ MORALES","Colombia","Atlántico","SANTO TOMAS","ESPECIALIZACION EN GERENCIA DE SERVICIOS DE SALUD","ODONTOLOGO","03 de Noviembre de 2020 ","30 de Noviembre de 2020 ",1900000,1900000,"CENTRO DE  SALUD CIUDADELA METROPOLITANA","Asistencial","PRESTACION DE SERVICIO","mary_lupe20@hotmail.com",{"$f":"VLOOKUP(C314:C801,[1]OPS!$A$3:$C$492,3,0)","v":3023889704},3]
[314,32695840,"MARIA HERRERA CUADROS","Colombia","Atlántico","REPELÓN","Seis (6) años de educación básica Secundaria","HIGIENISTA ORAL SERVICIOS AMIGABLES","03 de Noviembre de 2020 ","30 de Noviembre de 2020 ",2332000,2332000,"CENTRO DE SALUD MANUELA BELTRAN ","Asistencial","PRESTACION DE SERVICIO","chary27vargas@gmail.com","3005868183",12]
[315,32668810,"MARIA ISABEL ALVARADO LOBOS","Colombia","Bolívar","MARGARITA","CONTADURIA","ASISTENTE COORDINACIÓN MÉDICA","03 de Noviembre de 2020 ","30 de Noviembre de 2020 ",2400000,2400000,"CENTRO DE  SALUD CIUDADELA METROPOLITANA","Administrativo","PRESTACION DE SERVICIO","malvarado1900@hotmail.com","3340060",2]
[316,null,"MARIA LUCIA BARRAZA NARVAEZ","Colombia","Atlántico","SABANALARGA","PSICOLOGIA","PSICOLOGA","03 de Noviembre de 2020 ","30 de Noviembre de 2020 ",3000000,3000000,"OFICINA TALENTO HUMANO -ADMON  COSTA HERMOSA","Administrativo","PRESTACION DE SERVICIO",{"$f":"VLOOKUP(C317:C775,[1]OPS!$A$3:$B$493,2,0)","v":"mlbm0728@gmail.com"},{"$f":"VLOOKUP(C317:C780,[1]OPS!$A$3:$C$502,3,0)","v":3103980950},3]
[317,32879250,"MARIA SEGURA MEJIA","Colombia","Córdoba","LORICA","BACHILLER ACADEMICO ","AUXILIAR FACTURACION URGENCIAS","03 de Noviembre de 2020 ","30 de Noviembre de 2020 ",1680000,1680000,"CENTRO DE SALUD 13 DE JUNIO","Administrativo","PRESTACION DE SERVICIO","m-segura31@hotmail.com","3107414236",6]
[318,1042421404,"MARIAM DEL CARMEN CANTILLO MONTERO","Colombia","Atlántico","SOLEDAD","ESPECIALIZACION EN AUDITORIA DE SALUD","AUDITOR DE CALIDAD Y SERVICIOS DE SALUD","03 de Noviembre de 2020 ","30 de Noviembre de 2020 ",4000000,4000000,"OFICINA ADMINISTRATIVA SUBGERENCIA CIENTIFICA -  COSTA HERMOSA","Administrativo","PRESTACION DE SERVICIO","mariamcantillom@hotmail.com",{"$f":"VLOOKUP(C319:C806,[1]OPS!$A$3:$C$492,3,0)","v":3017396027},7]
[319,72043527,"MARIANO DE JESUS BARRIOS ELLES ","Colombia","Atlántico","BARRANQUILLA","TECNOLOGIA EN GESTION ADMINISTRATIVA","LIDER CALL CENTER ","03 de Noviembre de 2020 ","30 de Noviembre de 2020 ",3000000,3000000,"CALL CENTER -CIUDADELA ","Administrativo","PRESTACION DE SERVICIO","marianobarrioselles@hotmail.com","3002316754",10]
[320,32817243,"MARIBEL MARIA  MORENO MARIN ","Colombia","Atlántico","SOLEDAD","ESPECIALIZACION EN GERENCIA DE SERVICIOS DE SALUD","AUDITOR DE CALIDAD Y SERVICIOS DE SALUD","03 de Noviembre de 2020 ","30 de Noviembre de 2020 ",4000000,4000000,"OFICINA ADMINISTRATIVA SUBGERENCIA CIENTIFICA -  COSTA HERMOSA","Administrativo","PRESTACION DE SERVICIO","mamoma-@hotmail.com",301568232,8]
[321,32819834,"MARIBEL NIEBLES ESCORCIA","Colombia","Atlántico","SOLEDAD","TECNICO PROFESIONAL EN SALUD ORAL","AUXILIAR DE ODONTOLOGIA","03 de Noviembre de 2020 ","30 de Noviembre de 2020 ",1166000,1166000,"CENTRO DE SALUD LA ESPERANZA","Asistencial","PRESTACION DE SERVICIO","maribelniebles61@hotmail.com","3002366934",12]
[322,22819397,"MARIBEL PONCE  MACHACADO ","Colombia","Bolívar","BARRANCO DE LOBA","ESPECIALIZACION EN AUDITORIA DE SERVICIOS DE SALUD","AUDITOR DE CALIDAD Y SERVICIOS DE SALUD","03 de Noviembre de 2020 ","30 de Noviembre de 2020 ",3500000,3500000,"OFICINA ADMINISTRATIVA SUBGERENCIA CIENTIFICA -  COSTA HERMOSA","Administrativo","PRESTACION DE SERVICIO","machamari2000@hotmail.com","3126976436",7]
[{"$f":"+A323+1","v":323},1140867598,"MARLA HERRERA MERIÑO","Colombia","Magdalena","PEDRAZA","Diploma de Bachiller técnico","AUXILIAR DE ENFERMERIA URGENCIAS","03 de Noviembre de 2020 ","30 de Noviembre de 2020 ",1653600,1653600,"CENTRO DE  SALUD CIUDADELA METROPOLITANA","Asistencial","PRESTACION DE SERVICIO","marla_herrera93@hotmail.com","3004284453",5]
[324,22694593,"MARLENE JUDITH GARIZABALO PERTUZ","Colombia","Atlántico","SOLEDAD","BACHILLER ACADEMICO ","PERSONAL  LIMPIEZA Y ASEO","03 de Noviembre de 2020 ","30 de Noviembre de 2020 ",1215000,1215000,"CENTRO DE SALUD  SALAMANCA","Administrativo","PRESTACION DE SERVICIO","marlenegarizabalopertuz@gmail.com","3007760107",3]
[325,22732194,"MARLEY VASQUEZ VARGAS","Colombia","Atlántico","BARRANQUILLA","TECNICO","LIDER DE  FACTURACION  EN CENTROS DE SALUD","03 de Noviembre de 2020 ","30 de Noviembre de 2020 ",2000000,2000000,"FACTURACION CENTRAL-COSTA HERMOSA","Administrativo","PRESTACION DE SERVICIO","marleyvasquezv@hotmail.com","3022851955",3]
[326,72158729,"MARLON CAMILO JORDAN HERRERA","Colombia","Atlántico","BARRANQUILLA","TECNICO","REFERENCIA Y CONTRAREFERENCIA","03 de Noviembre de 2020 ","30 de Noviembre de 2020 ",1776000,1776000,"CENTRO DE SALUD 13 DE JUNIO","Asistencial","PRESTACION DE SERVICIO","major-2370@hotmail.com","3017180857",9]
[327,26694748,"MARTA LIGIA BARRANCO MEZA ","Colombia","Magdalena","CERRO SAN ANTONIO","Diploma de Bachiller","PERSONAL  LIMPIEZA Y ASEO","03 de Noviembre de 2020 ","30 de Noviembre de 2020 ",1215000,1215000,"CENTRO DE SALUD  SALAMANCA","Administrativo","PRESTACION DE SERVICIO","malibame01@hotmail.com","3012727634",6]
[328,22646602,"MARTHA CECILIA PICO OROZCO","Colombia","Atlántico","SOLEDAD","TECNICO PROFESIONAL EN ATENCION PREHOSPITALARIA","AUXILIAR DE AUTORIZACIONES ","03 de Noviembre de 2020 ","30 de Noviembre de 2020 ",1653600,1653600,"CENTRO DE SALUD 13 DE JUNIO","Asistencial","PRESTACION DE SERVICIO","marthapicoorozco1@hotmail.com","3006723118",12]
[329,1047334999,"MARTHA INES SALCEDO HUN","Colombia","Atlántico","SANTO TOMÁS","ESPECIALIZACION EN ANALISIS Y GESTION AMBIENTAL","ASESORA GESTION AMBIENTAL ","03 de Noviembre de 2020 ","30 de Noviembre de 2020 ",5800000,5800000,"ADMON COSTA HERMOSA","Administrativo","PRESTACION DE SERVICIO","msalcedohun@hotmail.com","3307190",7]
[330,1001876000,"MARTHA JOSEFA SOLANO GUTIERREZ","Colombia","Atlántico","SOLEDAD","TECNICA PROFESIONAL EN SECRETARIADO","AGENTE CALL CENTER ","03 de Noviembre de 2020 ","30 de Noviembre de 2020 ",1378000,1378000,"CALL CENTER -CIUDADELA ","Administrativo","PRESTACION DE SERVICIO","dagojunior-15@hotmail.co","3002562957",4]
[331,1044801313,"MARTHA KARENA PACHECO LASCANO","Colombia","Atlántico","PIOJÓ","Diploma de Bachiller","AUXILIAR ADMINISTRATIVO FACRURACION ","03 de Noviembre de 2020 ","30 de Noviembre de 2020 ",2500000,2500000,"CENTRO DE SALUD  SALAMANCA","Administrativo","PRESTACION DE SERVICIO","martha.2092@hotmail.com","3113052380",3]
[332,44205287,"MARTHA KATERINE MEJIA FRUTO","Colombia","Atlántico","SANTO TOMÁS","TECNICA PROFESIONAL EN ARCHIVO","AUXILIAR ADMINISTRATIVO  RECEPCION ","03 de Noviembre de 2020 ","30 de Noviembre de 2020 ",1900000,1900000,"ADMIISTRATIVA-  COSTA HERMOSA","Administrativo","PRESTACION DE SERVICIO","marthakate@outlook.com","3014261935",4]
[333,1001798861,"MARTHA LAURA VIZCAINO PEREZ","Colombia","Atlántico","PONEDERA","Diploma de Bachiller agropecuario","DIGITADOR PAI WEB ","03 de Noviembre de 2020 ","30 de Noviembre de 2020 ",1458000,1458000,"OFICNA PAI WEB -ARCHIVO CENTRAL","Administrativo","PRESTACION DE SERVICIO","marthavizcaino010@gmail.com","3024530541",3]
[334,1002377619,"MARTHA LILIANA MULETH NAZZAR","Colombia","Bolívar","MOMPÓS","ENFERMERIA","ENFERMERA JEFE-MATERNIDAD SEGURA ","03 de Noviembre de 2020 ","30 de Noviembre de 2020 ",2300000,2300000,"CENTRO DE SALUD 13 DE JUNIO","Asistencial","PRESTACION DE SERVICIO","marthanazzar30@gmail.com","3004750135",2]
[335,1047337864,"MARTHA MARÍA ARIZA FONTALVO","Colombia","Atlántico","SANTO TOMÁS","CONTADURIA PUBLICA","AUXILIAR DE ARCHIVO ","03 de Noviembre de 2020 ","30 de Noviembre de 2020 ",1500000,1500000,"ARCHIVO CENTRAL","Administrativo","PRESTACION DE SERVICIO","marthaariza10@hotmail.com","3046245323",3]
[336,39013975,"MARTHA MARMOL ARIAS","Colombia","Atlántico","EL BANCO","BACHILLER ACADEMICO ","PERSONAL  LIMPIEZA Y ASEO","03 de Noviembre de 2020 ","30 de Noviembre de 2020 ",1215000,1215000,"CENTRO DE SALUD  EL PARQUE","Administrativo","PRESTACION DE SERVICIO","marthamarmolarias@gmail.com","3005985258",10]
[337,57270649,"MARTHA MATILDE JIMENEZ ROMERO","Colombia","Magdalena","FUNDACIÓN","ESPECIALIZACION EN GERENCIA Y AUDITORIA DE LA CALIDAD DE LA SALUD.","AUDITOR DE CALIDAD Y SERVICIOS DE SALUD","03 de Noviembre de 2020 ","30 de Noviembre de 2020 ",4000000,4000000,"OFICINA ADMINISTRATIVA SUBGERENCIA CIENTIFICA -  COSTA HERMOSA","Administrativo","PRESTACION DE SERVICIO","marthamjimenezr@hotmail.com","3017604594",6]
[338,8638052,"MARTIN RAFAEL CORONADO PACHECO","Colombia","Atlántico","SABANALARGA","BACHILLER ACADEMICO ","ORIENTADOR ","03 de Noviembre de 2020 ","30 de Noviembre de 2020 ",1800000,1800000,"CENTRO DE SALUD LA ESPERANZA","Administrativo","PRESTACION DE SERVICIO","martincoronadopacheco@gmail.com","8780458",4]
[339,32651445,"MARTIZA SARMIENTO  SANTOS ","Colombia","Bogotá D.C","BOGOTÁ","MEDICINA","ASESOR DE PLANEACION ESTRATÉGICA  Y SISTEMAS DE  GESTIÓN CALIDAD /AMBIENTE/SST ","03 de Noviembre de 2020 ","30 de Noviembre de 2020 ",5800000,5800000,"GERENCIA -ADMON  COSTA HERMOSA","Administrativo","PRESTACION DE SERVICIO","maritzasarmiento_15@hotmail.com","3018464",11]
[340,55227166,"MARYI PEREZ CASSIANI","Colombia","Atlántico","BARRANQUILLA","ENFERMERIA","ENFERMERA JEFE URGENCIAS ","03 de Noviembre de 2020 ","30 de Noviembre de 2020 ",2280000,2280000,"CENTRO DE  SALUD CIUDADELA METROPOLITANA","Asistencial","PRESTACION DE SERVICIO","perezcassiani@hotmail.com","3217041123",10]
[341,32896837,"MARYULIS PATRICIA CRUZ JIMENEZ","Colombia","Atlántico","BARRANQUILLA","Seis (6) años de educación básica Secundaria","ENFERMERA JEFE DE PROMOCIÓN Y MANTENIMIENTO DE LA SALUD","03 de Noviembre de 2020 ","30 de Noviembre de 2020 ",2300000,2300000,"CENTRO DE SALUD  SALAMANCA","Asistencial","PRESTACION DE SERVICIO","maryuliscruz@hotmail.com","3015397695",12]
[342,26762874,"MARYURIS ALTAHONA  MORENO ","Colombia","Magdalena","ARACATACA","MEDICINA","MEDICO DE RUTA INTEGRAL MATERNO PERINATAL ","03 de Noviembre de 2020 ","30 de Noviembre de 2020 ",2544000,2544000,"CENTRO DE SALUD 13 DE JUNIO","Asistencial","PRESTACION DE SERVICIO","maryu3020@hotmail.com","3016710154",9]
[343,1045721126,"MARYURIS JOANNA GALVAN NAVARRO","Colombia","Atlántico","ARACATACA","PROFESIONAL ","LIDER  LABORATORIO","03 de Noviembre de 2020 ","30 de Noviembre de 2020 ",5000000,5000000,"OFICINA ADMINISTRATIVA SUBGERENCIA CIENTIFICA -  COSTA HERMOSA","Administrativo","PRESTACION DE SERVICIO","majo-gana@hotmail.com",{"$f":"VLOOKUP(C344:C831,[1]OPS!$A$3:$C$492,3,0)","v":3003002560},7]
[344,1001878251,"MAYRA ALEJANDRA ESCORCIA DE LA HOZ","Colombia","Atlántico","SOLEDAD","TECNICO","AUXILIAR DE ARCHIVO ","03 de Noviembre de 2020 ","30 de Noviembre de 2020 ",1500000,1500000,"ARCHIVO CENTRAL","Administrativo","PRESTACION DE SERVICIO","delalissy50@gmail.com",{"$f":"VLOOKUP(C345:C832,[1]OPS!$A$3:$C$492,3,0)","v":335261325},6]
[345,1042422315,"MAYRA ALEJANDRA GARCIA CASTILLO","Colombia","Atlántico","CIÉNAGA","FISIOTERAPIA","FISIOTERAPEUTA- EMERGENCIA COVID19 ","03 de Noviembre de 2020 ","30 de Noviembre de 2020 ",2850000,2850000,"CENTRO DE SALUD  COSTA HERMOSA","Asistencial","PRESTACION DE SERVICIO","mayragarcia1987@hotmail.com","3008362325",3]
[346,1043876764,"MELANI ISABEL PERTUZ HERRERA","Colombia","Atlántico","PALMAR DE VARELA","TECNICO","AUXILIAR ADMINISTRATIVO -  SUBGERENCIA ADMINISTRATIVA","03 de Noviembre de 2020 ","30 de Noviembre de 2020 ",2200000,2200000,"ADMIISTRATIVA-  COSTA HERMOSA","Administrativo","PRESTACION DE SERVICIO","melanysisabel@hotmail.com",{"$f":"VLOOKUP(C347:C834,[1]OPS!$A$3:$C$492,3,0)","v":3022367186},3]
[347,22457575,"MELBA MEZA PERDOMO","Colombia","Atlántico","BARRANQUILLA","TRABAJO SOCIAL","TRABAJADORA SOCIAL ","03 de Noviembre de 2020 ","30 de Noviembre de 2020 ",2200000,2200000,"CENTRO DE SALUD  EL PARQUE","Asistencial","PRESTACION DE SERVICIO","melbamezaperdomo@hotmail.com","3006002341",4]
[348,1041898122,"MELIZA MORALES PALLARES","Colombia","Atlántico","SABANALARGA","TECNICO PROFESIONAL DE ADMINISTRACION DE EMPRESAS","AUXILIAR ADMINISTRATIVO  ","03 de Noviembre de 2020 ","30 de Noviembre de 2020 ",2000000,2000000,"ADMIISTRATIVA-  COSTA HERMOSA","Administrativo","PRESTACION DE SERVICIO","melizamorales21@hotmail.com",{"$f":"VLOOKUP(C349:C836,[1]OPS!$A$3:$C$492,3,0)","v":3045357392},3]
[349,33309749,"MELVIS PALENCIA SOLIS","Colombia","Bolívar","MAGANGUÉ","TECNICO PROFESIONAL EN SECRETARIADO EJECUTIVO COMERCIAL SISTEMATIZADO","AGENTE CALL CENTER","03 de Noviembre de 2020 ","30 de Noviembre de 2020 ",1378000,1378000,"CALL CENTER -CIUDADELA ","Administrativo","PRESTACION DE SERVICIO","mel1_21ps@hotmail.com",{"$f":"VLOOKUP(C350:C837,[1]OPS!$A$3:$C$492,3,0)","v":3002101800},5]
[350,55221348,"MERCEDES SUSANA ESTARITA GUTIERREZ DE PIÑERES","Colombia","Atlántico","SOLEDAD","TECNICO","AUXILIAR DE ARCHIVO ","03 de Noviembre de 2020 ","30 de Noviembre de 2020 ",2000000,2000000,"ARCHIVO CENTRAL","Administrativo","PRESTACION DE SERVICIO","mechy1911@hotmail.com","3045514974",3]
[351,1042418352,"MERJORIE CABEZA CASTILLO","Colombia","Atlántico","BARRANQUILLA","Diploma de Bachiller técnico","AUXILIAR DE ENFERMERIA DE PROMOCIÓN Y MANTENIMIENTO DE LA SALUD","03 de Noviembre de 2020 ","30 de Noviembre de 2020 ",1166000,1166000,"CENTRO DE SALUD MANUELA BELTRAN ","Asistencial","PRESTACION DE SERVICIO","merjorie0403@hotmail.com","3004985868",10]
[352,32729889,"MERLY ISABEL BARRAZA TOLEDO","Colombia","Atlántico","BARRANQUILLA","TECNICA PROFESIONAL EN AUXILIAR DE ENFERMERIA","AUXILIAR DE ENFERMERIA CONSULTA EXTERNA ","03 de Noviembre de 2020 ","30 de Noviembre de 2020 ",1166000,1166000,"CENTRO DE SALUD VILLA ESTADIO","Asistencial","PRESTACION DE SERVICIO","barrazamerly96@gmail.com","3002203381",4]
[353,1129532724,"MICHELLY SANDOVAL ACUÑA","Colombia","Atlántico","BARRANQUILLA","MEDICINA","AUDITOR MEDICO  - EPIDEMIOLOGA  COORDINACION- EMERGENCIA COVID19","03 de Noviembre de 2020 ","30 de Noviembre de 2020 ",6044000,6044000,"CENTRO DE SALUD  COSTA HERMOSA","Administrativo","PRESTACION DE SERVICIO","chellysandoval20@gmail.com","3003498275",6]
[354,8507626,"MIGUEL ALVAREZ SALCEDO","Colombia","Atlántico","SOLEDAD","TECNOLOGIA EN ELECTRICIDAD INDUSTRIAL","CONDUCTOR DE AMBULANCIA","03 de Noviembre de 2020 ","30 de Noviembre de 2020 ",2160000,2160000,"CENTRO DE SALUD 13 DE JUNIO","Asistencial","PRESTACION DE SERVICIO","miguelalvarezsalcedo@hotmail.com ","3182472133",7]
[355,45757809,"MILADIS MARINA MARTINEZ MEDINA","Colombia","Atlántico","ZAMBRANO","TRABAJO SOCIAL","LIDER SIAU","03 de Noviembre de 2020 ","30 de Noviembre de 2020 ",3000000,3000000,"OFICINA ADMINISTRATIVA SUBGERENCIA CIENTIFICA -  COSTA HERMOSA","Administrativo","PRESTACION DE SERVICIO","marmed1456@gmail.com",{"$f":"VLOOKUP(C356:C843,[1]OPS!$A$3:$C$492,3,0)","v":3507276845},8]
[356,1129519216,"MILAGRO HERRERA MOJICA","Colombia","Atlántico","BARRANQUILLA","MEDICINA","MEDICO DE URGENCIAS","03 de Noviembre de 2020 ","30 de Noviembre de 2020 ",3072000,3072000,"CENTRO DE SALUD 13 DE JUNIO","Asistencial","PRESTACION DE SERVICIO","milisita1986@hotmail.com",{"$f":"VLOOKUP(C357:C844,[1]OPS!$A$3:$C$492,3,0)","v":3186234206},4]
[357,22468835,"MILAGROS INMACULADA  GUZMAN FERNANDEZ ","Colombia","Atlántico","BARRANQUILLA","ODONTOLOGIA","ODONTOLOGO","03 de Noviembre de 2020 ","30 de Noviembre de 2020 ",1900000,1900000,"CENTRO DE SALUD 13 DE JUNIO","Asistencial","PRESTACION DE SERVICIO","milagrosguzman12@hotmail.com","3182229",9]
[358,32862578,"MILDRIS PATRICIA QUIJANO VILORIA","Colombia","Atlántico","BARRANQUILLA","TECNICA PROFESIONAL EN ADMINISTRACION DE RECURSOS HUMANOS","HIGIENISTA ORAL","03 de Noviembre de 2020 ","30 de Noviembre de 2020 ",1166000,1166000,"CENTRO DE SALUD 13 DE JUNIO","Asistencial","PRESTACION DE SERVICIO","ejgs8105@hotmail.com","3927396",8]
[359,32829531,"MILENA DONADO OCHOA","Colombia","Atlántico","SOLEDAD","ODONTOLOGIA","APOYO  COORDINACION  ODONTOLOGIA ","03 de Noviembre de 2020 ","30 de Noviembre de 2020 ",4000000,4000000,"OFICINA ADMINISTRATIVA SUBGERENCIA CIENTIFICA -  COSTA HERMOSA","Administrativo","PRESTACION DE SERVICIO",{"$f":"VLOOKUP(C360:C818,[1]OPS!$A$3:$B$493,2,0)","v":"milenadonado@hotmail.com"},{"$f":"VLOOKUP(C360:C823,[1]OPS!$A$3:$C$502,3,0)","v":3022693361},13]
[360,32787314,"MILENA HERRERA BENAVIDES","Colombia","Atlántico","BARRANQUILLA","TECNICA PROFESIONAL EN AUXILIAR DE ENFERMERIA","AUXILIAR DE ENFERMERIA DE RUTA INTEGRAL MATERNO PERINATAL","03 de Noviembre de 2020 ","30 de Noviembre de 2020 ",1399200,1399200,"CENTRO DE  SALUD CIUDADELA METROPOLITANA","Asistencial","PRESTACION DE SERVICIO","mileh1975@hotmail.com","3748267",4]
[361,1045689538,"MILLER TEDYS MEDRANO CASTRO","Colombia","Atlántico","BARRANQUILLA","TECNOLOGIA EN RADIOLOGIA E IMAGENES DIAGNOSTICAS","TECNOLOGO EN RADIOLOGIA","03 de Noviembre de 2020 ","30 de Noviembre de 2020 ",1800000,1800000,"CENTRO DE  SALUD CIUDADELA METROPOLITANA","Asistencial","PRESTACION DE SERVICIO","millmedranocastro@gmail.com","3043980864",6]
[362,72268005,"MILTON SOLARTE RODRIGUEZ","Colombia","Atlántico","BARRANQUILLA","TECNOLOGIA EN ANALISIS Y DISEÑO DE SISTEMAS Y COMPUTACION","APOYO EN ANALISIS Y DESARROLLO DE  INFORMACION EN FACTURACION CENTRAL (RIPS)","03 de Noviembre de 2020 ","30 de Noviembre de 2020 ",3000000,3000000,"FACTURACION CENTRAL-COSTA HERMOSA","Administrativo","PRESTACION DE SERVICIO","mmsr1982@hotmail.com","3013156877",12]
[363,22693871,"MIRIAM VILLAREAL DE ALBA","Colombia","Atlántico","SOLEDAD","Diploma de Bachiller técnico comercial","PERSONAL  LIMPIEZA Y ASEO","03 de Noviembre de 2020 ","30 de Noviembre de 2020 ",1215000,1215000,"CENTRO DE SALUD  COSTA HERMOSA","Administrativo","PRESTACION DE SERVICIO","mvillareal460@gmail.com","3152497703",5]
[364,32814938,"MOIRA SANDOVAL PEDRAZA","Colombia","Atlántico","SOLEDAD","TECNICA PROFESIONAL EN AUXILIAR DE ENFERMERIA","AUXILIAR DE ENFERMERIA PROMOTORA EN SALUD","03 de Noviembre de 2020 ","30 de Noviembre de 2020 ",1458000,1458000,"CENTRO DE  SALUD CIUDADELA METROPOLITANA","Asistencial","PRESTACION DE SERVICIO","moirasandovalp1962@gmail.com","3013128432",11]
[365,32872397,"MONICA PATRICIA DOVALE GALLEGO","Colombia","Atlántico","FONSECA","TRABAJO SOCIAL","LIDER SISTEMA DE GESTION Y SEGURIDAD EN EL TRABAJO","04  de Mayo de 2020 ","31 de diciembre de 2020 ",5800000,46400000,"ADMIISTRATIVA-  COSTA HERMOSA","Administrativo","PRESTACION DE SERVICIO","monidova@gmail.com",3013962263,5]
[366,22443679,"MONICA PEREZ RODRIGUEZ ","Colombia","Atlántico","BARRANQUILLA","FISIOTERAPIA","FISIOTERAPEUTA ","03 de Noviembre de 2020 ","30 de Noviembre de 2020 ",2700000,2700000,"CENTRO DE  SALUD CIUDADELA METROPOLITANA","Asistencial","PRESTACION DE SERVICIO","monykfrank_99@hotmail.com","3244794",12]
[367,73432782,"NAFER GENIS CARDENAS TEHERAN","Colombia","Atlántico","EL CARMEN DE BOLIVAR","BACHILLER ACADEMICO ","ORIENTADOR","03 de Noviembre de 2020 ","30 de Noviembre de 2020 ",1270000,1270000,"LA CENTRAL","Administrativo","PRESTACION DE SERVICIO","nafercardenas1980@gmail.com","3207169967",2]
[368,32623574,"NANCY MARINA TAPIERO ACOSTA","Colombia","Atlántico","BARRANQUILLA","Cinco (5) años de educación básica Secundaria","ABOGADO EXTERNO","03 de Noviembre de 2020 ","30 de Noviembre de 2020 ",4000000,4000000,"JURIDICA -ADMON  COSTA HERMOSA","Administrativo","PRESTACION DE SERVICIO","tapieromillan@gmail.com","3173642925",5]
[369,32730545,"NASLY DEL CARMEN CAMPO MARTINEZ","Colombia","Atlántico","EL BAGRE","TECNICO","AUXILIAR DE ARCHIVO ","03 de Noviembre de 2020 ","30 de Noviembre de 2020 ",1600000,1600000,"ARCHIVO CENTRAL","Administrativo","PRESTACION DE SERVICIO","naslycampomartinez@gmail.com","3012526830",2]
[370,52618443,"NATALIA ALONSO CARVAJAL","Colombia","Atlántico","BOGOTA","PROFESIONAL ","ASESOR GERENCIA","03 de Noviembre de 2020 ","30 de Noviembre de 2020 ",5800000,5800000,"GERENCIA -ADMON  COSTA HERMOSA","Administrativo","PRESTACION DE SERVICIO","nataliaalonso722@yahoo.es",{"$f":"VLOOKUP(C371:C858,[1]OPS!$A$3:$C$492,3,0)","v":3002375591},5]
[371,55307414,"NATALY DE LAS SALAS ORTEGA","Colombia","Atlántico","BARRANQUILLA","PSICOLOGIA","PSICOLOGA","03 de Noviembre de 2020 ","30 de Noviembre de 2020 ",2500000,2500000,"CENTRO DE SALUD  EL PARQUE","Asistencial","PRESTACION DE SERVICIO","natadelassalas@hotmail.com","3205767189",4]
[372,26910232,"NELCY ALMARALES AYALA","Colombia","Magdalena","SITIONUEVO","TRABAJO SOCIAL","TRABAJADORA SOCIAL ","03 de Noviembre de 2020 ","30 de Noviembre de 2020 ",2200000,2200000,"CENTRO DE SALUD VILLA ESTADIO","Asistencial","PRESTACION DE SERVICIO","neal17301@hotmail.com","3003617097 ",10]
[373,32819548,"NELLY GALAN HEILBRON","Colombia","Atlántico","SOLEDAD","TECNICO","AUXILIAR DE ENFERMERIA PROMOTORA EN SALUD","03 de Noviembre de 2020 ","30 de Noviembre de 2020 ",1215000,1215000,"CENTRO DE SALUD 13 DE JUNIO","Asistencial","PRESTACION DE SERVICIO","nellygalan1163@gmail.com","3046489030",12]
[374,32812585,"NESLIE OSORIO PARODIS","Colombia","Magdalena","PEDRAZA","TECNICA PROFESIONAL EN AUXILIAR DE ENFERMERIA","VACUNADOR(A)","03 de Noviembre de 2020 ","30 de Noviembre de 2020 ",1400000,1400000,"CENTRO VACUNACION  MANUELA BELTRAN","Asistencial","PRESTACION DE SERVICIO","neslieosorio@hotmail.com","3005435313",6]
[375,1140877960,"NICAULIS RODRIGUEZ GOMEZ","Colombia","Atlántico","BARRANQUILLA","TECNOLOGIA EN GESTION CONTABLE","AUXILIAR FACTURACION URGENCIAS","03 de Noviembre de 2020 ","30 de Noviembre de 2020 ",1680000,1680000,"CENTRO DE  SALUD CIUDADELA METROPOLITANA","Administrativo","PRESTACION DE SERVICIO","nrodriguezgomez09@hotmail.com","301 5426227",5]
[376,1042426937,"NIDIA ESTHER RAMOS MARTINEZ","Colombia","Atlántico","SOLEDAD","TECNICA PROFESIONAL EN AUXILIAR DE ENFERMERIA","AUXILIAR DE ENFERMERIA -CARDIOVASCULAR","03 de Noviembre de 2020 ","30 de Noviembre de 2020 ",1166000,1166000,"CENTRO DE SALUD  SALAMANCA","Asistencial","PRESTACION DE SERVICIO","nidiaramos1987@gmail.com","3052956728",5]
[377,32740234,"NIDIA VEGA CORREA","Colombia","Atlántico","SOLEDAD","BASICA PRIMARIA ","PERSONAL  LIMPIEZA Y ASEO","03 de Noviembre de 2020 ","30 de Noviembre de 2020 ",1215000,1215000,"CENTRO DE SALUD  COSTA HERMOSA","Administrativo","PRESTACION DE SERVICIO","nidiavegacorrea24@hotmail.com","3235962083",11]
[378,72222215,"NILSON ALMARALES GARIZABALO","Colombia","Magdalena","CIÉNAGA","MEDICINA","MEDICO  MATERNIDAD SEGURA Y URGENCIA","03 de Noviembre de 2020 ","30 de Noviembre de 2020 ",6212000,6212000,"CENTRO DE SALUD 13 DE JUNIO","Asistencial","PRESTACION DE SERVICIO","nilson_almarales@hotmail.com","3012110611",6]
[379,8603175,"NILSON ORTEGA JIMENEZ","Colombia","Atlántico","REPELÓN","BACHILLER ACADEMICO ","AUXILIAR ADMINISTRATIVO  TALENTO HUMANO","03 de Noviembre de 2020 ","30 de Noviembre de 2020 ",2500000,2500000,"OFICINA TALENTO HUMANO -ADMON  COSTA HERMOSA","Administrativo","PRESTACION DE SERVICIO","niorji1975@hotmail.com","3007794321",7]
[380,32855196,"NINI JHOANA CHARRIS ENRIQUE","Colombia","Atlántico","SABANALARGA","TECNICO","AUXILIAR DE ENFERMERIA URGENCIAS","03 de Noviembre de 2020 ","30 de Noviembre de 2020 ",1653600,1653600,"CENTRO DE SALUD 13 DE JUNIO","Asistencial","PRESTACION DE SERVICIO","ninicharriss17@gmail.com","3104715124",5]
[381,22646712,"NINI JOHANA SOLANO MORENO","Colombia","Atlántico","SOLEDAD","BACHILLER ACADEMICO ","ENFERMERA JEFE URGENCIAS ","03 de Noviembre de 2020 ","30 de Noviembre de 2020 ",2280000,2280000,"CENTRO DE SALUD 13 DE JUNIO","Asistencial","PRESTACION DE SERVICIO","johannasolanomoreno@hotmail.es","3240450",5]
[382,32828506,"NINOSKA CELESTE BARCELÓ OVIEDO","Colombia","Atlántico","SOLEDAD","ESPECIALIZACION EN DESARROLLO FAMILIAR","PSICOLOGA SIAU","03 de Noviembre de 2020 ","30 de Noviembre de 2020 ",2200000,2200000,"CENTRO DE SALUD LA ESPERANZA","Asistencial","PRESTACION DE SERVICIO","ninoskaceleste@hotmail.com","3114849093",5]
[383,22642515,"NOHEMI ESPERANZA CASTRO LOPEZ","Colombia","Atlántico","SOLEDAD","DERECHO","AUDITOR DE CALIDAD Y SERVICIOS DE SALUD","03 de Noviembre de 2020 ","30 de Noviembre de 2020 ",4000000,4000000,"OFICINA ADMINISTRATIVA SUBGERENCIA CIENTIFICA -  COSTA HERMOSA","Administrativo","PRESTACION DE SERVICIO","nohemycl@gmail.com","3016203332",10]
[384,32822947,"NOHORA ISABEL POLO ORTIZ","Colombia","Atlántico","SOLEDAD","BACHILLER ACADEMICO ","TRABAJADORA SOCIAL ","03 de Noviembre de 2020 ","30 de Noviembre de 2020 ",2200000,2200000,"CENTRO DE SALUD MANUELA BELTRAN ","Asistencial","PRESTACION DE SERVICIO","nohorapolo@hotmail.com","3135879548",12]
[385,32852247,"NORELLYS PAOLA MACHACON PRIETO","Colombia","Atlántico","SABANALARGA","ESPECIALIZACION EN GERENCIA DE LA CALIDAD Y AUDITORIA EN SALUD","APOYO  SISTEMA DE  GESTION","03 de Noviembre de 2020 ","30 de Noviembre de 2020 ",4000000,4000000,"OFICINA ADMINISTRATIVA SUBGERENCIA CIENTIFICA -  COSTA HERMOSA","Administrativo","PRESTACION DE SERVICIO","norepao@hotmail.com","3145350736",10]
[386,1047230116,"NORIS MARIA GUTIERREZ ACOSTA","Colombia","Atlántico","SOLEDAD","BACHILLER ACADEMICO ","AUXILIAR FACTURACION URGENCIAS","03 de Noviembre de 2020 ","30 de Noviembre de 2020 ",1680000,1680000,"CENTRO DE  SALUD CIUDADELA METROPOLITANA","Administrativo","PRESTACION DE SERVICIO","princesa_0730@hotmail.com","3006546285",3]
[{"$f":"+A387+1","v":387},39282489,"NORIS SOFIA BERTEL PEREZ","Colombia","Antioquia","NECHÍ","Diploma de Bachiller técnico","PERSONAL  LIMPIEZA Y ASEO URGENCIA","03 de Noviembre de 2020 ","30 de Noviembre de 2020 ",1653600,1653600,"CENTRO DE SALUD 13 DE JUNIO","Administrativo","PRESTACION DE SERVICIO","noris.bertelp@gmail.com","3107162376",4]
[388,32862644,"NURYS GARCIA DELGADO","Colombia","Atlántico","BARRANQUILLA","Diploma de Bachiller","AGENTE CALL CENTER","03 de Noviembre de 2020 ","30 de Noviembre de 2020 ",1378000,1378000,"CALL CENTER -CIUDADELA ","Administrativo","PRESTACION DE SERVICIO","estefanycontrerasmejia@outlook.com","3023717378",2]
[389,8772224,"OLAINER MONTERO CASTRO ","Colombia","Atlántico","SOLEDAD","Diploma de Bachiller","LIDER DE  FACTURACION  EN CENTROS DE SALUD","03 de Noviembre de 2020 ","30 de Noviembre de 2020 ",2160000,2160000,"CENTRO DE SALUD 13 DE JUNIO","Administrativo","PRESTACION DE SERVICIO","olainermontero@hotmail.com","3163183",12]
[390,32863854,"OLGA BARRIOS BACCA","Colombia","Atlántico","SOLEDAD","ESPECIALIZACION EN CUIDADO DE ENFERMERIA AL PACIENTE CON CANCER Y SU FAMILIA","VACUNADOR(A)","03 de Noviembre de 2020 ","30 de Noviembre de 2020 ",1400000,1400000,"CENTRO VACUNACION  MANUELA BELTRAN","Asistencial","PRESTACION DE SERVICIO","olgabarrio_1@hotmail.com","3929039",12]
[391,1048267612,"OLGA DE AVILA ARRIETA","Colombia","Atlántico","BARRANQUILLA","ESPECIALIZACION  EN GESTION DE LA CALIDAD Y AUDITORIA DE SERVICIOS DE SALUD","MEDICO DE RUTA INTEGRAL MATERNO PERINATAL ","03 de Noviembre de 2020 ","30 de Noviembre de 2020 ",5088000,5088000,"CENTRO DE  SALUD CIUDADELA METROPOLITANA","Asistencial","PRESTACION DE SERVICIO","olgaluciadeavila@hotmail.com","3004470389",7]
[392,1048217027,"ONEIDA SAMIRA MARQUEZ NARVAEZ","Colombia","Atlántico","BARANOA","CIENCIA POLITICA Y GOBIERNO","PROFESIONAL - POLITOLOGA","03 de Noviembre de 2020 ","30 de Noviembre de 2020 ",4000000,4000000,"ESTADISTICA -ADMON  COSTA HERMOSA","Administrativo","PRESTACION DE SERVICIO","vale141293@hotmail.com","3186414192",5]
[393,8750360,"OSCAR HUMBERTO  GERALDINO CAPDEVILLA","Colombia","Atlántico","SOLEDAD","MEDICINA","MEDICO CONSULTA EXTERNA Y APOYO COORDINACION MEDICA ","03 de Noviembre de 2020 ","30 de Noviembre de 2020 ",4240000,4240000,"LA CENTRAL","Asistencial","PRESTACION DE SERVICIO","oscargeraldinocapdevilla@hotmail.com","3127235539",3]
[394,1047340446,"OSCAR MAURICIO MARENCO ROMERO","Colombia","Atlántico","SANTO TOMAS","LICENCIATURA EN ESPAÑOL Y LITERATURA","ASISTENTE ADMINISTRATIVO ","03 de Noviembre de 2020 ","30 de Noviembre de 2020 ",1800000,1800000,"OFICINA ADMINISTRATIVA SUBGERENCIA CIENTIFICA -  COSTA HERMOSA","Administrativo","PRESTACION DE SERVICIO","omarencor@hotmail.com","3024675424",3]
[395,8749064,"OSVALDO ANTONIO CUENTAS DE LAS SALAS","Colombia","Atlántico","BARRANQUILLA","ODONTOLOGIA","ODONTOLOGO","03 de Noviembre de 2020 ","30 de Noviembre de 2020 ",1900000,1900000,"CENTRO DE SALUD  SALAMANCA","Asistencial","PRESTACION DE SERVICIO","abuelosw@hotmail.com",3043872210,10]
[396,55307582,"PAOLA VALENCIA GUERRERO","Colombia","Atlántico","CANDELARIA","MEDICINA","MEDICO PROGRAMA CARDIOVASCULAR","03 de Noviembre de 2020 ","30 de Noviembre de 2020 ",2300000,2300000,"CENTRO DE SALUD  SALAMANCA","Asistencial","PRESTACION DE SERVICIO","pvalencia2@hotmail.com","3002684692",8]
[397,32867404,"PATRICIA DEL CARMEN IBAÑEZ OSORIO","Colombia","Atlántico","SOLEDAD","TECNICA PROFESIONAL EN ADMINISTRACION DE SERVICIOS DE SALUD","VACUNADOR(A)","03 de Noviembre de 2020 ","30 de Noviembre de 2020 ",1400000,1400000,"CENTRO VACUNACION  MANUELA BELTRAN","Asistencial","PRESTACION DE SERVICIO","patolin1813@gmail.com",{"$f":"VLOOKUP(C398:C885,[1]OPS!$A$3:$C$492,3,0)","v":3012890318},8]
[398,1081799915,"PAULA ANDREA PIMIENTA ANDRADES","Colombia","Atlántico","FUNDACION","TECNICA PROFESIONAL EN AUXILIAR DE ENFERMERIA","AUXILIAR DE ENFERMERIA URGENCIAS","03 de Noviembre de 2020 ","30 de Noviembre de 2020 ",1653600,1653600,"CENTRO DE  SALUD CIUDADELA METROPOLITANA","Asistencial","PRESTACION DE SERVICIO","paula.pimienta.a@hotmail.com","3042164805",3]
[399,72239283,"PEDRO ALDRIN CEPEDA ANYA","Colombia","Atlántico","BARRANQUILLA","DERECHO","ABOGADO EXTERNO","03 de Noviembre de 2020 ","30 de Noviembre de 2020 ",4000000,4000000,"JURIDICA -ADMON  COSTA HERMOSA","Administrativo","PRESTACION DE SERVICIO","sirleydecepeda@hotmail.com",3015454476,2]
[400,72231273,"PEDRO RAFAEL PEREZ HERNANDEZ","Colombia","Atlántico","BARRANQUILLA","TECNICA PROFESIONAL EN AMBIENTAL EN MINERIA","AGENTE CALL CENTER","03 de Noviembre de 2020 ","30 de Noviembre de 2020 ",1378000,1378000,"CALL CENTER -CIUDADELA ","Administrativo","PRESTACION DE SERVICIO","pedroperez2128@hotmail.com","3233816669",10]
[401,32788911,"PEGGY ESTHER CARRILLO MUÑOZ","Colombia","Atlántico","BARRANQUILLA","BACHILLER ACADEMICO ","DIGITADOR PAI WEB ","03 de Noviembre de 2020 ","30 de Noviembre de 2020 ",1458000,1458000,"OFICNA PAI WEB -ARCHIVO CENTRAL","Administrativo","PRESTACION DE SERVICIO","peggycarrillo22@hotmail.com","3004397817",4]
[402,15074329,"RAFAEL ANTONIO RICO","Colombia","Atlántico","PUERTO ESCONDIDO","Dos (2) años de educación básica Secundaria","ORIENTADOR","03 de Noviembre de 2020 ","30 de Noviembre de 2020 ",1524000,1524000,"CENTRO DE  SALUD CIUDADELA METROPOLITANA","Administrativo","PRESTACION DE SERVICIO","rafaelantoniorico@hotmail.com","3126312412",5]
[403,9191876,"RAFAEL MOLINA CASTILLO","Colombia","Sucre","SUCRE","Diploma de Bachiller","AUXILIAR FACTURACION","03 de Noviembre de 2020 ","30 de Noviembre de 2020 ",1400000,1400000,"CENTRO DE SALUD MANUELA BELTRAN ","Administrativo","PRESTACION DE SERVICIO","rafaelmolinajr@gmail.com","3626455",8]
[404,8770590,"RAFAEL MOVILLA FLOREZ ","Colombia","Atlántico","USIACURI","BACHILLER ACADEMICO ","LIDER DE  FACTURACION  EN CENTROS DE SALUD","03 de Noviembre de 2020 ","30 de Noviembre de 2020 ",1600000,1600000,"CENTRO DE SALUD MANUELA BELTRAN ","Administrativo","PRESTACION DE SERVICIO","rafael_movilla@hotmail.com","3759400",12]
[405,72147873,"RAMIRO ANTONIO SALAS LARA ","Colombia","Atlántico","SUCRE","TECNICA PROFESIONAL EN ATENCION A USUARIOS DE SALUD","REGENTE DE FARMACIA ","03 de Noviembre de 2020 ","30 de Noviembre de 2020 ",2280000,2280000,"CENTRO DE  SALUD CIUDADELA METROPOLITANA","Asistencial","PRESTACION DE SERVICIO","ramirosalaslara@hotmail.com","3116558439",8]
[406,1041896610,"RICARDO ALONSO MORALES RIVERA ","Colombia","Atlántico","SABANALARGA","ADMINISTRACION DE EMPRESAS","PROFESIONAL  APOYO  OFICINA  ESTADISTICA ","03 de Noviembre de 2020 ","30 de Noviembre de 2020 ",4000000,4000000,"ESTADISTICA -ADMON  COSTA HERMOSA","Administrativo","PRESTACION DE SERVICIO","moralesriveraricardo28@gmail.com","3003014262",2]
[407,72144602,"RICARDO ISAAC OROZCO BARROS","Colombia","Atlántico","BARRANQUILLA","BACHILLER ACADEMICO ","CONDUCTOR DE AMBULANCIA","03 de Noviembre de 2020 ","30 de Noviembre de 2020 ",2160000,2160000,"CENTRO DE SALUD 13 DE JUNIO","Asistencial","PRESTACION DE SERVICIO","ricardodominic1234@gmail.com","3182778450",3]
[408,32826802,"ROCIO ISABEL FRIAS COLPAS","Colombia","Atlántico","SOLEDAD","BASICA PRIMARIA ","PERSONAL  LIMPIEZA Y ASEO","03 de Noviembre de 2020 ","30 de Noviembre de 2020 ",1215000,1215000,"ARCHIVO CENTRAL","Administrativo","PRESTACION DE SERVICIO","rocioisabelfrias@gmail.com","3005262691",3]
[409,72337838,"RODOLFO JOSE BARRIOS GUERRERO","Colombia","Atlántico","SOLEDAD","TECNOLOGIA EN INFORMATICA","AUXILIAR FACTURACION URGENCIAS","03 de Noviembre de 2020 ","30 de Noviembre de 2020 ",1680000,1680000,"CENTRO DE SALUD 13 DE JUNIO","Administrativo","PRESTACION DE SERVICIO","rod2402@hotmail.com","3002288140",3]
[410,8721729,"ROGER ALBERTO ARAUJO RAMOS","Colombia","Atlántico","BARRANQUILLA","MEDICINA","MEDICO DE URGENCIAS","03 de Noviembre de 2020 ","30 de Noviembre de 2020 ",3072000,3072000,"CENTRO DE  SALUD CIUDADELA METROPOLITANA","Asistencial","PRESTACION DE SERVICIO","medic_roger@hotmail.com","3012483505",13]
[411,1042439971,"ROGER RAFAEL RAMBAO NIEBLES","Colombia","Atlántico","SOLEDAD","BACHILLER ACADEMICO ","AUXILIAR FACTURACION URGENCIAS","03 de Noviembre de 2020 ","30 de Noviembre de 2020 ",1680000,1680000,"CENTRO DE SALUD 13 DE JUNIO","Administrativo","PRESTACION DE SERVICIO","rogerrambao08@hotmail.com","3015403124",5]
[412,8530634,"RONALD  ENRIQUE ARENAS  MEYER ","Colombia","Atlántico","BARRANQUILLA","TECNICA PROFESIONAL EN ATENCION A USUARIOS DE SALUD","CONDUCTOR DE AMBULANCIA","03 de Noviembre de 2020 ","30 de Noviembre de 2020 ",2160000,2160000,"CENTRO DE  SALUD CIUDADELA METROPOLITANA","Asistencial","PRESTACION DE SERVICIO","ram.68@live.com","3927384",8]
[413,32613493,"ROSA ESCOBAR FANDIÑO","Colombia","Atlántico","SANTO TOMAS","TECNICA PROFESIONAL EN SALUD OCUPACIONAL","AUXILIAR DE ENFERMERIA URGENCIAS","03 de Noviembre de 2020 ","30 de Noviembre de 2020 ",1653600,1653600,"CENTRO DE  SALUD CIUDADELA METROPOLITANA","Asistencial","PRESTACION DE SERVICIO","rosaescobarf1980@hotmail.com","3024670385",5]
[414,22446590,"ROSALBA CERPA MIRANDA ","Colombia","Atlántico","BARRANQUILLA","Diploma de Bachiller técnico comercial","AUXILIAR ADMINISTRATIVO -  SUBGERENCIA CIENTIFICA","03 de Noviembre de 2020 ","30 de Noviembre de 2020 ",1900000,1900000,"OFICINA ADMINISTRATIVA SUBGERENCIA CIENTIFICA -  COSTA HERMOSA","Administrativo","PRESTACION DE SERVICIO","apolinar632@hotmail.com","3005120509",8]
[415,22528921,"ROSARIO DEL CARMEN CAMARGO GOMEZ","Colombia","Atlántico","BARRANQUILLA","TECNICA PROFESIONAL EN DESAROLLO SOCIAL Y SALUD COMUNITARIA","VACUNADOR(A)","03 de Noviembre de 2020 ","30 de Noviembre de 2020 ",1400000,1400000,"CENTRO VACUNACION  MANUELA BELTRAN","Asistencial","PRESTACION DE SERVICIO","gomesrochi@hotmail.com","3927049",6]
[416,32664177,"ROSIRIS MONTES REDONDO","Colombia","Atlántico","EL CARMEN DE BOLIVAR","TECNCO","AUXILIAR SALUD ORAL ","03 de Noviembre de 2020 ","30 de Noviembre de 2020 ",1166000,1166000,"CENTRO DE SALUD VILLA ESTADIO","Asistencial","PRESTACION DE SERVICIO","rochimaria_2014@hotmail.com","3828396",11]
[417,22647944,"ROXANA  MILENA HIGUITA VARGAS","Colombia","Atlántico","BARRANQUILLA","TECNICA PROFESIONAL EN SECRETARIADO","DIGITADOR PAI WEB ","03 de Noviembre de 2020 ","30 de Noviembre de 2020 ",1458000,1458000,"OFICNA PAI WEB -ARCHIVO CENTRAL","Administrativo","PRESTACION DE SERVICIO","roxanahiguita18@gmail.com",{"$f":"VLOOKUP(C418:C905,[1]OPS!$A$3:$C$492,3,0)","v":3045832095},3]
[418,72151642,"RUBEN  DARIO  LOZADA BARROS","Colombia","Atlántico","BARRANQUILLA","Seis (6) años de educación básica Secundaria","CONTADOR ","03 de Noviembre de 2020 ","30 de Noviembre de 2020 ",4000000,4000000,"OFICINA TESORERIA-  COSTA HERMOSA","Administrativo","PRESTACION DE SERVICIO","rubendariolozada@hotmail.com","3403497",6]
[419,72432594,"RUBEN DARIO UCROS ","Colombia","Atlántico","SOLEDAD","TECNICA PROFESIONAL EN ANALISIS Y DISEÑO DE SISTEMAS DE COMPUTACION","AUXILIAR FACTURACION","03 de Noviembre de 2020 ","30 de Noviembre de 2020 ",2100000,2100000,"FACTURACION CENTRAL-COSTA HERMOSA","Administrativo","PRESTACION DE SERVICIO","rduf1918@hotmail.com","3005054548",3]
[420,22527122,"RUBY DEL CARMEN BOSSIO HERRERA","Colombia","Atlántico","BARRANQUILLA","TECNICO","AUXILIAR DE ENFERMERIA URGENCIAS","03 de Noviembre de 2020 ","30 de Noviembre de 2020 ",1653600,1653600,"CENTRO DE SALUD 13 DE JUNIO","Asistencial","PRESTACION DE SERVICIO","rubybossio30@hotmail.com","3357864",10]
[421,1002067698,"RUTH MARINA DIAZ MAYORCA","Colombia","Atlántico","CANDELARIA","Diploma de Bachiller técnico","AUXILIAR FACTURACION  CENTRAL ","03 de Noviembre de 2020 ","30 de Noviembre de 2020 ",2500000,2500000,"FACTURACION CENTRAL-COSTA HERMOSA","Administrativo","PRESTACION DE SERVICIO","mayorcadiaz10@gmail.com","3002947746",5]
[422,1140818354,"SAEN DAVID TAJAN NIEBLES","Colombia","Atlántico","BARRANQUILLA","BACHILLER ACADEMICO ","AUXILIAR ADMINISTRATIVO DE SISTEMAS DE INFORMACION EN PROMOCION Y PREVENCION","03 de Noviembre de 2020 ","30 de Noviembre de 2020 ",2000000,2000000,"OFICINA ADMINISTRATIVA SUBGERENCIA CIENTIFICA -  COSTA HERMOSA","Administrativo","PRESTACION DE SERVICIO","saen_0513@hotmail.com","3008922870",7]
[423,27895505,"SANDRA GARCIA PEÑA","Colombia","Atlántico","CUCUTA","TECNICO","AUXILIAR FACTURACION","03 de Noviembre de 2020 ","30 de Noviembre de 2020 ",1500000,1500000,"FACTURACION CENTRAL-COSTA HERMOSA","Administrativo","PRESTACION DE SERVICIO","sandra00@hotmail.com",3002370971,5]
[424,1143456204,"SANDRA MARCELA OVIEDO ROCA","Colombia","Atlántico","BARRANQUILLA","ENFERMERIA","ENFERMERA JEFE ","03 de Noviembre de 2020 ","30 de Noviembre de 2020 ",2300000,2300000,"CENTRO DE SALUD VILLA ESTADIO","Asistencial","PRESTACION DE SERVICIO","s-marce24@hotmail.com","3016408534",4]
[425,1042426990,"SANDRA MARCELA PEREZ BERMEJO","Colombia","Atlántico","BARRANQUILLA","MEDICINA","MEDICO DE URGENCIAS","03 de Noviembre de 2020 ","30 de Noviembre de 2020 ",3072000,3072000,"CENTRO DE SALUD 13 DE JUNIO","Asistencial","PRESTACION DE SERVICIO","marze_medicina2013@hotmail.com","3013584081",5]
[426,1043605412,"SANDRA MILENA REALES ARIZA ","Colombia","Atlántico","BARRANQUILLA","TECNICO","AUXILIAR DE ARCHIVO ","03 de Noviembre de 2020 ","30 de Noviembre de 2020 ",1700000,1700000,"ARCHIVO CENTRAL","Administrativo","PRESTACION DE SERVICIO","sreales71@gmail.com","3005251036 ",5]
[427,32892034,"SANDY MARIA DE LA HOZ JIMENEZ","Colombia","Atlántico","BARRANQUILLA","CONTADURIA PUBLICA","ASESOR  DE  PRESUPUESTO ","03 de Noviembre de 2020 ","30 de Noviembre de 2020 ",4500000,4500000,"ADMIISTRATIVA-  COSTA HERMOSA","Administrativo","PRESTACION DE SERVICIO","sandydlhj@outlook.com","3017623341",5]
[428,1042441044,"SASKIA STEFANIA SOTOMAYOR SOLANO","Colombia","Atlántico","BARRANQUILLA","Diploma de Bachiller comercial","PERSONAL  LIMPIEZA Y ASEO","03 de Noviembre de 2020 ","30 de Noviembre de 2020 ",1270000,1270000,"CENTRO DE SALUD VILLA ESTADIO","Administrativo","PRESTACION DE SERVICIO","sakia1612@hotmail.com","3124711172",4]
[429,72220231,"SERGIO  IVAN KUNCEL MAURY","Colombia","Atlántico","BARRANQUILLA","INGENIERIA INDUSTRIAL","ASESOR GERENCIA","03 de Noviembre de 2020 ","30 de Noviembre de 2020 ",5000000,5000000,"GERENCIA -ADMON  COSTA HERMOSA","Administrativo","PRESTACION DE SERVICIO","skuncelm@hotmail.com","3196939",4]
[430,1043121395,"SHEYLA DEL CARMEN ESTRADA ARIZA","Colombia","Atlántico","SOLEDAD","TECNICA PROFESIONAL DE SISTEMAS EN PROGRAMACION Y MANTENIMIENTO DE COMPUTADORES","TECNICO DE SISTEMAS ","03 de Noviembre de 2020 ","30 de Noviembre de 2020 ",1270000,1270000,"OFICINA  TIC- ADMON  COSTA HERMOSA","Administrativo","PRESTACION DE SERVICIO","carmenyate87@gmail.com","3002070804",3]
[431,1129572439,"SHIRLEY CONSUEGRA OLAYA","Colombia","Atlántico","BARRANQUILLA","TECNICA PROFESIONAL EN ARCHIVO","REFERENCIA Y CONTRAREFERENCIA","03 de Noviembre de 2020 ","30 de Noviembre de 2020 ",1524000,1524000,"CENTRO DE SALUD 13 DE JUNIO","Asistencial","PRESTACION DE SERVICIO","shicons3025@gmail.com","3053684884",3]
[432,1045674051,"SHIRLY PAOLA GUZMAN GUZMAN ","Colombia","Atlántico","MALAMBO","ESPECIALIZACION CLINICA EN ODONTOLOGIA INTEGRAL DEL ADOLESCENTE Y ORTODONCIA","ODONTOLOGO","03 de Noviembre de 2020 ","30 de Noviembre de 2020 ",1900000,1900000,"CENTRO DE SALUD  EL PARQUE","Asistencial","PRESTACION DE SERVICIO","shirlyguzman1414@gmail.com","3015820667",3]
[433,22562553,"SILVANA BEATRIZ GONZALEZ MORENO ","Colombia","Atlántico","BARRANQUILLA","TECNICO","AUXILIAR ADMINISTRATIVO ALMACEN ","03 de Noviembre de 2020 ","30 de Noviembre de 2020 ",1900000,1900000,"ALMACEN -ARCHIVO CENTRAL","Administrativo","PRESTACION DE SERVICIO",{"$f":"VLOOKUP(C434:C892,[1]OPS!$A$3:$B$493,2,0)","v":"silvanago0403@outlook.com"},{"$f":"VLOOKUP(C434:C897,[1]OPS!$A$3:$C$502,3,0)","v":3017330133},4]
[434,32870174,"SIRLEY PAOLA PEREZ CARMONA","Colombia","Atlántico","SANTO TOMÁS","ESPECIALIZACION  EN GESTION DE LA CALIDAD Y AUDITORIA DE SERVICIOS DE SALUD","AUDITOR DE CALIDAD Y SERVICIOS DE SALUD","03 de Noviembre de 2020 ","30 de Noviembre de 2020 ",5800000,5800000,"OFICINA ADMINISTRATIVA SUBGERENCIA CIENTIFICA -  COSTA HERMOSA","Administrativo","PRESTACION DE SERVICIO","sirleydecepeda@hotmail.com","300-4912217",7]
[435,22532041,"SORAYA  MARIA BACA RODRIGUEZ","Colombia","Atlántico","SOLEDAD","PSICOLOGIA","PSICOLOGA","03 de Noviembre de 2020 ","30 de Noviembre de 2020 ",2800000,2800000,"CENTRO DE SALUD 13 DE JUNIO","Asistencial","PRESTACION DE SERVICIO","sorayab_20@hotmail.com","3936180",3]
[436,1234888398,"STEFANY CECILIA MANOTAS CERDA ","Colombia","Atlántico","BARRANQUILLA","TECNICO","DIGITADOR PAI WEB ","03 de Noviembre de 2020 ","30 de Noviembre de 2020 ",1458000,1458000,"OFICNA PAI WEB -ARCHIVO CENTRAL","Administrativo","PRESTACION DE SERVICIO","cecimanotas@gmail.com","3014102285",1]
[437,1140814033,"STEFANY RINCON TORRES","Colombia","Atlántico","BARRANQUILLA","FINANZAS Y RELACIONES INTERNACIONALES","PROFESIONAL COORD EQUIPO TOMA DE MUESTRAS COVID19  DEL HMI ","03 de Noviembre de 2020 ","30 de Noviembre de 2020 ",4000000,4000000,"CENTRO DE SALUD  COSTA HERMOSA","Administrativo","PRESTACION DE SERVICIO","stefany.rincon87@gmail.com",{"$f":"VLOOKUP(C438:C925,[1]OPS!$A$3:$C$492,3,0)","v":3013469903},7]
[438,1143447904,"STEFFANY BRIGGITTE ALVAREZ LLERENA","Colombia","Atlántico","BARRANQUILLA","TECNOLOGIA EN SALUD OCUPACIONAL","RESOLUCION 0273","03 de Noviembre de 2020 ","30 de Noviembre de 2020 ",1653000,1653000,"CENTRO DE SALUD 13 DE JUNIO","Asistencial","PRESTACION DE SERVICIO","teefyalvarezllerena@gmail.com","3750733",2]
[439,1140855017,"STEPHANY LORRAINE NIEBLES ZULUAGA ","Colombia","Atlántico","BARRANQUILLA","Cuatro (4) años de educación básica Secundaria","ENFERMERA JEFE DE PROMOCIÓN Y MANTENIMIENTO DE LA SALUD","03 de Noviembre de 2020 ","30 de Noviembre de 2020 ",2300000,2300000,"CENTRO DE SALUD 13 DE JUNIO","Asistencial","PRESTACION DE SERVICIO","gayjo91@hotmail.com","3043672088",5]
[440,1042419634,"SUANY DEL CRISTO CADRAZCO  IMBETT","Colombia","Atlántico","BARRANQUILLA","MEDICINA","MEDICO DE URGENCIAS","03 de Noviembre de 2020 ","30 de Noviembre de 2020 ",3072000,3072000,"CENTRO DE SALUD 13 DE JUNIO","Asistencial","PRESTACION DE SERVICIO","suanyc1209@hotmail.com","3016826145",4]
[441,36577201,"SUSANA  AMADOR SURMAY","Colombia","Magdalena","SAN SEBASTIÁN DE BUENAVISTA","ADMINISTRACION DE EMPRESAS","PROFESIONAL DE APOYO  LIDER  COORDINACION  CONSULTA EXTERNA","03 de Noviembre de 2020 ","30 de Noviembre de 2020 ",3000000,3000000,"OFICINA ADMINISTRATIVA SUBGERENCIA CIENTIFICA -  COSTA HERMOSA","Administrativo","PRESTACION DE SERVICIO","suxysurmay@hotmail.com","3017812947",5]
[442,1143143512,"TAIDETH ALEXANDRA BRACHO DAVILA","Colombia","Atlántico","BARRANQUILLA","TECNICA PROFESIONAL EN AUXILIAR DE ENFERMERIA","AUXILIAR DE ENFERMERIA URGENCIAS","03 de Noviembre de 2020 ","30 de Noviembre de 2020 ",1653600,1653600,"CENTRO DE  SALUD CIUDADELA METROPOLITANA","Asistencial","PRESTACION DE SERVICIO","taidealexandra@gmail.com","3054398879",2]
[443,1042430978,"TATIANA BARRIOSNUEVO CERA","Colombia","Atlántico","SOLEDAD","TECNICO","AUXILIAR DE ENFERMERIA URGENCIAS","03 de Noviembre de 2020 ","30 de Noviembre de 2020 ",1653600,1653600,"CENTRO DE SALUD 13 DE JUNIO","Asistencial","PRESTACION DE SERVICIO","eyleen.david0320@gmail.com",{"$f":"VLOOKUP(C444:C931,[1]OPS!$A$3:$C$492,3,0)","v":3117211412},5]
[444,32874863,"TATIANA PAEZ DE LA CRUZ","Colombia","Atlántico","BARRANQUILLA","TECNICO","AUXILIAR DE ENFERMERIA URGENCIAS","03 de Noviembre de 2020 ","30 de Noviembre de 2020 ",1653600,1653600,"CENTRO DE SALUD 13 DE JUNIO","Asistencial","PRESTACION DE SERVICIO","tati_0422@hotmail.com","3241393",6]
[445,32884590,"TATIANA SUAREZ CABALLERO ","Colombia","Atlántico","BARRANQUILLA","TECNICO","AUXILIAR DE ENFERMERIA DE RUTA INTEGRAL MATERNO PERINATAL","03 de Noviembre de 2020 ","30 de Noviembre de 2020 ",1399200,1399200,"CENTRO DE SALUD 13 DE JUNIO","Asistencial","PRESTACION DE SERVICIO","tatianasuarezca@hotmail.com","3015866425",10]
[446,8771123,"TEDDY VARGAS MONTERO","Colombia","Atlántico","SOLEDAD","ODONTOLOGIA","ODONTOLOGO","03 de Noviembre de 2020 ","30 de Noviembre de 2020 ",1900000,1900000,"CENTRO DE SALUD VILLA ESTADIO","Asistencial","PRESTACION DE SERVICIO","tedisvargas30@hotmail.com","3927067",13]
[447,32607428,"TEMILDA MARIA PERTUZ PEREZ","Colombia","Magdalena","PIVIJAY","ODONTOLOGIA","AUDITOR DE CALIDAD Y SERVICIOS DE SALUD","03 de Noviembre de 2020 ","30 de Noviembre de 2020 ",4000000,4000000,"OFICINA ADMINISTRATIVA SUBGERENCIA CIENTIFICA -  COSTA HERMOSA","Administrativo","PRESTACION DE SERVICIO","temypertuz@hotmail.com","3026583",15]
[448,55225494,"ULDYS ESTHER PONZON PORTO","Colombia","Atlántico","BARRANQUILLA","ENFERMERIA","LIDER SERVICIOS MEDICOS","03 de Noviembre de 2020 ","30 de Noviembre de 2020 ",3700000,3700000,"OFICINA ADMINISTRATIVA SUBGERENCIA CIENTIFICA -  COSTA HERMOSA","Administrativo","PRESTACION DE SERVICIO","uldysp2014@live.com",{"$f":"VLOOKUP(C449:C936,[1]OPS!$A$3:$C$492,3,0)","v":3136134129},6]
[449,1002233790,"VANESA PAOLA LOZANO  LOPEZ","Colombia","Atlántico","BARRANQUILLA","PSICOLOGIA","PSICOLOGA","03 de Noviembre de 2020 ","30 de Noviembre de 2020 ",3000000,3000000,"ADMIISTRATIVA-  COSTA HERMOSA","Administrativo","PRESTACION DE SERVICIO","vanessalozano496@gmail.com","3017503267",1]
[450,1045692313,"VANESSA CASSIANI PEREZ","Colombia","Atlántico","BARRANQUILLA","TECNICA PROFESIONAL EN AUXILIAR DE ENFERMERIA","RESOLUCION 0273","03 de Noviembre de 2020 ","30 de Noviembre de 2020 ",1653000,1653000,"CENTRO DE  SALUD CIUDADELA METROPOLITANA","Asistencial","PRESTACION DE SERVICIO","vanecassiani@hotmail.com","3024633899",3]
[{"$f":"+A451+1","v":451},1007908949,"VERONICA POLET TODARO PEDROZO","Colombia","Atlántico","BARRANQUILLA","MEDICINA","MEDICO CONSULTA EXTERNA /APOYO PROGRAMA CARDIOVASCULAR ","03 de Noviembre de 2020 ","30 de Noviembre de 2020 ",2300000,2300000,"CENTRO DE SALUD  SALAMANCA","Asistencial","PRESTACION DE SERVICIO","veronicatodaro_13@hotmail.com","3045291167",4]
[452,1045732710,"VICTOR JOSE AGUILAR CRUZADO","Colombia","Atlántico","BARRANQUILLA","ADMINISTRACION DE EMPRESAS","AUXILIAR ADMINISTRATIVO- CONTRATACION  BIENES Y SERVICIOS","03 de Noviembre de 2020 ","30 de Noviembre de 2020 ",4000000,4000000,"JURIDICA -ADMON  COSTA HERMOSA","Administrativo","PRESTACION DE SERVICIO","v.aguilarcruzado@gmail.com","3046626065",7]
[453,22664852,"VILMAIRA JUDITH BOLANO VALENCIA","Colombia","Atlántico","PONEDERA","TECNICO","GESTION DOCUMENTAL TALENTO HUMANO","03 de Noviembre de 2020 ","30 de Noviembre de 2020 ",1700000,1700000,"ARCHIVO CENTRAL","Administrativo","PRESTACION DE SERVICIO","vilmairabolano@gmail.com","3763391",3]
[454,1045680952,"WILLIAM RAFAEL DAVIDSON URIETA","Colombia","Atlántico","BARRANQUILLA","MEDICINA","MEDICO CONSULTA EXTERNA ","03 de Noviembre de 2020 ","30 de Noviembre de 2020 ",2120000,2120000,"CENTRO DE SALUD  COSTA HERMOSA","Asistencial","PRESTACION DE SERVICIO","al-qassan04@hotmail.com","3825526",6]
[455,79678698,"WILSON PASTOR RUIZ ORELLANO","Colombia","Atlántico","PONEDERA","TECNICO","AUXILIAR DE ARCHIVO ","03 de Noviembre de 2020 ","30 de Noviembre de 2020 ",1700000,1700000,"ARCHIVO CENTRAL","Administrativo","PRESTACION DE SERVICIO","wilsonpastorruiz@gmail.com","0353727230",3]
[456,1042456068,"XILENA PACHECO OSPINO ","Colombia","Atlántico","BARRANQUILLA","TECNICO","AUXILIAR DE ENFERMERIA URGENCIAS","03 de Noviembre de 2020 ","30 de Noviembre de 2020 ",1653600,1653600,"CENTRO DE SALUD 13 DE JUNIO","Asistencial","PRESTACION DE SERVICIO","ziilena27@hotmail.com","3043470278",4]
[457,44153255,"XIMENA ESCORCIA CASTRO","Colombia","Atlántico","BARRANQUILLA","ESPECIALIZACION  EN GESTION DE LA CALIDAD Y AUDITORIA DE SERVICIOS DE SALUD","MEDICO DE URGENCIAS","03 de Noviembre de 2020 ","30 de Noviembre de 2020 ",3072000,3072000,"CENTRO DE SALUD 13 DE JUNIO","Asistencial","PRESTACION DE SERVICIO","ximenapao13@hotmail.com","3888692",12]
[458,32684298,"XIOMARA RODRIGUEZ CANTILLO","Colombia","Atlántico","BARRANQUILLA","TECNICA PROFESIONAL EN AUXILIAR DE ENFERMERIA","VACUNADOR(A)","03 de Noviembre de 2020 ","30 de Noviembre de 2020 ",1400000,1400000,"CENTRO VACUNACION  MANUELA BELTRAN","Asistencial","PRESTACION DE SERVICIO","xiomy0315@hotmail.com","3195209525",6]
[459,1042439481,"YADELIS MERCEDES PARDO DE  ALBA","Colombia","Atlántico","SOLEDAD","ENFERMERIA","ENFERMERA JEFE -TERRENO PAI","03 de Noviembre de 2020 ","30 de Noviembre de 2020 ",2120000,2120000,"CENTRO VACUNACION  MANUELA BELTRAN","Asistencial","PRESTACION DE SERVICIO","yade0816@hotmail.com","0353740633",6]
[460,1129577577,"YAILETH MARIA UTRIA GARCIA ","Colombia","Atlántico","BARRANQUILLA","TRABAJO SOCIAL","TRABAJADORA SOCIAL ","03 de Noviembre de 2020 ","30 de Noviembre de 2020 ",2200000,2200000,"CENTRO DE  SALUD CIUDADELA METROPOLITANA","Asistencial","PRESTACION DE SERVICIO","yailethyug@hotmail.com","3930365",1]
[461,72429429,"YAIR BARRAZA CERVANTES ","Colombia","Atlántico","SOLEDAD","MEDICINA","MEDICO PROGRAMA CARDIOVASCULAR","03 de Noviembre de 2020 ","30 de Noviembre de 2020 ",2300000,2300000,"CENTRO DE SALUD VILLA ESTADIO","Asistencial","PRESTACION DE SERVICIO","yairbarrazac@hotmail.com","3007077922",11]
[462,32876060,"YAKELIN BOLAÑO MIRANDA","Colombia","Atlántico","BARRANQUILLA","TECNICO PROFESIONAL EN SALUD ORAL","AUXILIAR DE ODONTOLOGIA","03 de Noviembre de 2020 ","30 de Noviembre de 2020 ",1166000,1166000,"CENTRO DE SALUD  SALAMANCA","Asistencial","PRESTACION DE SERVICIO","ya-ke1975@hotmail.com","3185251700",5]
[463,56087561,"YAMILZA ESTHER MURGAS ORTIZ","Colombia","Atlántico","MAICAO","Tres (3) años de educación básica Secundaria","AUXILIAR DE ENFERMERIA","03 de Noviembre de 2020 ","30 de Noviembre de 2020 ",1166000,1166000,"CENTRO DE SALUD MANUELA BELTRAN ","Asistencial","PRESTACION DE SERVICIO","yamimur@outlook.com","3002363432",2]
[464,32816824,"YANETH CARO VITOLA","Colombia","Atlántico","SOLEDAD","TECNICA PROFESIONAL EN AUXILIAR DE ENFERMERIA","AUXILIAR DE ENFERMERIA DE PROMOCIÓN Y MANTENIMIENTO DE LA SALUD","03 de Noviembre de 2020 ","30 de Noviembre de 2020 ",1166000,1166000,"CENTRO DE  SALUD CIUDADELA METROPOLITANA","Asistencial","PRESTACION DE SERVICIO","yanethcaro23@hotmail.com","3114092876",12]
[465,1048215827,"YANIETH VANESSA VARGAS VILLA","Colombia","Atlántico","BARANOA","TECNICO","HIGIENISTA ORAL SERVICIOS AMIGABLES","03 de Noviembre de 2020 ","30 de Noviembre de 2020 ",1166000,1166000,"CENTRO DE SALUD MANUELA BELTRAN ","Asistencial","PRESTACION DE SERVICIO","javav03@hotmail.com","3013566197",7]
[466,44159754,"YANIRE CARLINA CASTRO ESCALANTE","Colombia","Atlántico","SOLEDAD","MEDICINA","MEDICO GINECOLOGO DE RUTA INTEGRAL MATERNO PERINATAL","03 de Noviembre de 2020 ","30 de Noviembre de 2020 ",7500000,7500000,"CENTRO DE SALUD 13 DE JUNIO","Asistencial","PRESTACION DE SERVICIO","yany_189@hotmail.com","3012000472",11]
[467,1001800132,"YARIMA CHARRIS BOLAÑO ","Colombia","Atlántico","PONEDERA","TECNICO","GESTION DOCUMENTAL TALENTO HUMANO","03 de Noviembre de 2020 ","30 de Noviembre de 2020 ",1700000,1700000,"ARCHIVO CENTRAL","Administrativo","PRESTACION DE SERVICIO","yarimacharri2310@gmail.com","3023059473",1]
[468,32820220,"YARLENE DEL SOCORRO DE AVILA DE ALBA","Colombia","Atlántico","SOLEDAD","TECNICA PROFESIONAL EN AUXILIAR DE ENFERMERIA","VACUNADORA PAI WEB ","03 de Noviembre de 2020 ","30 de Noviembre de 2020 ",1400000,1400000,"OFICNA PAI WEB -ARCHIVO CENTRAL","Asistencial","PRESTACION DE SERVICIO","zulianismartinez@hotmail.com","3016414445",8]
[469,1042454836,"YARLEYDIS SMITH LIZARAZO MOLINA","Colombia","Atlántico","SOLEDAD","PSICOLOGIA","PSICOLOGA","03 de Noviembre de 2020 ","30 de Noviembre de 2020 ",3000000,3000000,"CENTRO DE  SALUD CIUDADELA METROPOLITANA","Asistencial","PRESTACION DE SERVICIO","lizarazoyarle@gmail.com",{"$f":"VLOOKUP(C470:C957,[1]OPS!$A$3:$C$492,3,0)","v":3045331373},1]
[470,77030162,"YECITH  MARTINEZ QUINTERO ","Colombia","Atlántico","VALLEDUPAR","Diploma de Bachiller comercial","ASISTETE ADMINISTRATIVO ","03 de Noviembre de 2020 ","30 de Noviembre de 2020 ",1800000,1800000,"ADMIISTRATIVA-  COSTA HERMOSA","Administrativo","PRESTACION DE SERVICIO","yesielgordo519@gmail.com","3014782012",1]
[471,60355382,"YEIGNE CONTRERAS BAYONA","Colombia","Norte de Santander","OCAÑA","TECNICA PROFESIONAL EN AUXILIAR DE ENFERMERIA","VACUNADOR(A)","03 de Noviembre de 2020 ","30 de Noviembre de 2020 ",1400000,1400000,"CENTRO VACUNACION  MANUELA BELTRAN","Asistencial","PRESTACION DE SERVICIO","yeigne@live.com","3002913335",8]
[472,40993662,"YEIMIS ESTHER DE LAS AGUAS ARIZA","Colombia","Atlántico","SABANALARGA","TECNICO","AUXILIAR DE ARCHIVO ","03 de Noviembre de 2020 ","30 de Noviembre de 2020 ",2000000,2000000,"ARCHIVO CENTRAL","Administrativo","PRESTACION DE SERVICIO","jdelasaguas17@gmail.com","3005485333",4]
[473,32570383,"YEIMIS PAOLA LEMUS VASQUEZ","Colombia","Atlántico","LURUACO","ENFERMERIA","ENFERMERA JEFE ","03 de Noviembre de 2020 ","30 de Noviembre de 2020 ",2300000,2300000,"CENTRO DE SALUD 13 DE JUNIO","Asistencial","PRESTACION DE SERVICIO","yeleva27@hotmail.com","3173054285",7]
[474,1129516318,"YEIMIS PATRICIA GONZALEZ ARAGON ","Colombia","Atlántico","SOLEDAD","TECNICA PROFESIONAL EN CONMUTACION","AGENTE CALL CENTER","03 de Noviembre de 2020 ","30 de Noviembre de 2020 ",1378000,1378000,"CALL CENTER -CIUDADELA ","Administrativo","PRESTACION DE SERVICIO","gonzalezyeimi0820@gmail.com",{"$f":"VLOOKUP(C475:C962,[1]OPS!$A$3:$C$492,3,0)","v":3004242397},1]
[475,22515180,"YEIMY JHOANA SALTARIN ACUÑA","Colombia","Atlántico","BARRANQUILLA","BACHILLER ACADEMICO ","AUXILIAR  ADMINISTRATIVO  DE FARMACIA ","03 de Noviembre de 2020 ","30 de Noviembre de 2020 ",1900000,1900000,"FARMACIA CENTRAL  COSTA HERMOSA","Asistencial","PRESTACION DE SERVICIO","yeimysaltarin@gmail.com","3015705833",4]
[476,1143452684,"YEISON MISAEL DUARTE CALDERON","Colombia","Atlántico","BARRANQUILLA","TECNICO PROFESIONAL EN OPERACION DEL TRANSPORTE MULTIMODAL","CONDUCTOR DE AMBULANCIA","03 de Noviembre de 2020 ","30 de Noviembre de 2020 ",2160000,2160000,"CENTRO DE  SALUD CIUDADELA METROPOLITANA","Asistencial","PRESTACION DE SERVICIO","yeidua97@gmail.com","3004167355",5]
[477,44190907,"YENIS AHUMADA LECHUGA","Colombia","Atlántico","BARRANQUILLA","ESPECIALISTA","ESPECIALISTA  - SALUD OCUPACIONAL ","03 de Noviembre de 2020 ","30 de Noviembre de 2020 ",5000000,5000000,"OFICINA TALENTO HUMANO -ADMON  COSTA HERMOSA","Administrativo","PRESTACION DE SERVICIO","yenisahumada@hotmail.com",{"$f":"VLOOKUP(C478:C965,[1]OPS!$A$3:$C$492,3,0)","v":3006726011},6]
[478,1042424161,"YENSY ANGELINA ESCALANTE FERRER","Colombia","Atlántico","SOLEDAD","TECNICO AUXILIAR CONTABLE","AUXILIAR ADMINISTRATIVO CONTABLE","03 de Noviembre de 2020 ","30 de Noviembre de 2020 ",2000000,2000000,"FINANCIERA -ADMON  COSTA HERMOSA","Administrativo","PRESTACION DE SERVICIO",{"$f":"VLOOKUP(C479:C937,[1]OPS!$A$3:$B$493,2,0)","v":"yensyescafer@gmail.com"},{"$f":"VLOOKUP(C479:C942,[1]OPS!$A$3:$C$502,3,0)","v":3005075670},3]
[479,1143450666,"YERLIS PAOLA FONTALVO LAMBRAÑO","Colombia","Atlántico","EL COPEY","ESPECIALIZACION TECNOLOGICA EN INNOVACION DE PRODUCTOS ALIMENTICIOS","AUXILIAR FACTURACION","03 de Noviembre de 2020 ","30 de Noviembre de 2020 ",1400000,1400000,"CENTRO DE SALUD  MACLOVIA","Administrativo","PRESTACION DE SERVICIO","paolafontalvo0317@gmail.com","3023783752",4]
[480,1005679352,"YESENIA PATRICIA DIAZ JARABA","Colombia","Atlántico","SAN MARCOS","BACHILLER ACADEMICO ","PERSONAL  LIMPIEZA Y ASEO","03 de Noviembre de 2020 ","30 de Noviembre de 2020 ",1653600,1653600,"CENTRO DE  SALUD CIUDADELA METROPOLITANA","Administrativo","PRESTACION DE SERVICIO","yeseniadiazjaraba1989@gmail.com","3206046937",3]
[481,55246222,"YESIKA ANGULO MADRID","Colombia","Atlántico","BARRANQUILLA","FISIOTERAPIA","FISIOTERAPEUTA ","03 de Noviembre de 2020 ","30 de Noviembre de 2020 ",2280000,2280000,"CENTRO DE  SALUD CIUDADELA METROPOLITANA","Asistencial","PRESTACION DE SERVICIO","yesikpat_17@hotmail.com","3042445",4]
[482,1041899345,"YESMITH ADRIANA VIZCAINO CARRILLO","Colombia","Atlántico","SABANALARGA","TECNICO","ASISTENTE ADMINISTRATIVO","03 de Noviembre de 2020 ","30 de Noviembre de 2020 ",1900000,1900000,"OFICINA TALENTO HUMANO -ADMON  COSTA HERMOSA","Administrativo","PRESTACION DE SERVICIO","yesmithvizcaino31@hotmail.com","3004694000",1]
[483,1042425681,"YESMITH ALEXI GARIZABALO RETAMOSO ","Colombia","Atlántico","SITIONUEVO","MEDICINA","MEDICO DE URGENCIAS","03 de Noviembre de 2020 ","30 de Noviembre de 2020 ",3072000,3072000,"CENTRO DE SALUD 13 DE JUNIO","Asistencial","PRESTACION DE SERVICIO","yesmith_1127@hotmail.com","3745759",4]
[484,1041899588,"YICELA SILVANA ARIZA ARAQUE","Colombia","Atlántico","CAMPO DE LA CRUZ","Diploma de Bachiller agropecuario","DIGITADOR PAI WEB ","03 de Noviembre de 2020 ","30 de Noviembre de 2020 ",1458000,1458000,"OFICNA PAI WEB -ARCHIVO CENTRAL","Administrativo","PRESTACION DE SERVICIO","sritagcarar@hotmail.com","3024071873",1]
[485,32739126,"YIRA DEL CARMEN PEÑALOZA AREVALO","Colombia","Atlántico","BARRANQUILLA","BACHILLER ACADEMICO ","PERSONAL  LIMPIEZA Y ASEO URGENCIA","03 de Noviembre de 2020 ","30 de Noviembre de 2020 ",1653600,1653600,"CENTRO DE SALUD 13 DE JUNIO","Administrativo","PRESTACION DE SERVICIO","yirapenalozaarevalo@gmail.com","3005073552",5]
[486,1042440818,"YISELL PAOLA SANDOVAL BARRETO","Colombia","Atlántico","BARRANQUILLA","MEDICINA","MEDICO CONSULTA EXTERNA ","03 de Noviembre de 2020 ","30 de Noviembre de 2020 ",2120000,2120000,"CENTRO DE SALUD MANUELA BELTRAN ","Asistencial","PRESTACION DE SERVICIO","yyiissee_15@hotmail.com",{"$f":"VLOOKUP(C487:C974,[1]OPS!$A$3:$C$492,3,0)","v":3002743371},1]
[487,1042351489,"YISLEY ZARETH BADILLO SARMIENTO","Colombia","Atlántico","SANTO TOMAS","ENFERMERIA","ENFERMERA JEFE","03 de Noviembre de 2020 ","30 de Noviembre de 2020 ",2300000,2300000,"OFICINA ADMINISTRATIVA SUBGERENCIA CIENTIFICA -  COSTA HERMOSA","Administrativo","PRESTACION DE SERVICIO","yis_0922@hotmail.com","8790911",5]
[488,32811232,"YOLANDA SOFIA MORALES BERMUDEZ","Colombia","Atlántico","SOLEDAD","TECNICA PROFESIONAL EN AUXILIAR DE ENFERMERIA","VACUNADOR(A) CUARTO FRIO","03 de Noviembre de 2020 ","30 de Noviembre de 2020 ",1600000,1600000,"CENTRO VACUNACION  MANUELA BELTRAN","Asistencial","PRESTACION DE SERVICIO","e.1004@hotmail.com","3135407531",8]
[489,55230396,"YORLETH MALENA FLOREZ ABRIL","Colombia","Atlántico","BARRANQUILLA","MEDICINA","MEDICO DE URGENCIAS","03 de Noviembre de 2020 ","30 de Noviembre de 2020 ",3072000,3072000,"CENTRO DE SALUD 13 DE JUNIO","Asistencial","PRESTACION DE SERVICIO","yorleflorez@hotmail.com","3005070040",10]
[490,1143465478,"YULEIMY LISETH YANCE CAMARGO","Colombia","Atlántico","BARRANQUILLA","DERECHO","ABOGADA","03 de Noviembre de 2020 ","30 de Noviembre de 2020 ",3000000,3000000,"JURIDICA -ADMON  COSTA HERMOSA","Administrativo","PRESTACION DE SERVICIO","yuleimyyance@gmail.com","3013860960",2]
[491,55307328,"YULEINIS LILIANA SANCHEZ DUARTE","Colombia","La Guajira","RIOHACHA","ESPECIALIZACION EN GERENCIA DE LA CALIDAD Y AUDITORIA EN SALUD","AUDITOR DE CALIDAD Y SERVICIOS DE SALUD","03 de Noviembre de 2020 ","30 de Noviembre de 2020 ",4000000,4000000,"OFICINA ADMINISTRATIVA SUBGERENCIA CIENTIFICA -  COSTA HERMOSA","Administrativo","PRESTACION DE SERVICIO","yuleinissandu@gmail.com","3635410",4]
[492,1042426787,"YULEY LINETH MARIN NIETO","Colombia","Atlántico","BARRANQUILLA","TECNICO","AUXILIAR FACTURACION CONSULTA EXTERNA","03 de Noviembre de 2020 ","30 de Noviembre de 2020 ",1400000,1400000,"CENTRO DE  SALUD CIUDADELA METROPOLITANA","Administrativo","PRESTACION DE SERVICIO","yuleymarin03@gmail.com","3003884582",3]
[493,1048303058,"YULY PATRICIA MIRANDA FONSECA","Colombia","Atlántico","MALAMBO","MEDICINA","MEDICO DE URGENCIAS","03 de Noviembre de 2020 ","30 de Noviembre de 2020 ",3072000,3072000,"CENTRO DE  SALUD CIUDADELA METROPOLITANA","Asistencial","PRESTACION DE SERVICIO","yulimiranda1@hotmail.com","3762540",2]
[494,1047359796,"YULY PAULINA GARCIA BARANDICA","Colombia","Atlántico","BARRANQUILLA","TRABAJO SOCIAL","TRABAJADORA SOCIAL ","03 de Noviembre de 2020 ","30 de Noviembre de 2020 ",2600000,2600000,"CENTRO DE SALUD 13 DE JUNIO","Asistencial","PRESTACION DE SERVICIO","mildreb05@gmail.com","3017037840",2]
[495,1143266403,"YUNERIZ ESTHER PEREZ DE LA HOZ ","Colombia","Atlántico","BARRANQUILLA","TECNICA PROFESIONAL EN AUXILIAR DE ENFERMERIA","AUXILIAR DE ENFERMERIA CONSULTA EXTERNA  ","03 de Noviembre de 2020 ","30 de Noviembre de 2020 ",1166000,1166000,"CENTRO DE SALUD  MACLOVIA","Asistencial","PRESTACION DE SERVICIO","yuneirisperezdelahoz@gmail.com","3012722270",4]
[496,55250327,"YURANIS BONIFAS CAÑAS","Colombia","Atlántico","BARRANQUILLA","ENFERMERIA","COORDINADORA PAIWEB","03 de Noviembre de 2020 ","30 de Noviembre de 2020 ",3000000,3000000,"OFICNA PAI WEB -ARCHIVO CENTRAL","Administrativo","PRESTACION DE SERVICIO","ybonifas1522@hotmail.com","3754278",4]
[497,1042428053,"YURANIS DEL CARMEN BLANQUICETT MORENO","Colombia","Atlántico","SOLEDAD","TECNICA PROFESIONAL EN ENFERMERIA","VACUNADOR(A)","03 de Noviembre de 2020 ","30 de Noviembre de 2020 ",1400000,1400000,"CENTRO VACUNACION  MANUELA BELTRAN","Asistencial","PRESTACION DE SERVICIO","yurablan88@hotmail.com",{"$f":"VLOOKUP(C498:C985,[1]OPS!$A$3:$C$492,3,0)","v":32277002278},8]
[498,1042452647,"YURANIS JUDITH BARRAZA DE ALBA","Colombia","Atlántico","BARRANQUILLA","TECNICO","AGENTE CALL CENTER","03 de Noviembre de 2020 ","30 de Noviembre de 2020 ",1378000,1378000,"CALL CENTER -CIUDADELA ","Administrativo","PRESTACION DE SERVICIO","yuranisalba@yahoo.com",300658741,2]
[499,1045226744,"YURISABEL CERVANTES VEGA ","Colombia","Atlántico","LURUACO","MEDICINA","MEDICO DE URGENCIAS","03 de Noviembre de 2020 ","30 de Noviembre de 2020 ",6144000,6144000,"CENTRO DE  SALUD CIUDADELA METROPOLITANA","Asistencial","PRESTACION DE SERVICIO","yurisabel03@gmail.com",3164548751,2]
[500,22665409,"YURLEY VANESSA MERCADO BOCANEGRA","Colombia","Atlántico","CAMPO DE LA CRUZ","TECNICA PROFESIONAL EN AUXILIAR DE ENFERMERIA","AUXILIAR DE ENFERMERIA URGENCIAS","03 de Noviembre de 2020 ","30 de Noviembre de 2020 ",1653600,1653600,"CENTRO DE SALUD 13 DE JUNIO","Asistencial","PRESTACION DE SERVICIO","ymb1380@gmail.com","3126187146",1]
[501,57105527,"ZOILA PATRICIA PABON HERNANDEZ","Colombia","Magdalena","FUNDACIÓN","INSTRUMENTACION QUIRURGICA","ASISTENTE COORDINACIÓN MÉDICA","03 de Noviembre de 2020 ","30 de Noviembre de 2020 ",3000000,3000000,"OFICINA ADMINISTRATIVA SUBGERENCIA CIENTIFICA -  COSTA HERMOSA","Administrativo","PRESTACION DE SERVICIO","zoipabon@hotmail.com","4359943",3]
[502,32865503,"ZULAI DONADO PARODIS ","Colombia","Atlántico","SOLEDAD","TECNICO","AUXILIAR DE ENFERMERIA DE PROMOCIÓN Y MANTENIMIENTO DE LA SALUD","03 de Noviembre de 2020 ","30 de Noviembre de 2020 ",1166000,1166000,"CENTRO DE SALUD 13 DE JUNIO","Asistencial","PRESTACION DE SERVICIO","jasmined1206@hotmail.com","3156851330",10]
[503,32866918,"ZULMA LEONOR MARTINEZ IGLESIAS","Colombia","Atlántico","BARRANQUILLA","ODONTOLOGIA","ODONTOLOGO","03 de Noviembre de 2020 ","30 de Noviembre de 2020 ",1900000,1900000,"CENTRO DE SALUD LA ESPERANZA","Asistencial","PRESTACION DE SERVICIO","zulmamartinez1973@outlook.com","3747363",5]
[]
[null,null,null,null,null,null,null,null,null,null,null,null,null,null,null,null,"|"]

{"sheet":"PLANTA DE PERSONAL","index":1,"n_rows":67,"n_cols":10,"rows_kept":67,"cut":false,"hidden":false,"merged":[]}
[" NOMBRE DEL EMPLEADO ","CORREO","TELEFONO","CIUDAD/MUNICIPIO","DENOMINACION "," Titulo Profesional"," Titulo Tecnico","SALARIO BASE","CENTRO","AÑOS DE EXPERIENCIA"]
["ALTAMAR BARRAZA JORGE LUIS","george_luis_1512@hotmail.com,","318 7024044","MALAMBO","Auxiliar Administrativo","ND","CONTABILIDAD",1993342,"VILLA ESTADIO",10]
["ANGULO SALCEDO KELLY BEATRIZ","kellyangulo1983@hotmail.com,","301 5930293","SOLEDAD","Auxiliar Administrativo","PSICOLOGA","AUXILIAR DE ARCHIVO, TECNICO PROFESIONAL EN RECURSOS HUMANOS",1993342,"VILLA ESTADIO",13]
[" ARIZA MARQUEZ NILSA MARIA ","jeynas-28@hotmail.com,","300 2767278","BARRANQUILLA"," Enfermero Especialista ","ENFERMERA","ND",6411891,"COSTA HERMOSA",15]
[" ARRIETA MEZA CESAR DAVID ","c_david-arrieta@hotmail.com,","302 2172234","BARRANQUILLA"," MEDICO ESPECIALISTA ","MEDICO CIRUJANO","ND",6411891,"COSTA HERMOSA",1]
["BOLIVAR GOMEZ AIDA LUZ","aida.bolivar@hotmail.com,","313 3214078","SOLEDAD","Auxiliar Administrativo","ND","ND",1993342,"13 DE JUNIO",13]
[" BOVEA MARIN SERGIO NICOLAS ","sergionicolas54@hotmail.com,","300 4334577","SOLEDAD"," Medico Especialista  ","MEDICO CIRUJANO","ND",6411891,"13 DE JUNIO",14]
["BUSTILLO PRETELL JUDITH ISABEL","judithbustillo_gordita24@hotmail.com,","300 3087961","BARRANQUILLA","Auxiliar Administrativo","ND","OPERACIÓN DE COMPUTADORES",1993342,"SALAMANCA",19]
["CALVO QUIROZ FREDY ENRIQUE","frecal01@hotmail.com,fredyscalvo58@hotmail.com","301 3339211","BARRANQUILLA","Auxiliar Administrativo","ND","ND",1993342,"SALAMANCA",19]
["CAMPO RODRIGUEZ LUXORA IBETH","luxora campo rodriguez<luxanti@hotmail.com>,","301 6257311","SOLEDAD"," Profesional Universitario ","CONTADOR PUBLICO","ANALISIS Y PROGRAMACION DE COMPUTADORES",5537440,"COSTA HERMOSA",13]
[" CANO MONTOYA ROQUELINA DE JESUS ","roquelinacanomontoya@hotmail.com,","301 2690099","SOLEDAD"," Axiliar Area de la Salud ","ND","AUXILIAR DE ENFERMERIA",2305314,"SALAMANCA",17]
["CASTELAR VELASQUEZ MALKIS ELENA","malkiscastelar@gmail.com,","300 5354513","BARRANQUILLA"," Medico General ","MEDICO CIRUJANO","ND",5125511,"CIUDADELA",10]
["CASTRO ROLONG ALFREDO JOSE","alfredojosecastrorolong39@gmail.com,","304 6156575","SOLEDAD"," Conductor ","ND","ND",1993342,"13 DE JUNIO",14]
["CERVANTES ARIZA WENDY JOHANA","wendycervante11@hotmail.com,","312 6724893","SOLEDAD"," Tecnico Administrativo ","ND","PROFESIONAL EN ADMINISTRACION DE RECURSOS HUMANOS, SECRETARIA GENERAL",3104561,"COSTA HERMOSA",9]
[" CERVANTES MARQUEZ LILIANA DE LA CRUZ ","licemarquez01@hotmail.com,","301 2879881","SABANALARGA"," Secretaria de Gerencia ","ND","SECRETARIA GENERAL",2335679,"COSTA HERMOSA",1]
[" COLPAS OROZCO FABIAN ENRIQUE ","fecolo@hotmail.es,","313 5770114","PONEDERA","Jefe de Oficina","ABOGADO","ND",6545535,"COSTA HERMOSA",1]
[" DE LA HOZ ROLON ALFONSO MIGUEL ","ALFONSOMDELAHOZ-1000@HOTMAIL.COM,","300 7695334","SOLEDAD"," Medico General ","MEDICO CIRUJANO","ND",5125511,"13 DE JUNIO",17]
[" DE LEON BERNIER LUIS CARLOS ","luiscdeleonb@hotmail.com,","300 6623595","BARRANQUILLA"," Profesional Universitario Area Salud ","MEDICO CIRUJANO","ND",5956368,"MACLOVIA",12]
["DE MOYA BADILLO LUIS ENRIQUE","luisdemoyab@gmail.com,","300 7898394","GALAPA"," Tesorero General ","ADMINISTRADOR DE EMPRESAS","ND",5537440,"COSTA HERMOSA",1]
[" DIAZ ALVAREZ IRAIDA MARIA ","iraida diaz<diaziraida24@gmail.com>,","300 6198717","SOLEDAD"," AUxiliar Area de la Salud ","ND","AUXILIAR DE ENFERMERIA",2305314,"MACLOVIA",1]
[" DONADO MARTINEZ ASTRID DEL SOCORRO ","astrydonado@hotmail.com,","300 5869374","Cra 26A# 17-56"," Odontologo Especialista ","ODONTOLOGA","ND",5956368,"COSTA HERMOSA",13]
[" ESCORCIA RODRIGUEZ ISABEL CECILIA ","isabelescorcia1979@hotmail.com,","300 8081108","SOLEDAD"," Enfermero ","ENFERMERA","ND",3832264,"COSTA HERMOSA",13]
[" FIORENTINO CASADIEGO ORNELLA ","ornefioren@hotmail.com,","300 3961602","BARRANQUILLA"," Jefe de Oficina Asesora ","ABOGADO","ND",6545535,"COSTA HERMOSA",1]
[" GOENAGA ZAPATA HUMBERTO JULIO ","humbergoen@hotmail.com,","301 4029009","BARANOA"," Tecnico Operativo ","CONTADOR PUBLICO","ND",3104561,"COSTA HERMOSA",9]
[" GOMEZ VILLA MARIA ANTONIA  ","medicomagovi@hotmail.com,","301 5270994","SOLEDAD"," Medico General ","MEDICO CIRUJANO","ND",5125511,"CIUDADELA",17]
[" GRANADOS  GOMEZ LUIS ANTONIO ","drluisgranados@hotmail.com,","301 7833998","BARRANQUILLA"," Medico Especialista  ","MEDICO CIRUJANO","ND",5956368,"MANUELA BELTRAN",16]
["GRAVINI ESCORCIA YEISMI JAIR","yeismigravini@hotmail.com,","320 5767205","SOLEDAD","Auxiliar Administrativo","COMUNICADOR SOCIAL","TECNICO EN ANALISIS Y PROGRAMACION DE COMPUTADORES",1993342,"13 DE JUNIO",13]
["GUERRA CORREA YARELIS","yareguerra@hotmail.com,","301 3983960","BARRANQUILLA"," Medico Especialista  ","MEDICO CIRUJANO","ND",5956368,"VILLA ESTADIO",12]
["GUTIERREZ DE PIÑERES BARVO GENARO","ggutierrezdep@outlook.com,","301 6013007","BARRANQUILLA","Jefe de Oficina","ADMINISTRADOR DE EMPRESAS","ND",6084365,"COSTA HERMOSA",1]
[" JIMENEZ BOVEA ERIKA MARIA   ","erikamariajimenezbovea@gmail.com,",3108181164,"SOLEDAD"," Axiliar Area de la Salud ","ND","AUXILIAR DE ENFERMERIA",2305314,"SALAMANCA",16]
[" JIMENEZ DE LA PEÑA WILFRAN ","wilfran18311@hotmail.com,","300 5768868","BARRANQUILLA"," Medico Especialista  ","MEDICO CIRUJANO","ND",6411891,"CIUDADELA",13]
[" JIMENEZ GARCIA ROSARIO MARIA ","melanyheras@hotmail.com,","300 4442920","BARRANQUILLA"," Axiliar Area de la Salud ","ND","AUXILIAR DE ENFERMERIA",2305314,"SALAMANCA",19]
[" LEAL ARROYUELO EDGAR DE JESUS ","edgarleal_22@hotmail.com,","300 3232464","BARRANQUILLA","Auxiliar Administrativo","ABOGADO","ND",2335679,"COSTA HERMOSA",18]
["LECHUGA ZAMBRANO ESTARLEN DE JESUS","starlen09@hotmail.com,","314 7271933","SABANALARGA"," Tecnico Administrativo ","ND","TECNICO EN GESTION DE SISTEMAS DE MANEJO AMBIENTAL",2638998,"LA CASITA",1]
["MANOTAS ROA ZULMA MARIA","zulmaroa1@hotmail.com,","300 4626924","BARRANQUILLA"," Jefe de Oficina ","ABOGADA","ND",7580046,"COSTA HERMOSA",2]
[" MARTINEZ   BUSTOS SILVIO RAFAEL ","smartinezbustos@hotmail.com,","301 5451196","BARRANQUILLA"," Medico General ","MEDICO CIRUJANO","ND",5125511,"VILLA ESTADIO",13]
[" MARTINEZ CANEPPA MILDRED SUCCETTY ","succetty1511@hotmail.com,","301 5016189","CAMPO DE LA CRUZ"," Medico General ","MEDICO GENERAL","ND",5125511,"13 DE JUNIO",14]
[" MARTINEZ PACHECO  DIANA PATRICIA ","maternosalamanca@hotmail.com,","300 4573599","SOLEDAD"," Medico Especialista  ","MEDICO CIRUJANO","ND",5956368,"SALAMANCA",13]
[" MIRANDA BACA VICTOR HUGO ","mirandavictorhugo@hotmail.com,","301 3360551","SOLEDAD"," Medico Especialista  ","MEDICO Y CIRUJANO,ABOGADO","ND",5956368,"ESPERANZA",2]
["NIEBLES ROBLES MILADIS SOFIA","milasofi23@hotmail.com,","300 4821178","SOLEDAD","Auxiliar Administrativo","ND","SECRETARIA GENERAL",1993342,"COSTA HERMOSA",10]
["OLMOS NAVARRO JORGE LUIS","jorolmos_2004@hotmail.com,","301 7310356","SABANALARGA"," Jefe de Oficina Recursos Financieros ","CONTADOR PUBLICO","ND",6545535,"COSTA HERMOSA",1]
[" ORTIZ GONZALEZ KARLA ","karlaortizg0712@gmail.com,","301 6573756","BARRANQUILLA"," Medico General ","MEDICO CIRUJANO","ND",5125511,"EL PARQUE",12]
[" OSPINO SALGADO CARMEN ELENA ","carmenospinosal@hotmail.com,","300 6266703","BARRANQUILLA"," Axiliar Area de la Salud ","ND","AUXILIAR DE ENFERMERIA",2305314,"VILLA ESTADIO",16]
[" PALACIO PASTOR AIX ","aixpp@outlook.com,","300 8464116","BARRANQUILLA"," Medico Especialista  ","MEDICO CIRUJANO","ND",5956368,"COSTA HERMOSA",2]
["PEDRAZA MARTINEZ JHONY JOSE","jpedramar3071@outlook.com,","300 2116281","SOLEDAD","Auxiliar Administrativo","ND","ND",1993342,"13 DE JUNIO",18]
["PEREZ TORRES LUPE CARLINA","luperez-109@hotmail.com,","321 4607575","SOLEDAD","Auxiliar Administrativo","ND","AUXILIAR CONTABLE",1993342,"COSTA HERMOSA",14]
["PERTUZ CHARRIS BETTY LUZ","bettypertuz13@gmail.com,","311 6844566","STO TOMAS"," Subgerente ","BACTERIOLOGA","ND",7580046,"COSTA HERMOSA",1]
[" PORTO BARCELO KATERINE JASMIN ","katefrank1631@hotmail.es,katefrank3116@hotmail.com,","301 6477217","SOLEDAD"," Medico General ","MEDICA CIRUJANA","ND",5125511,"SALAMANCA",18]
[" PRIETO COMAS INDIRA ESTELA ","indiraprieto1973@gmail.com,","301 5419573","SOLEDAD"," Axiliar Area de la Salud ","ND","AUXILIAR DE ENFERMERIA",2305314,"COSTA HERMOSA",13]
["RODRIGUEZ DE SIMANCA JANETH MERCEDES","yaneth-25rodriguez@hotmail.com,","300 8105361","SOLEDAD","Auxiliar Administrativo","ND","TECNICO OPERADOR DE SISTEMAS, AUXILIAR DE CONTABILIDAD Y SECRETARIADO",1993342,"13 DE JUNIO",17]
[" RODRIGUEZ JULIAO MARVEL LUZ ","rumar64@hotmail.com,","300 8105361","BARRANQUILLA"," Medico General ","MEDICO CIRUJANO","ND",5125511,"13 DE JUNIO",19]
[" ROMERO DE LA HOZ ZULI ESTER ","zulyromero@hotmail.com,","300 4840881","BARRANQUILLA"," profesional Especializado ","INGENIERA DE SISTEMAS","TÉCNICO EN ANÁLISIS Y PROGRAMACIÓN DE COMPUTADORES.",5537440," COSTA HERMOSA ",2]
[" ROMERO MANOTAS MARCOS ANIANO ","maromoma@hotmail.com,",3013352500,"BARRANQUILLA"," Profesional Universitario ","ADMINISTRADOR DE EMPRESAS","ND",5956368,"COSTA HERMOSA",11]
[" RUIZ BARBOSA JOSE ISAIAS ","jrb4085@hotmail.com,","300 3348333","BARRANQUILLA"," Medico General ","MEDICO CIRUJANO","ND",5125511,"SALAMANCA",13]
[" RUIZ MARTINEZ DAMARIS DEL SOCORRO ","damarisruizmartinez@outlook.com,","301 4652589","SOLEDAD"," Axiliar Area de la Salud ","ND","AUXILIAR DE ENFERMERIA",2305314,"13 DE JUNIO",18]
["SALCEDO NIEBLES MAILA PATRICIA","mpsn83@hotmail.com,","302 3386693","SOLEDAD","Tecnico Administrativo","ND","ASISTENCIA JURIDICA, SERVICIOS DE HOTELERIA Y TURISMO",2638998,"COSTA HERMOSA",13]
["SAN MARTIN LOPEZ SANDRA MILENA","sandramsanmartin@hotmail.com,","313 5468102","BARRANQUILLA"," Subgerente ","ADMINISTRADOR DE EMPRESAS","ND",7580046," COSTA HERMOSA ",1]
[" SANCHEZ PAEZ JUAN ESTEBAN ","jotaese-@hotmail.com,",3215392007,"SABANALARGA"," Gerente ","MEDICO CIRUJANO","ND",11932748,"COSTA HERMOSA",1]
["SANDOVAL GUTIERREZ GONZALO RAFAEL","gonzalo10-23@hotmail.com,","300 6080382","GALAPA","Auxiliar Administrativo","ND","ND",1993342,"13 DE JUNIO",16]
[" SANDOVAL VILORIA EDILBERTO José ","edysandovalv@hotmail.es,","301 6498925","SOLEDAD"," Medico General ","MEDICO CIRUJANO","ND",5125511,"13 DE JUNIO",18]
["SANTANDER SANTANDER ELIS SAUL","elissaul6@hotmail.com,","300 8290185","SOLEDAD"," Auxiliar Administrativo ","ND","ND",2115305,"COSTA HERMOSA",15]
["SANTIAGO ESCORCIA TATIANA DEL CARMEN","tatiansante@hotmail.com,","300 3111892","SOLEDAD","Tecnico Operativo","CONTADOR PUBLICO","AUXILIAR DE CONTABILIDAD",3104561,"COSTA HERMOSA",4]
["TORRES GUETE ANTONIO JOSE","tonychoche@hotmail.com,","314 5415343","BARRANQUILLA","Auxiliar Administrativo","NEGOCIOS Y FINANZAS INTERNACIONALES","ND",1993342,"COSTA HERMOSA",14]
[" TRIGOS CASALLAS GLADYS MARIA ","gladystc19@outlook.com,gladystrigos1008@hotmail.com,","300 4214376","BARRANQUILLA"," Axiliar Area de la Salud ","ND","AUXILIAR DE ENFERMERIA",2305314,"EL PARQUE",17]
["TRUJILLO GONZALEZ LEYLA MARIA","leylamariatrujillo@hotmail.es,","302 4122847","BARRANQUILLA","Auxiliar Administrativo","ND","AUXILIAR CONTABLE",1993342,"SALAMANCA",18]
[" VISBAL JIMENEZ CARLOS FEDERICO ","drcarlos1964@hotmail.com,","300 2802101","SOLEDAD"," Medico Especialista  ","MEDICO Y CIRUJANO","ND",5956368,"COSTA HERMOSA",14]
["YEPEZ CANTILLO ELIANA PATRICIA","eliana.yepez@hotmail.com,","300 5971158","SOLEDAD"," Tecnico Administrativo ","ND","ND",3104561,"COSTA HERMOSA",9]